Workbook

Sheet OVERALL STATS
A1: OVERALL TITLE COMPANY MARKET STATISTICS Washoe County, NV)
A2: Reporting Period: JANUARY THROUGH DECEMBER, 2020
A5: OVERALL SALES MARKET (Resales & Subdivision Sales)
A6: TITLE COMPANY | B6: CLOSINGS | C6: DOLLAR VOLUME | D6: CLOSINGS | E6: DOLLAR VOLUME | F6: CLOSINGS | G6: DOLLAR VOLUME
A7: First Centennial Title | B7: 4147 | C7: 2362811532 | D7: =B7/$B$21 -> 0.3417106131 | E7: =C7/$C$21 -> 0.3191130089 | F7: 1 | G7: =RANK(C7,$C$7:$C$20) -> 1
A8: Western Title | B8: 2050 | C8: 867916546.3 | D8: 0.1689189189 | E8: 0.1172177538 | F8: 2 | G8: =RANK(C8,$C$7:$C$20) -> 4
A9: Ticor Title | B9: 2020 | C9: 1655511306 | D9: =B9/$B$21 -> 0.1664469347 | E9: =C9/$C$21 -> 0.2235875299 | F9: 3 | G9: 2
A10: First American Title | B10: 1070 | C10: 1146394870 | D10: 0.08816743573 | E10: 0.154828056 | F10: 4 | G10: 3
A11: Stewart Title | B11: 720 | C11: 339972065 | D11: 0.0593276203 | E11: 0.04591543046 | F11: 5 | G11: 6
A12: Westminster Title - Las Vegas | B12: 469 | C12: 342260385 | D12: 0.03864535267 | E12: 0.04622448291 | F12: 6 | G12: 5
A13: Calatlantic Title West | B13: 437 | C13: 199563315 | D13: 0.03600856955 | E13: 0.0269523189 | F13: 7 | G13: 7
A14: DHI Title of Nevada | B14: 388 | C14: 153310139 | D14: 0.03197099539 | E14: 0.02070552775 | F14: 8 | G14: 8
A15: Toiyabe Title | B15: 233 | C15: 84069700 | D15: 0.01919907713 | E15: 0.01135415777 | F15: 9 | G15: 10
A16: Acme Title and Escrow | B16: 208 | C16: 75584250 | D16: =B16/$B$21 -> 0.01713909031 | E16: =C16/$C$21 -> 0.01020814276 | F16: 10 | G16: 11
A17: North American Title | B17: 193 | C17: 74773439 | D17: 0.01590309822 | E17: 0.01009863748 | F17: 11 | G17: 12
A18: Signature Title Company | B18: 154 | C18: 84805202 | D18: =B18/$B$21 -> 0.01268951879 | E18: =C18/$C$21 -> 0.01145349208 | F18: 12 | G18: 9
A19: True Title and Escrow | B19: 34 | C19: 11644504 | D19: 0.00280158207 | E19: 0.001572665724 | F19: 13 | G19: 13
A20: Archer Title and Escrow | B20: 13 | C20: 5692400 | D20: =B20/$B$21 -> 0.001071193144 | E20: =C20/$C$21 -> 0.0007687955078 | F20: 14 | G20: 14
A21: GRAND TOTAL | B21: =SUM(B7:B20) -> 12136 | C21: =SUM(C7:C20) -> 7404309653 | D21: =SUM(D7:D20) -> 1 | E21: =SUM(E7:E20) -> 1
A23: OVERALL LOAN ONLY MARKET (Refi's, Construction, Commercial, Credit Lines, Homequity, etc.)
D24: % OF | E24: % OF | F24: RANK BY | G24: RANK BY
A25: TITLECOMPANY | B25: CLOSINGS | C25: DOLLAR VOLUME | D25: CLOSINGS | E25: DOLLAR VOLUME | F25: CLOSINGS | G25: DOLLAR VOLUME
A26: First Centennial Title | B26: 3351 | C26: 1315999420 | D26: =B26/$B$39 -> 0.263195099 | E26: =C26/$C$39 -> 0.2513088077 | F26: 1 | G26: =RANK(C26,$C$26:$C$38) -> 1
A27: Western Title | B27: 2340 | C27: 757032708.9 | D27: 0.1837888784 | E27: 0.1445661636 | F27: 2 | G27: =RANK(C27,$C$26:$C$38) -> 4
A28: First American Title | B28: 2199 | C28: 1288546973 | D28: 0.1727144204 | E28: 0.2460663725 | F28: 3 | G28: 2
A29: Ticor Title | B29: 2001 | C29: 1089652998 | D29: 0.1571630537 | E29: 0.2080847389 | F29: 4 | G29: 3
A30: Stewart Title | B30: 1614 | C30: 425324845.9 | D30: 0.1267672008 | E30: 0.08122182903 | F30: 5 | G30: 5
A31: Acme Title and Escrow | B31: 480 | C31: 133405562.3 | D31: 0.03770028275 | E31: 0.02547568964 | F31: 6 | G31: 6
A32: Toiyabe Title | B32: 304 | C32: 91178455 | D32: =B32/$B$39 -> 0.02387684574 | E32: =C32/$C$39 -> 0.01741182288 | F32: 7 | G32: 7
A33: North American Title | B33: 221 | C33: 65985905.5 | D33: 0.01735783852 | E33: 0.01260094722 | F33: 8 | G33: 8
A34: Signature Title Company | B34: 109 | C34: 36909585 | D34: 0.008561105875 | E34: 0.007048410248 | F34: 9 | G34: 9
A35: True Title and Escrow | B35: 58 | C35: 14669844 | D35: 0.004555450833 | E35: 0.002801415372 | F35: 10 | G35: 10
A36: Archer Title and Escrow | B36: 29 | C36: 9632582 | D36: 0.002277725416 | E36: 0.001839478544 | F36: 11 | G36: 11
A37: Calatlantic Title West | B37: 18 | C37: 5950910 | D37: =B37/$B$39 -> 0.001413760603 | E37: =C37/$C$39 -> 0.001136410909 | F37: 12 | G37: 12
A38: Driggs Title Agency | B38: 8 | C38: 2293170 | D38: 0.0006283380459 | E38: 0.0004379134289 | F38: 13 | G38: 13
A39: GRAND TOTAL | B39: =SUM(B26:B38) -> 12732 | C39: =SUM(C26:C38) -> 5236582960 | D39: =SUM(D26:D38) -> 1 | E39: =SUM(E26:E38) -> 1
A41: OVERALL SALES AND LOAN ONLY MARKETS COMBINED
D42: % OF | E42: % OF | F42: RANK BY | G42: RANK BY
A43: TITLECOMPANY | B43: CLOSINGS | C43: DOLLAR VOLUME | D43: CLOSINGS | E43: DOLLAR VOLUME | F43: CLOSINGS | G43: DOLLAR VOLUME
A44: First Centennial Title | B44: 7498 | C44: 3678810952 | D44: =B44/$B$59 -> 0.3015119833 | E44: =C44/$C$59 -> 0.2910246187 | F44: 1 | G44: =RANK(C44,$C$44:$C$58) -> 1
A45: Western Title | B45: 4390 | C45: 1624949255 | D45: 0.1765320894 | E45: 0.1285470342 | F45: 2 | G45: =RANK(C45,$C$44:$C$58) -> 4
A46: Ticor Title | B46: 4021 | C46: 2745164304 | D46: 0.161693743 | E46: 0.2171653845 | F46: 3 | G46: 2
A47: First American Title | B47: 3269 | C47: 2434941843 | D47: =B47/$B$59 -> 0.1314540775 | E47: =C47/$C$59 -> 0.1926242013 | F47: 4 | G47: 3
A48: Stewart Title | B48: 2334 | C48: 765296910.9 | D48: 0.09385555734 | E48: 0.06054136637 | F48: 5 | G48: 5
A49: Acme Title and Escrow | B49: 688 | C49: 208989812.3 | D49: 0.02766607689 | E49: 0.01653283662 | F49: 6 | G49: 7
A50: Toiyabe Title | B50: 537 | C50: 175248155 | D50: 0.02159401641 | E50: 0.0138635902 | F50: 7 | G50: 9
A51: Westminster Title - Las Vegas | B51: 469 | C51: 342260385 | D51: 0.01885957857 | E51: 0.02707565007 | F51: 8 | G51: 6
A52: Calatlantic Title West | B52: 455 | C52: 205514225 | D52: =B52/$B$59 -> 0.01829660608 | E52: =C52/$C$59 -> 0.01625788869 | F52: 9 | G52: 8
A53: North American Title | B53: 414 | C53: 140759344.5 | D53: =B53/$B$59 -> 0.01664790092 | E53: =C53/$C$59 -> 0.01113523774 | F53: 10 | G53: 11
A54: DHI Title of Nevada | B54: 388 | C54: 153310139 | D54: =B54/$B$59 -> 0.01560238057 | E54: 0.01212811023 | F54: 11 | G54: 10
A55: Signature Title Company | B55: 263 | C55: 121714787 | D55: =B55/$B$59 -> 0.01057584044 | E55: =C55/$C$59 -> 0.009628654457 | F55: 12 | G55: 12
A56: True Title and Escrow | B56: 92 | C56: 26314348 | D56: 0.003699533537 | E56: 0.002081684324 | F56: 13 | G56: 13
A57: Archer Title and Escrow | B57: 42 | C57: 15324982 | D57: 0.001688917484 | E57: 0.001212333849 | F57: 14 | G57: 14
A58: Driggs Title Agency | B58: 8 | C58: 2293170 | D58: =B58/$B$59 -> 0.0003216985684 | E58: =C58/$C$59 -> 0.0001814088665 | F58: 15 | G58: 15
A59: GRAND TOTAL | B59: =SUM(B44:B58) -> 24868 | C59: =SUM(C44:C58) -> 1.264089261e+10 | D59: =SUM(D44:D57) -> 0.9996783014 | E59: =SUM(E44:E57) -> 0.9998185911
A61: Information provided by Datasource | D61: SEE CHARTS BELOW:
A62: www.datasourcenev.com

Sheet SALES STATS
A1: SALES MARKET Washoe County, NV)
A2: ='OVERALL STATS'!A2 -> Reporting Period: JANUARY THROUGH DECEMBER, 2020
A4: RESALE MARKET (Includes ALL types of real property)
D5: % OF | E5: % OF | F5: RANK BY | G5: RANK BY
A6: TITLE COMPANY | B6: CLOSINGS | C6: DOLLAR VOLUME | D6: CLOSINGS | E6: DOLLAR VOLUME | F6: CLOSINGS | G6: DOLLAR VOLUME
A7: First Centennial Title | B7: 3915 | C7: 2240966314 | D7: =B7/$B$19 -> 0.3929144922 | E7: =C7/$C$19 -> 0.3569681144 | F7: 1 | G7: =RANK(C7,$C$7:$C$18) -> 1
A8: Ticor Title | B8: 1889 | C8: 1575030301 | D8: =B8/$B$19 -> 0.189582497 | E8: =C8/$C$19 -> 0.2508898029 | F8: 2 | G8: =RANK(C8,$C$7:$C$18) -> 2
A9: Western Title | B9: 1677 | C9: 721031562.8 | D9: =B9/$B$19 -> 0.1683059012 | E9: =C9/$C$19 -> 0.1148545946 | F9: 3 | G9: 4
A10: First American Title | B10: 928 | C10: 1064908975 | D10: =B10/$B$19 -> 0.09313528703 | E10: =C10/$C$19 -> 0.1696315319 | F10: 4 | G10: 3
A11: Stewart Title | B11: 719 | C11: 339178070 | D11: =B11/$B$19 -> 0.07215977519 | E11: =C11/$C$19 -> 0.05402836953 | F11: 5 | G11: 5
A12: Toiyabe Title | B12: 233 | C12: 84069700 | D12: =B12/$B$19 -> 0.02338418306 | E12: =C12/$C$19 -> 0.01339163472 | F12: 6 | G12: 7
A13: Acme Title and Escrow | B13: 208 | C13: 75584250 | D13: =B13/$B$19 -> 0.02087515054 | E13: =C13/$C$19 -> 0.01203997001 | F13: 7 | G13: 8
A14: North American Title | B14: 193 | C14: 74773439 | D14: =B14/$B$19 -> 0.01936973103 | E14: =C14/$C$19 -> 0.01191081426 | F14: 8 | G14: 9
A15: Signature Title Company | B15: 154 | C15: 84805202 | D15: =B15/$B$19 -> 0.01545564031 | E15: =C15/$C$19 -> 0.01350879434 | F15: 9 | G15: 6
A16: True Title and Escrow | B16: 34 | C16: 11644504 | D16: 0.003412284223 | E16: 0.001854876894 | F16: 10 | G16: 10
A17: Archer Title and Escrow | B17: 13 | C17: 5692400 | D17: 0.001304696909 | E17: 0.000906754056 | F17: 11 | G17: 11
A18: Calatlantic Title West | B18: 1 | C18: 92550 | D18: =B18/$B$19 -> 0.0001003613007 | E18: =C18/$C$19 -> 1.474247907e-05 | F18: 12 | G18: 12
A19: GRAND TOTAL | B19: =SUM(B7:B18) -> 9964 | C19: =SUM(C7:C18) -> 6277777267 | D19: =SUM(D7:D18) -> 1 | E19: =SUM(E7:E18) -> 1
A21: SUBDIVISION SALES (Builder/Developer Sales)
D22: % OF | E22: % OF | F22: RANK BY | G22: RANK BY
A23: TITLE COMPANY | B23: CLOSINGS | C23: DOLLAR VOLUME | D23: CLOSINGS | E23: DOLLAR VOLUME | F23: CLOSINGS | G23: DOLLAR VOLUME
A24: Westminster Title - Las Vegas | B24: 469 | C24: 342260385 | D24: =B24/$B$32 -> 0.2159300184 | E24: =C24/$C$32 -> 0.303817617 | F24: 1 | G24: =RANK(C24,$C$24:$C$31) -> 1
A25: Calatlantic Title West | B25: 436 | C25: 199470765 | D25: =B25/$B$32 -> 0.2007366483 | E25: =C25/$C$32 -> 0.1770661612 | F25: 2 | G25: =RANK(C25,$C$24:$C$31) -> 2
A26: DHI Title of Nevada | B26: 388 | C26: 153310139 | D26: =B26/$B$32 -> 0.1786372007 | E26: =C26/$C$32 -> 0.1360903077 | F26: 3 | G26: 3
A27: Western Title | B27: 373 | C27: 146884983.4 | D27: =B27/$B$32 -> 0.1717311234 | E27: =C27/$C$32 -> 0.1303868271 | F27: 4 | G27: 4
A28: First Centennial Title | B28: 232 | C28: 121845218.4 | D28: =B28/$B$32 -> 0.1068139963 | E28: =C28/$C$32 -> 0.1081595345 | F28: 5 | G28: 5
A29: First American Title | B29: 142 | C29: 81485895.04 | D29: =B29/$B$32 -> 0.06537753223 | E29: =C29/$C$32 -> 0.0723333799 | F29: 6 | G29: 6
A30: Ticor Title | B30: 131 | C30: 80481005 | D30: =B30/$B$32 -> 0.06031307551 | E30: =C30/$C$32 -> 0.07144135935 | F30: 7 | G30: 7
A31: Stewart Title | B31: 1 | C31: 793995 | D31: =B31/$B$32 -> 0.0004604051565 | E31: =C31/$C$32 -> 0.0007048132925 | F31: 8 | G31: 8
A32: GRAND TOTAL | B32: =SUM(B24:B31) -> 2172 | C32: =SUM(C24:C31) -> 1126532386 | D32: =SUM(D24:D31) -> 1 | E32: =SUM(E24:E31) -> 1
A34: RESIDENTIAL RESALE MARKET (Residential Properties Only)
D35: % OF | E35: % OF | F35: RANK BY | G35: RANK BY
A36: TITLE COMPANY | B36: CLOSINGS | C36: DOLLAR VOLUME | D36: CLOSINGS | E36: DOLLAR VOLUME | F36: CLOSINGS | G36: DOLLAR VOLUME
A37: First Centennial Title | B37: 3523 | C37: 1968635764 | D37: =B37/$B$49 -> 0.3914009554 | E37: =C37/$C$49 -> 0.4006913518 | F37: 1 | G37: =RANK(C37,$C$37:$C$48) -> 1
A38: Ticor Title | B38: 1665 | C38: 1106660837 | D38: 0.1849794467 | E38: 0.2252470643 | F38: 2 | G38: =RANK(C38,$C$37:$C$48) -> 2
A39: Western Title | B39: 1536 | C39: 637664662.3 | D39: 0.1706477058 | E39: 0.1297887198 | F39: 3 | G39: 3
A40: First American Title | B40: 812 | C40: 565917696.6 | D40: 0.09021219864 | E40: 0.1151855163 | F40: 4 | G40: 4
A41: Stewart Title | B41: 656 | C41: 302122208 | D41: 0.07288079102 | E41: 0.06149322193 | F41: 5 | G41: 5
A42: Toiyabe Title | B42: 225 | C42: 83013700 | D42: 0.02499722253 | E42: 0.01689640729 | F42: 6 | G42: 7
A43: Acme Title and Escrow | B43: 197 | C43: 73954750 | D43: =B43/$B$49 -> 0.02188645706 | E43: =C43/$C$49 -> 0.01505257056 | F43: 7 | G43: 8
A44: North American Title | B44: 188 | C44: 73088439 | D44: 0.02088656816 | E44: 0.01487624372 | F44: 8 | G44: 9
A45: Signature Title Company | B45: 151 | C45: 84610202 | D45: 0.01677591379 | E45: 0.01722135544 | F45: 9 | G45: 6
A46: True Title and Escrow | B46: 34 | C46: 11644504 | D46: =B46/$B$49 -> 0.003777358071 | E46: =C46/$C$49 -> 0.00237009412 | F46: 10 | G46: 10
A47: Archer Title and Escrow | B47: 13 | C47: 5692400 | D47: =B47/$B$49 -> 0.001444283968 | E47: =C47/$C$49 -> 0.001158617299 | F47: 11 | G47: 11
A48: Calatlantic Title West | B48: 1 | C48: 92550 | D48: =B48/$B$49 -> 0.0001110987668 | E48: =C48/$C$49 -> 1.883740268e-05 | F48: 12 | G48: 12
A49: GRAND TOTAL | B49: =SUM(B37:B48) -> 9001 | C49: =SUM(C37:C48) -> 4913097713 | D49: =SUM(D37:D48) -> 1 | E49: =SUM(E37:E48) -> 1
A51: COMMERCIAL/INDUSTRIAL, APARTMENTS, MOBILE HOME PARKS SALES MARKET
D52: % OF | E52: % OF | F52: RANK BY | G52: RANK BY
A53: TITLE COMPANY | B53: CLOSINGS | C53: DOLLAR VOLUME | D53: CLOSINGS | E53: DOLLAR VOLUME | F53: CLOSINGS | G53: DOLLAR VOLUME
A54: First Centennial Title | B54: 106 | C54: 188981169.6 | D54: =B54/$B$62 -> 0.3509933775 | E54: =C54/$C$62 -> 0.1765832257 | F54: 1 | G54: =RANK(C54,$C$54:$C$61) -> 3
A55: Ticor Title | B55: 97 | C55: 401575803.6 | D55: =B55/$B$62 -> 0.321192053 | E55: =C55/$C$62 -> 0.3752307752 | F55: 2 | G55: =RANK(C55,$C$54:$C$61) -> 2
A56: First American Title | B56: 51 | C56: 415381066.4 | D56: =B56/$B$62 -> 0.1688741722 | E56: =C56/$C$62 -> 0.3881303558 | F56: 3 | G56: 1
A57: Western Title | B57: 26 | C57: 35455700 | D57: =B57/$B$62 -> 0.08609271523 | E57: =C57/$C$62 -> 0.0331296599 | F57: 4 | G57: 4
A58: Stewart Title | B58: 18 | C58: 26818962 | D58: =B58/$B$62 -> 0.05960264901 | E58: =C58/$C$62 -> 0.02505952752 | F58: 5 | G58: 5
A59: North American Title | B59: 2 | C59: 1310000 | D59: =B59/$B$62 -> 0.006622516556 | E59: =C59/$C$62 -> 0.001224058599 | F59: 6 | G59: 6
A60: Acme Title and Escrow | B60: 1 | C60: 412500 | D60: =B60/$B$62 -> 0.003311258278 | E60: =C60/$C$62 -> 0.0003854382993 | F60: 7 | G60: 7
A61: Toiyabe Title | B61: 1 | C61: 275000 | D61: =B61/$B$62 -> 0.003311258278 | E61: =C61/$C$62 -> 0.0002569588662 | F61: 7 | G61: 8
A62: GRAND TOTAL | B62: =SUM(B54:B61) -> 302 | C62: =SUM(C54:C61) -> 1070210202 | D62: =SUM(D54:D61) -> 1 | E62: =SUM(E54:E61) -> 1
A64: VACANT LAND SALES
D65: % OF | E65: % OF | F65: RANK BY | G65: RANK BY
A66: TITLE COMPANY | B66: CLOSINGS | C66: DOLLAR VOLUME | D66: CLOSINGS | E66: DOLLAR VOLUME | F66: CLOSINGS | G66: DOLLAR VOLUME
A67: First Centennial Title | B67: 286 | C67: 83349379.68 | D67: =B67/$B$76 -> 0.432677761 | E67: =C67/$C$76 -> 0.2830494204 | F67: 1 | G67: =RANK(C67,$C$67:$C$75) -> 2
A68: Ticor Title | B68: 127 | C68: 66793661.15 | D68: =B68/$B$76 -> 0.1921331316 | E68: =C68/$C$76 -> 0.2268272079 | F68: 2 | G68: 3
A69: Western Title | B69: 115 | C69: 47911200.55 | D69: =B69/$B$76 -> 0.17397882 | E69: =C69/$C$76 -> 0.162703521 | F69: 3 | G69: 4
A70: First American Title | B70: 65 | C70: 83610211.6 | D70: =B70/$B$76 -> 0.09833585477 | E70: =C70/$C$76 -> 0.2839351897 | F70: 4 | G70: 1
A71: Stewart Title | B71: 45 | C71: 10236900 | D71: 0.06807866868 | E71: 0.03476388934 | F71: 5 | G71: 5
A72: Acme Title and Escrow | B72: 10 | C72: 1217000 | D72: 0.01512859304 | E72: 0.004132857928 | F72: 6 | G72: 6
A73: Toiyabe Title | B73: 7 | C73: 781000 | D73: 0.01059001513 | E73: 0.002652228465 | F73: 7 | G73: 7
A74: North American Title | B74: 3 | C74: 375000 | D74: 0.004538577912 | E74: 0.001273477176 | F74: 8 | G74: 8
A75: Signature Title Company | B75: 3 | C75: 195000 | D75: 0.004538577912 | E75: 0.0006622081314 | F75: 8 | G75: 9
A76: GRAND TOTAL | B76: =SUM(B67:B75) -> 661 | C76: =SUM(C67:C75) -> 294469353 | D76: =SUM(D67:D75) -> 1 | E76: =SUM(E67:E75) -> 1
A78: INCLINE VILLAGE SALES MARKET
D79: % OF | E79: % OF | F79: RANK BY | G79: RANK BY
A80: TITLE COMPANY | B80: CLOSINGS | C80: DOLLAR VOLUME | D80: CLOSINGS | E80: DOLLAR VOLUME | F80: CLOSINGS | G80: DOLLAR VOLUME
A81: Ticor Title | B81: 248 | C81: 439491939.7 | D81: =B81/$B$84 -> 0.3763277693 | E81: =C81/$C$84 -> 0.4100821577 | F81: 1 | G81: 1
A82: First Centennial Title | B82: 208 | C82: 323952188 | D82: =B82/$B$84 -> 0.315629742 | E82: =C82/$C$84 -> 0.3022740584 | F82: 2 | G82: 2
A83: First American Title | B83: 203 | C83: 308272677 | D83: =B83/$B$84 -> 0.3080424886 | E83: =C83/$C$84 -> 0.2876437839 | F83: 3 | G83: 3
A84: GRAND TOTAL | B84: =SUM(B81:B83) -> 659 | C84: =SUM(C81:C83) -> 1071716805 | D84: =SUM(D81:D83) -> 1 | E84: =SUM(E81:E83) -> 1
A86: RESIDENTIAL RESALE MARKET (Excluding Incline Village)
D87: % OF | E87: % OF | F87: RANK BY | G87: RANK BY
A88: TITLE COMPANY | B88: CLOSINGS | C88: DOLLAR VOLUME | D88: CLOSINGS | E88: DOLLAR VOLUME | F88: CLOSINGS | G88: DOLLAR VOLUME
A89: First Centennial Title | B89: 3320 | C89: 1646395076 | D89: =B89/$B$101 -> 0.3972242163 | E89: =C89/$C$101 -> 0.4268990544 | F89: 1 | G89: =RANK(C89,$C$89:$C$100) -> 1
A90: Western Title | B90: 1536 | C90: 637664662.3 | D90: 0.183776023 | E90: 0.1653421134 | F90: 2 | G90: =RANK(C90,$C$89:$C$100) -> 3
A91: Ticor Title | B91: 1423 | C91: 679873896.9 | D91: 0.1702560421 | E91: 0.1762866811 | F91: 3 | G91: 2
A92: Stewart Title | B92: 656 | C92: 302122208 | D92: 0.07848767648 | E92: 0.07833823532 | F92: 4 | G92: 4
A93: First American Title | B93: 614 | C93: 258485519.7 | D93: 0.07346255085 | E93: 0.06702353859 | F93: 5 | G93: 5
A94: Toiyabe Title | B94: 225 | C94: 83013700 | D94: 0.02692031587 | E94: 0.02152488825 | F94: 6 | G94: 7
A95: Acme Title and Escrow | B95: 197 | C95: 73954750 | D95: 0.02357023211 | E95: 0.01917596408 | F95: 7 | G95: 8
A96: North American Title | B96: 188 | C96: 73088439 | D96: 0.02249341948 | E96: 0.01895133553 | F96: 8 | G96: 9
A97: Signature Title Company | B97: 151 | C97: 84610202 | D97: 0.01806652309 | E97: 0.02193885037 | F97: 9 | G97: 6
A98: True Title and Escrow | B98: 34 | C98: 11644504 | D98: 0.004067958842 | E98: 0.003019340752 | F98: 10 | G98: 10
A99: Archer Title and Escrow | B99: 13 | C99: 5692400 | D99: 0.001555396028 | E99: 0.001476000635 | F99: 11 | G99: 11
A100: Calatlantic Title West | B100: 1 | C100: 92550 | D100: 0.0001196458483 | E100: 2.399758603e-05 | F100: 12 | G100: 12
A101: GRAND TOTAL | B101: =SUM(B89:B100) -> 8358 | C101: =SUM(C89:C100) -> 3856637908 | D101: =SUM(D89:D100) -> 1 | E101: =SUM(E89:E100) -> 1
A103: Information provided by Datasource
A104: www.datasourcenev.com

Sheet LOAN ONLY STATS
A1: LOAN ONLY MARKETS Washoe County, NV)
A2: ='OVERALL STATS'!A2 -> Reporting Period: JANUARY THROUGH DECEMBER, 2020
A4: CONVENTIONAL LOANS MARKET (Refi's)
D5: % OF | E5: % OF | F5: RANK BY | G5: RANK BY
A6: TITLECOMPANY | B6: CLOSINGS | C6: DOLLAR VOLUME | D6: CLOSINGS | E6: DOLLAR VOLUME | F6: CLOSINGS | G6: DOLLAR VOLUME
A7: First Centennial Title | B7: 3073 | C7: 972062430.6 | D7: =B7/$B$20 -> 0.2572193856 | E7: =C7/$C$20 -> 0.2671985354 | F7: 1 | G7: =RANK(C7,$C$7:$C$19) -> 1
A8: Western Title | B8: 2251 | C8: 673783532.5 | D8: =B8/$B$20 -> 0.1884155018 | E8: =C8/$C$20 -> 0.1852082411 | F8: 2 | G8: =RANK(C8,$C$7:$C$19) -> 2
A9: First American Title | B9: 2038 | C9: 618233870.6 | D9: =B9/$B$20 -> 0.1705867582 | E9: =C9/$C$20 -> 0.1699388635 | F9: 3 | G9: 3
A10: Ticor Title | B10: 1858 | C10: 608347830.6 | D10: 0.1555202143 | E10: 0.167221409 | F10: 4 | G10: 4
A11: Stewart Title | B11: 1520 | C11: 414918746.9 | D11: 0.127228593 | E11: 0.1140520176 | F11: 5 | G11: 5
A12: Acme Title and Escrow | B12: 473 | C12: 132496877 | D12: 0.03959152925 | E12: 0.03642047091 | F12: 6 | G12: 6
A13: Toiyabe Title | B13: 299 | C13: 85297655 | D13: 0.02502720348 | E13: 0.02344644517 | F13: 7 | G13: 7
A14: North American Title | B14: 216 | C14: 64281105.5 | D14: =B14/$B$20 -> 0.01807985268 | E14: =C14/$C$20 -> 0.01766945898 | F14: 8 | G14: 8
A15: Signature Title Company | B15: 106 | C15: 36009585 | D15: =B15/$B$20 -> 0.008872520298 | E15: =C15/$C$20 -> 0.00989824117 | F15: 9 | G15: 9
A16: True Title and Escrow | B16: 58 | C16: 14669844 | D16: =B16/$B$20 -> 0.004854775257 | E16: =C16/$C$20 -> 0.004032416753 | F16: 10 | G16: 10
A17: Archer Title and Escrow | B17: 29 | C17: 9632582 | D17: =B17/$B$20 -> 0.002427387629 | E17: =C17/$C$20 -> 0.002647784464 | F17: 11 | G17: 11
A18: Calatlantic Title West | B18: 18 | C18: 5950910 | D18: =B18/$B$20 -> 0.00150665439 | E18: =C18/$C$20 -> 0.001635773985 | F18: 12 | G18: 12
A19: Driggs Title Agency | B19: 8 | C19: 2293170 | D19: 0.0006696241734 | E19: 0.0006303418855 | F19: 13 | G19: 13
A20: GRAND TOTAL | B20: =SUM(B7:B19) -> 11947 | C20: =SUM(C7:C19) -> 3637978140 | D20: =SUM(D7:D19) -> 1 | E20: =SUM(E7:E19) -> 1
A22: COMMERCIAL LOANS MARKET
D23: % OF | E23: % OF | F23: RANK BY | G23: RANK BY
A24: TITLECOMPANY | B24: CLOSINGS | C24: DOLLAR VOLUME | D24: CLOSINGS | E24: DOLLAR VOLUME | F24: CLOSINGS | G24: DOLLAR VOLUME
A25: Ticor Title | B25: 64 | C25: 379130111.6 | D25: =B25/$B$33 -> 0.32 | E25: =C25/$C$33 -> 0.3150570716 | F25: 1 | G25: =RANK(C25,$C$25:$C$32) -> 2
A26: First American Title | B26: 53 | C26: 589862225.9 | D26: =B26/$B$33 -> 0.265 | E26: =C26/$C$33 -> 0.4901754302 | F26: 2 | G26: =RANK(C26,$C$25:$C$32) -> 1
A27: First Centennial Title | B27: 45 | C27: 185094461.2 | D27: =B27/$B$33 -> 0.225 | E27: =C27/$C$33 -> 0.1538134723 | F27: 3 | G27: 3
A28: Western Title | B28: 29 | C28: 41601031 | D28: =B28/$B$33 -> 0.145 | E28: =C28/$C$33 -> 0.03457045115 | F28: 4 | G28: 4
A29: Stewart Title | B29: 4 | C29: 3490000 | D29: =B29/$B$33 -> 0.02 | E29: =C29/$C$33 -> 0.002900189529 | F29: 5 | G29: 6
A30: Toiyabe Title | B30: 2 | C30: 3501800 | D30: =B30/$B$33 -> 0.01 | E30: =C30/$C$33 -> 0.002909995328 | F30: 6 | G30: 5
A31: Acme Title and Escrow | B31: 2 | C31: 325000 | D31: =B31/$B$33 -> 0.01 | E31: =C31/$C$33 -> 0.0002700749562 | F31: 6 | G31: 8
A32: North American Title | B32: 1 | C32: 365000 | D32: =B32/$B$33 -> 0.005 | E32: =C32/$C$33 -> 0.0003033149508 | F32: 7 | G32: 7
A33: GRAND TOTAL | B33: =SUM(B25:B32) -> 200 | C33: =SUM(C25:C32) -> 1203369630 | D33: =SUM(D25:D32) -> 1 | E33: =SUM(E25:E32) -> 1
A35: HOME EQUITY & CREDIT LINE LOANS MARKET
D36: % OF | E36: % OF | F36: RANK BY | G36: RANK BY
A37: TITLECOMPANY | B37: CLOSINGS | C37: DOLLAR VOLUME | D37: CLOSINGS | E37: DOLLAR VOLUME | F37: CLOSINGS | G37: DOLLAR VOLUME
A38: First Centennial Title | B38: 112 | C38: 21219375 | D38: =B38/$B$46 -> 0.3771043771 | E38: =C38/$C$46 -> 0.455025817 | F38: 1 | G38: =RANK(E38,$E$38:$E$45) -> 1
A39: Stewart Title | B39: 82 | C39: 4922099 | D39: =B39/$B$46 -> 0.2760942761 | E39: =C39/$C$46 -> 0.1055489202 | F39: 2 | G39: =RANK(E39,$E$38:$E$45) -> 4
A40: First American Title | B40: 42 | C40: 6927575 | D40: =B40/$B$46 -> 0.1414141414 | E40: =C40/$C$46 -> 0.148554115 | F40: 3 | G40: 3
A41: Ticor Title | B41: 32 | C41: 8746585 | D41: =B41/$B$46 -> 0.1077441077 | E41: =C41/$C$46 -> 0.1875607545 | F41: 4 | G41: 2
A42: Western Title | B42: 23 | C42: 3610545 | D42: =B42/$B$46 -> 0.07744107744 | E42: =C42/$C$46 -> 0.07742410833 | F42: 5 | G42: 5
A43: North American Title | B43: 3 | C43: 899800 | D43: =B43/$B$46 -> 0.0101010101 | E43: =C43/$C$46 -> 0.01929520687 | F43: 6 | G43: 6
A44: Signature Title Company | B44: 2 | C44: 300000 | D44: =B44/$B$46 -> 0.006734006734 | E44: =C44/$C$46 -> 0.006433165214 | F44: 7 | G44: 7
A45: Acme Title and Escrow | B45: 1 | C45: 7364 | D45: =B45/$B$46 -> 0.003367003367 | E45: =C45/$C$46 -> 0.0001579127621 | F45: 8 | G45: 8
A46: GRAND TOTAL | B46: =SUM(B38:B45) -> 297 | C46: =SUM(C38:C45) -> 46633343 | D46: =SUM(D38:D45) -> 1 | E46: =SUM(E38:E45) -> 1
A48: CONSTRUCTION LOANS MARKET
D49: % OF | E49: % OF | F49: RANK BY | G49: RANK BY
A50: TITLECOMPANY | B50: CLOSINGS | C50: DOLLAR VOLUME | D50: CLOSINGS | E50: DOLLAR VOLUME | F50: CLOSINGS | G50: DOLLAR VOLUME
A51: First American Title | B51: 53 | C51: 63812651.75 | D51: =B51/$B$57 -> 0.4907407407 | E51: =C51/$C$57 -> 0.248228721 | F51: 1 | G51: =RANK(E51,$E$51:$E$56) -> 3
A52: First Centennial Title | B52: 30 | C52: 93953310.15 | D52: =B52/$B$57 -> 0.2777777778 | E52: =C52/$C$57 -> 0.365474704 | F52: 2 | G52: =RANK(E52,$E$51:$E$56) -> 1
A53: Ticor Title | B53: 14 | C53: 69452300 | D53: =B53/$B$57 -> 0.1296296296 | E53: =C53/$C$57 -> 0.2701667322 | F53: 3 | G53: 2
A54: Western Title | B54: 9 | C54: 28584730 | D54: =B54/$B$57 -> 0.08333333333 | E54: =C54/$C$57 -> 0.1111934824 | F54: 4 | G54: 4
A55: Toiyabe Title | B55: 1 | C55: 929000 | D55: =B55/$B$57 -> 0.009259259259 | E55: =C55/$C$57 -> 0.003613773687 | F55: 5 | G55: 5
A56: Stewart Title | B56: 1 | C56: 340000 | D56: =B56/$B$57 -> 0.009259259259 | E56: =C56/$C$57 -> 0.00132258671 | F56: 5 | G56: 6
A57: GRAND TOTAL | B57: =SUM(B51:B56) -> 108 | C57: =SUM(C51:C56) -> 257071991.9 | D57: =SUM(D51:D56) -> 1 | E57: =SUM(E51:E56) -> 1
A59: HARD MONEY LOANS MARKET
D60: % OF | E60: % OF | F60: RANK BY | G60: RANK BY
A61: TITLECOMPANY | B61: CLOSINGS | C61: DOLLAR VOLUME | D61: CLOSINGS | E61: DOLLAR VOLUME | F61: CLOSINGS | G61: DOLLAR VOLUME
A62: First Centennial Title | B62: 91 | C62: 43669843.38 | D62: =B62/$B$71 -> 0.5055555556 | E62: =C62/$C$71 -> 0.4771103706 | F62: 1 | G62: =RANK(C62,$C$62:$C$70) -> 1
A63: Ticor Title | B63: 33 | C63: 23976170.7 | D63: =B63/$B$71 -> 0.1833333333 | E63: =C63/$C$71 -> 0.2619491805 | F63: 2 | G63: =RANK(C63,$C$62:$C$70) -> 2
A64: Western Title | B64: 28 | C64: 9452870.37 | D64: =B64/$B$71 -> 0.1555555556 | E64: =C64/$C$71 -> 0.1032763604 | F64: 3 | G64: 4
A65: First American Title | B65: 13 | C65: 9710650 | D65: =B65/$B$71 -> 0.07222222222 | E65: =C65/$C$71 -> 0.1060927052 | F65: 4 | G65: 3
A66: Stewart Title | B66: 7 | C66: 1654000 | D66: =B66/$B$71 -> 0.03888888889 | E66: =C66/$C$71 -> 0.01807060644 | F66: 5 | G66: 5
A67: Acme Title and Escrow | B67: 4 | C67: 576321.27 | D67: =B67/$B$71 -> 0.02222222222 | E67: =C67/$C$71 -> 0.006296538604 | F67: 6 | G67: 8
A68: Toiyabe Title | B68: 2 | C68: 1450000 | D68: =B68/$B$71 -> 0.01111111111 | E68: =C68/$C$71 -> 0.01584182547 | F68: 7 | G68: 6
A69: Signature Title Company | B69: 1 | C69: 600000 | D69: =B69/$B$71 -> 0.005555555556 | E69: =C69/$C$71 -> 0.006555238127 | F69: 8 | G69: 7
A70: North American Title | B70: 1 | C70: 440000 | D70: =B70/$B$71 -> 0.005555555556 | E70: =C70/$C$71 -> 0.004807174627 | F70: 8 | G70: 9
A71: GRAND TOTAL | B71: =SUM(B62:B70) -> 180 | C71: =SUM(C62:C70) -> 91529855.72 | D71: =SUM(D62:D70) -> 1 | E71: =SUM(E62:E70) -> 1
A73: CONVENTIONAL LOANS MARKET (Refi's) Excluding Incline Village
D74: % OF | E74: % OF | F74: RANK BY | G74: RANK BY
A75: TITLECOMPANY | B75: CLOSINGS | C75: DOLLAR VOLUME | D75: CLOSINGS | E75: DOLLAR VOLUME | F75: CLOSINGS | G75: DOLLAR VOLUME
A76: First Centennial Title | B76: 2952 | C76: 908914303.6 | D76: =B76/$B$71 -> 16.4 | E76: =C76/$C$71 -> 9.930249496 | F76: 1 | G76: =RANK(C76,$C$76:$C$88) -> 1
A77: Western Title | B77: 2229 | C77: 664543751.5 | D77: 12.38333333 | E77: 7.260404229 | F77: 2 | G77: =RANK(C77,$C$76:$C$88) -> 2
A78: First American Title | B78: 1961 | C78: 572755156 | D78: 10.89444444 | E78: 6.257577394 | F78: 3 | G78: 3
A79: Ticor Title | B79: 1727 | C79: 501494336.5 | D79: 9.594444444 | E79: 5.479024659 | F79: 4 | G79: 4
A80: Stewart Title | B80: 1509 | C80: 410929784.9 | D80: 8.383333333 | E80: 4.48957099 | F80: 5 | G80: 5
A81: Acme Title and Escrow | B81: 471 | C81: 132012327 | D81: 2.616666667 | E81: 1.442287065 | F81: 6 | G81: 6
A82: Toiyabe Title | B82: 298 | C82: 85059655 | D82: 1.655555556 | E82: 0.9293104892 | F82: 7 | G82: 7
A83: North American Title | B83: 215 | C83: 61523753 | D83: 1.194444444 | E83: 0.672171419 | F83: 8 | G83: 8
A84: Signature Title Company | B84: 103 | C84: 32306785 | D84: 0.5722222222 | E84: 0.352964448 | F84: 9 | G84: 9
A85: True Title and Escrow | B85: 58 | C85: 14669844 | D85: 0.3222222222 | E85: 0.1602738679 | F85: 10 | G85: 10
A86: Archer Title and Escrow | B86: 29 | C86: 9632582 | D86: 0.1611111111 | E86: 0.1052397813 | F86: 11 | G86: 11
A87: Calatlantic Title West | B87: 17 | C87: 5650910 | D87: 0.09444444444 | E87: 0.06173843448 | F87: 12 | G87: 12
A88: Driggs Title Agency | B88: 8 | C88: 2293170 | D88: 0.04444444444 | E88: 0.02505379236 | F88: 13 | G88: 13
A89: GRAND TOTAL | B89: =SUM(B76:B88) -> 11577 | C89: =SUM(C76:C88) -> 3401786359 | D89: =SUM(D76:D88) -> 64.31666667 | E89: =SUM(E76:E88) -> 37.16586606
A91: Information provided by Datasource
A92: www.datasourcenev.com

Sheet BRANCH SALES TRACKING
A1: BUILDER/DEVELOPER | B1: (All)
A2: PROPTYPE | B2: (All)
D4: Values
A5: TITLE COMPANY | B5: BRANCH | C5: EO | D5: CLOSINGS | E5: DOLLAR VOL. | F5: % OF CLOSINGS | G5: % OF DOLLAR VOL.
A6: Acme Title and Escrow | D6: 208 | E6: 75584250 | F6: 0.01713909031 | G6: 0.01020814276
B7: LANDER | D7: 208 | E7: 75584250 | F7: 0.01713909031 | G7: 0.01020814276
C8: LTE | D8: 120 | E8: 46255700 | F8: 0.009887936717 | G8: 0.006247132031
C9: RA | D9: 29 | E9: 11572300 | F9: 0.002389584707 | G9: 0.001562914106
C10: UNK | D10: 1 | E10: 60000 | F10: 8.239947264e-05 | G10: 8.103388811e-06
C11: YC | D11: 58 | E11: 17696250 | F11: 0.004779169413 | G11: 0.002389993238
A13: DHI Title of Nevada | D13: 388 | E13: 153310139 | F13: 0.03197099539 | G13: 0.02070552775
B14: LONGLEY | D14: 388 | E14: 153310139 | F14: 0.03197099539 | G14: 0.02070552775
C15: N/A | D15: 388 | E15: 153310139 | F15: 0.03197099539 | G15: 0.02070552775
A17: First American Title | D17: 1070 | E17: 1146394870 | F17: 0.08816743573 | G17: 0.154828056
B18: HENDERSON | D18: 2 | E18: 539000 | F18: 0.0001647989453 | G18: 7.279544282e-05
C19: TO | D19: 1 | E19: 189000 | F19: 8.239947264e-05 | G19: 2.552567476e-05
C20: DP | D20: 1 | E20: 350000 | F20: 8.239947264e-05 | G20: 4.726976807e-05
B22: INCLINE | D22: 203 | E22: 308272677 | F22: 0.01672709295 | G22: 0.04163422269
C23: VD | D23: 203 | E23: 308272677 | F23: 0.01672709295 | G23: 0.04163422269
B25: KIETZKE | D25: 537 | E25: 298344418.6 | F25: 0.04424851681 | G25: 0.04029334707
C26: KS | D26: 123 | E26: 46283606 | F26: 0.01013513514 | G26: 0.006250900917
C27: MLR | D27: 93 | E27: 115997727.5 | F27: 0.007663150956 | G27: 0.01566624479
C28: TO | D28: 2 | E28: 3669500 | F28: 0.0001647989453 | G28: 0.0004955897541
C29: TS | D29: 1 | E29: 295000 | F29: 8.239947264e-05 | G29: 3.984166166e-05
C30: TK | D30: 208 | E30: 84672995.13 | F30: 0.01713909031 | G30: 0.01143563669
C31: TM | D31: 36 | E31: 13418352 | F31: 0.002966381015 | G31: 0.001812235391
C32: MH | D32: 63 | E32: 28431738 | F32: 0.005191166777 | G32: 0.00383989046
C33: NMP | D33: 11 | E33: 5575500 | F33: 0.0009063941991 | G33: 0.0007530074053
B35: LAS VEGAS | D35: 17 | E35: 104064547 | F35: 0.001400791035 | G35: 0.01405459143
C36: NCS | D36: 6 | E36: 95342047 | F36: 0.0004943968359 | G36: 0.01287656128
C37: TO | D37: 1 | E37: 200000 | F37: 8.239947264e-05 | G37: 2.701129604e-05
C38: EDH | D38: 3 | E38: 927500 | F38: 0.0002471984179 | G38: 0.0001252648854
C39: RP | D39: 1 | E39: 270000 | F39: 8.239947264e-05 | G39: 3.646524965e-05
C40: ME | D40: 2 | E40: 745000 | F40: 0.0001647989453 | G40: 0.0001006170777
C41: BB | D41: 1 | E41: 3550000 | F41: 8.239947264e-05 | G41: 0.0004794505047
C42: KR | D42: 1 | E42: 1250000 | F42: 8.239947264e-05 | G42: 0.0001688206002
C43: RR | D43: 1 | E43: 1380000 | F43: 8.239947264e-05 | G43: 0.0001863779427
C44: LM | D44: 1 | E44: 400000 | F44: 8.239947264e-05 | G44: 5.402259208e-05
B46: MCCARRAN | D46: 1 | E46: 210000 | F46: 8.239947264e-05 | G46: 2.836186084e-05
C47: MK | D47: 1 | E47: 210000 | F47: 8.239947264e-05 | G47: 2.836186084e-05
B49: SOUTH KIETZKE | D49: 1 | E49: 879000 | F49: 8.239947264e-05 | G49: 0.0001187146461
C50: CY | D50: 1 | E50: 879000 | F50: 8.239947264e-05 | G50: 0.0001187146461
B52: SPARKS | D52: 287 | E52: 134327069 | F52: 0.02364864865 | G52: 0.01814174113
C53: CY | D53: 160 | E53: 67686517 | F53: 0.01318391562 | G53: 0.009141502742
C54: JP | D54: 127 | E54: 66640552 | F54: 0.01046473303 | G54: 0.009000238391
B56: MINDEN | D56: 4 | E56: 1339500 | F56: 0.0003295978906 | G56: 0.0001809081552
C57: MK | D57: 4 | E57: 1339500 | F57: 0.0003295978906 | G57: 0.0001809081552
B59: CHICAGO, IL | D59: 3 | E59: 13425000 | F59: 0.0002471984179 | G59: 0.001813133247
C60: NCS | D60: 3 | E60: 13425000 | F60: 0.0002471984179 | G60: 0.001813133247
B62: IRVINE, CA | D62: 1 | E62: 7000000 | F62: 8.239947264e-05 | G62: 0.0009453953613
C63: N/A | D63: 1 | E63: 7000000 | F63: 8.239947264e-05 | G63: 0.0009453953613
B65: SAN JOSE, CA | D65: 4 | E65: 90832000 | F65: 0.0003295978906 | G65: 0.01226745021
C66: NCS | D66: 4 | E66: 90832000 | F66: 0.0003295978906 | G66: 0.01226745021
B68: UNKNOWN | D68: 1 | E68: 4706658 | F68: 8.239947264e-05 | G68: 0.0006356646629
C69: NCS | D69: 1 | E69: 4706658 | F69: 8.239947264e-05 | G69: 0.0006356646629
B71: DENVER, CO | D71: 4 | E71: 117300000 | F71: 0.0003295978906 | G71: 0.01584212513
C72: NCS | D72: 4 | E72: 117300000 | F72: 0.0003295978906 | G72: 0.01584212513
B74: SEATTLE, WA | D74: 4 | E74: 64725000 | F74: 0.0003295978906 | G74: 0.00874153068
C75: NCS | D75: 4 | E75: 64725000 | F75: 0.0003295978906 | G75: 0.00874153068
B77: SANTA ANA, CA | D77: 1 | E77: 430000 | F77: 8.239947264e-05 | G77: 5.807428648e-05
C78: N/A | D78: 1 | E78: 430000 | F78: 8.239947264e-05 | G78: 5.807428648e-05
A80: First Centennial Title | D80: 4147 | E80: 2362811532 | F80: 0.3417106131 | G80: 0.3191130089
B81: Lyon | D81: 38 | E81: 17211436.94 | F81: 0.00313117996 | G81: 0.002324516092
C82: 23 | D82: 13 | E82: 5325150 | F82: 0.001071193144 | G82: 0.0007191960155
C83: 18 | D83: 11 | E83: 3917286.94 | F83: 0.0009063941991 | G83: 0.000529054986
C84: 17 | D84: 14 | E84: 7969000 | F84: 0.001153592617 | G84: 0.001076265091
B86: DAMONTE | D86: 380 | E86: 207489776.2 | F86: 0.0313117996 | G86: 0.02802283886
C87: 24 | D87: 378 | E87: 206322876.2 | F87: 0.03114700066 | G87: 0.02786524145
C88: LS | D88: 2 | E88: 1166900 | F88: 0.0001647989453 | G88: 0.0001575974067
B90: INCLINE | D90: 208 | E90: 323952188 | F90: 0.01713909031 | G90: 0.04375184226
C91: 25 | D91: 208 | E91: 323952188 | F91: 0.01713909031 | G91: 0.04375184226
B93: KIETZKE | D93: 3 | E93: 986000 | F93: 0.0002471984179 | G93: 0.0001331656895
C94: TK | D94: 1 | E94: 345000 | F94: 8.239947264e-05 | G94: 4.659448567e-05
C95: TM | D95: 1 | E95: 391000 | F95: 8.239947264e-05 | G95: 5.280708375e-05
C96: MH | D96: 1 | E96: 250000 | F96: 8.239947264e-05 | G96: 3.376412005e-05
B98: LAKESIDE | D98: 317 | E98: 146617022 | F98: 0.02612063283 | G98: 0.01980157893
C99: 12 | D99: 2 | E99: 988000 | F99: 0.0001647989453 | G99: 0.0001334358024
C100: 5 | D100: 313 | E100: 145251022 | F100: 0.02579103494 | G100: 0.01961709178
C101: 9 | D101: 1 | E101: 298000 | F101: 8.239947264e-05 | G101: 4.02468311e-05
C102: SL | D102: 1 | E102: 80000 | F102: 8.239947264e-05 | G102: 1.080451842e-05
B104: LAKESIDEMOANA | D104: 569 | E104: 223269769.9 | F104: 0.04688529993 | G104: 0.03015402925
C105: 12 | D105: 569 | E105: 223269769.9 | F105: 0.04688529993 | G105: 0.03015402925
B107: RIDGEVIEW | D107: 2194 | E107: 1252830199 | F107: 0.180784443 | G107: 0.1692028369
C108: 10 | D108: 444 | E108: 285272052.5 | F108: 0.03658536585 | G108: 0.03852783931
C109: 11 | D109: 307 | E109: 150211703 | F109: 0.0252966381 | G109: 0.02028706389
C110: 15 | D110: 289 | E110: 155753430 | F110: 0.02381344759 | G110: 0.02103551003
C111: 2 | D111: 25 | E111: 8204503 | F111: 0.002059986816 | G111: 0.001108071297
C112: 20 | D112: 432 | E112: 297677389 | F112: 0.03559657218 | G112: 0.04020326039
C113: 9 | D113: 686 | E113: 350913121 | F113: 0.05652603823 | G113: 0.04739309097
C114: SL | D114: 2 | E114: 583000 | F114: 0.0001647989453 | G114: 7.873792795e-05
C115: UNK | D115: 6 | E115: 3306000 | F115: 0.0004943968359 | G115: 0.0004464967235
C116: RB | D116: 2 | E116: 704000 | F116: 0.0001647989453 | G116: 9.507976205e-05
C117: KH | D117: 1 | E117: 205000 | F117: 8.239947264e-05 | G117: 2.768657844e-05
B119: SPARKS | D119: 438 | E119: 190455140.4 | F119: 0.03609096902 | G119: 0.02572220089
C120: 15 | D120: 1 | E120: 300000 | F120: 8.239947264e-05 | G120: 4.051694406e-05
C121: 21 | D121: 428 | E121: 187018550.4 | F121: 0.03526697429 | G121: 0.02525806714
C122: KS | D122: 8 | E122: 3020900 | F122: 0.0006591957811 | G122: 0.000407992121
C123: 25 | D123: 1 | E123: 115690 | F123: 8.239947264e-05 | G123: 1.562468419e-05
A125: North American Title | D125: 193 | E125: 74773439 | F125: 0.01590309822 | G125: 0.01009863748
B126: HAMMILL | D126: 193 | E126: 74773439 | F126: 0.01590309822 | G126: 0.01009863748
C127: RC | D127: 83 | E127: 35203750 | F127: 0.006839156229 | G127: 0.004754494564
C128: UNK | D128: 69 | E128: 26552739 | F128: 0.005685563612 | G128: 0.003586119469
C129: DMR | D129: 27 | E129: 8429650 | F129: 0.002224785761 | G129: 0.001138478858
C130: JF | D130: 4 | E130: 1383000 | F130: 0.0003295978906 | G130: 0.0001867831121
C131: KM | D131: 10 | E131: 3204300 | F131: 0.0008239947264 | G131: 0.0004327614795
A133: Ticor Title | D133: 2020 | E133: 1655511306 | F133: 0.1664469347 | G133: 0.2235875299
B134: Lyon | D134: 49 | E134: 19071700 | F134: 0.00403757416 | G134: 0.002575756673
C135: 23 | D135: 1 | E135: 250000 | F135: 8.239947264e-05 | G135: 3.376412005e-05
C136: DKD | D136: 31 | E136: 12050900 | F136: 0.002554383652 | G136: 0.001627552137
C137: TO | D137: 1 | E137: 359900 | F137: 8.239947264e-05 | G137: 4.860682722e-05
C138: DC | D138: 15 | E138: 6100900 | F138: 0.00123599209 | G138: 0.00082396608
C139: 17 | D139: 1 | E139: 310000 | F139: 8.239947264e-05 | G139: 4.186750886e-05
B141: FERNLEY | D141: 10 | E141: 2718000 | F141: 0.0008239947264 | G141: 0.0003670835132
C142: DNO | D142: 10 | E142: 2718000 | F142: 0.0008239947264 | G142: 0.0003670835132
B144: GARDNERVILLE | D144: 12 | E144: 4690400 | F144: 0.0009887936717 | G144: 0.0006334689147
C145: RLT | D145: 12 | E145: 4690400 | F145: 0.0009887936717 | G145: 0.0006334689147
B147: INCLINE | D147: 248 | E147: 439491939.7 | F147: 0.02043506922 | G147: 0.05935623445
C148: SLP | D148: 248 | E148: 439491939.7 | F148: 0.02043506922 | G148: 0.05935623445
B150: KIETZKE | D150: 782 | E150: 728170518.5 | F150: 0.06443638761 | G150: 0.0983441472
C151: AE | D151: 337 | E151: 168098002 | F151: 0.02776862228 | G151: 0.02270272448
C152: CD | D152: 116 | E152: 266365433.2 | F152: 0.009558338827 | G152: 0.03597437786
C153: KA | D153: 41 | E153: 15286153 | F153: 0.003378378378 | G153: 0.00206449402
C154: LTF | D154: 7 | E154: 1872400 | F154: 0.0005767963085 | G154: 0.0002528797535
C155: RLS | D155: 194 | E155: 77806262.09 | F155: 0.01598549769 | G155: 0.01050823989
C156: TO | D156: 28 | E156: 173522363.7 | F156: 0.002307185234 | G156: 0.02343531967
C157: ASH | D157: 5 | E157: 2136500 | F157: 0.0004119973632 | G157: 0.0002885481699
C158: ACM | D158: 53 | E158: 22723504.46 | F158: 0.00436717205 | G158: 0.00306895653
C159: AF | D159: 1 | E159: 359900 | F159: 8.239947264e-05 | G159: 4.860682722e-05
B161: LAKESIDE | D161: 891 | E161: 448512848.2 | F161: 0.07341793013 | G161: 0.0605745666
C162: 5 | D162: 2 | E162: 1205000 | F162: 0.0001647989453 | G162: 0.0001627430586
C163: JN | D163: 226 | E163: 104964787 | F163: 0.01862228082 | G163: 0.01417617468
C164: SL | D164: 548 | E164: 283147165.2 | F164: 0.04515491101 | G164: 0.03824085951
C165: SLP | D165: 5 | E165: 2429900 | F165: 0.0004119973632 | G165: 0.0003281737412
C166: NF | D166: 104 | E166: 53904995.93 | F166: 0.008569545155 | G166: 0.007280219015
C167: ASH | D167: 6 | E167: 2861000 | F167: 0.0004943968359 | G167: 0.0003863965898
B169: PLUMB | D169: 27 | E169: 12470900 | F169: 0.002224785761 | G169: 0.001684275859
C170: NF | D170: 27 | E170: 12470900 | F170: 0.002224785761 | G170: 0.001684275859
B172: RIDGEVIEW | D172: 1 | E172: 385000 | F172: 8.239947264e-05 | G172: 5.199674487e-05
C173: 9 | D173: 1 | E173: 385000 | F173: 8.239947264e-05 | G173: 5.199674487e-05
A175: Toiyabe Title | D175: 233 | E175: 84069700 | F175: 0.01919907713 | G175: 0.01135415777
B176: MCCARRAN | D176: 233 | E176: 84069700 | F176: 0.01919907713 | G176: 0.01135415777
C177: JH | D177: 114 | E177: 44678500 | F177: 0.009393539881 | G177: 0.00603412095
C178: UNK | D178: 50 | E178: 14695800 | F178: 0.004119973632 | G178: 0.001984763022
C179: LS | D179: 32 | E179: 13325200 | F179: 0.002636783125 | G179: 0.00179965461
C180: KM | D180: 19 | E180: 5635200 | F180: 0.00156558998 | G180: 0.0007610702772
C181: CE | D181: 18 | E181: 5735000 | F181: 0.001483190508 | G181: 0.0007745489139
A183: Western Title | D183: 2050 | E183: 867916546.3 | F183: 0.1689189189 | G183: 0.1172177538
B184: Lyon | D184: 26 | E184: 11214417.7 | F184: 0.002142386289 | G184: 0.001514579782
C185: AMG | D185: 20 | E185: 6241417.7 | F185: 0.001647989453 | G185: 0.000842943906
C186: KDJ | D186: 6 | E186: 4973000 | F186: 0.0004943968359 | G186: 0.000671635876
B188: FERNLEY | D188: 3 | E188: 772000 | F188: 0.0002471984179 | G188: 0.0001042636027
C189: MLC | D189: 2 | E189: 547000 | F189: 0.0001647989453 | G189: 7.387589466e-05
C190: EMB | D190: 1 | E190: 225000 | F190: 8.239947264e-05 | G190: 3.038770804e-05
B192: GARDNERVILLE | D192: 11 | E192: 5485400 | F192: 0.0009063941991 | G192: 0.0007408388164
C193: ARJ | D193: 6 | E193: 2594500 | F193: 0.0004943968359 | G193: 0.0003504040379
C194: WLD | D194: 3 | E194: 2100900 | F194: 0.0002471984179 | G194: 0.0002837401592
C195: SLA | D195: 2 | E195: 790000 | F195: 0.0001647989453 | G195: 0.0001066946194
B197: KIETZKE | D197: 1336 | E197: 567146668.9 | F197: 0.1100856955 | G197: 0.07659683286
C198: JMS | D198: 271 | E198: 99506728 | F198: 0.02233025709 | G198: 0.01343902844
C199: MDD | D199: 368 | E199: 144513489 | F199: 0.03032300593 | G199: 0.01951748316
C200: MLM | D200: 167 | E200: 71885578.92 | F200: 0.01376071193 | G200: 0.009708613265
C201: PAH | D201: 118 | E201: 94926284.55 | F201: 0.009723137772 | G201: 0.01282040987
C202: SAB | D202: 248 | E202: 84698013 | F202: 0.02043506922 | G202: 0.01143901551
C203: TEF | D203: 163 | E203: 71309900.45 | F203: 0.01343111404 | G203: 0.009630864157
C204: REF | D204: 1 | E204: 306675 | F204: 8.239947264e-05 | G204: 4.141844606e-05
B206: SOUTH KIETZKE | D206: 672 | E206: 281998059.6 | F206: 0.05537244562 | G206: 0.03808566536
C207: ASK | D207: 112 | E207: 47232300 | F207: 0.009228740936 | G207: 0.006379028189
C208: CKL | D208: 120 | E208: 51358719 | F208: 0.009887936717 | G208: 0.006936327815
C209: CRF | D209: 317 | E209: 129708862.7 | F209: 0.02612063283 | G209: 0.01751802244
C210: MIF | D210: 90 | E210: 38127546 | F210: 0.007415952538 | G210: 0.005149372161
C211: PHB | D211: 31 | E211: 14857000 | F211: 0.002554383652 | G211: 0.002006534126
C212: CRE | D212: 2 | E212: 713632 | F212: 0.0001647989453 | G212: 9.638062607e-05
B214: YERINGTON | D214: 2 | E214: 1300000 | F214: 0.0001647989453 | G214: 0.0001755734242
C215: SJL | D215: 2 | E215: 1300000 | F215: 0.0001647989453 | G215: 0.0001755734242
A217: Westminster Title - Las Vegas | D217: 469 | E217: 342260385 | F217: 0.03864535267 | G217: 0.04622448291
B218: LAS VEGAS | D218: 469 | E218: 342260385 | F218: 0.03864535267 | G218: 0.04622448291
C219: TB | D219: 469 | E219: 342260385 | F219: 0.03864535267 | G219: 0.04622448291
A221: Stewart Title | D221: 720 | E221: 339972065 | F221: 0.0593276203 | G221: 0.04591543046
B222: KIETZKE | D222: 1 | E222: 940000 | F222: 8.239947264e-05 | G222: 0.0001269530914
C223: MLM | D223: 1 | E223: 940000 | F223: 8.239947264e-05 | G223: 0.0001269530914
B225: PLUMB | D225: 495 | E225: 252316541 | F225: 0.04078773896 | G225: 0.03407698392
C226: 9 | D226: 1 | E226: 350000 | F226: 8.239947264e-05 | G226: 4.726976807e-05
C227: UNK | D227: 494 | E227: 251966541 | F227: 0.04070533949 | G227: 0.03402971415
B229: PROFESSIONAL | D229: 222 | E229: 84695524 | F229: 0.01829268293 | G229: 0.01143867936
C230: UNK | D230: 221 | E230: 84354274 | F230: 0.01821028345 | G230: 0.01139259134
C231: U | D231: 1 | E231: 341250 | F231: 8.239947264e-05 | G231: 4.608802386e-05
B233: SACRAMENTO, CA | D233: 1 | E233: 1200000 | F233: 8.239947264e-05 | G233: 0.0001620677762
C234: UNK | D234: 1 | E234: 1200000 | F234: 8.239947264e-05 | G234: 0.0001620677762
B236: ELKO | D236: 1 | E236: 820000 | F236: 8.239947264e-05 | G236: 0.0001107463138
C237: UNK | D237: 1 | E237: 820000 | F237: 8.239947264e-05 | G237: 0.0001107463138
A239: Archer Title and Escrow | D239: 13 | E239: 5692400 | F239: 0.001071193144 | G239: 0.0007687955078
B240: MCCARRAN | D240: 13 | E240: 5692400 | F240: 0.001071193144 | G240: 0.0007687955078
C241: RA | D241: 13 | E241: 5692400 | F241: 0.001071193144 | G241: 0.0007687955078
A243: Calatlantic Title West | D243: 437 | E243: 199563315 | F243: 0.03600856955 | G243: 0.0269523189
B244: MCCARRAN | D244: 432 | E244: 197330311 | F244: 0.03559657218 | G244: 0.02665073724
C245: LH | D245: 432 | E245: 197330311 | F245: 0.03559657218 | G245: 0.02665073724
B247: SOUTH KIETZKE | D247: 2 | E247: 1033154 | F247: 0.0001647989453 | G247: 0.0001395341427
C248: LH | D248: 2 | E248: 1033154 | F248: 0.0001647989453 | G248: 0.0001395341427
B250: LONGLEY | D250: 3 | E250: 1199850 | F250: 0.0002471984179 | G250: 0.0001620475178
C251: LH | D251: 2 | E251: 699900 | F251: 0.0001647989453 | G251: 9.452603049e-05
... 24 more rows

Sheet LENDER TRACKING
A1: TYPELOAN | B1: (All)
C3: Values
A4: LENDER | B4: TITLE COMPANY | C4: CLOSINGS | D4: DOLLAR VOL. | E4: % OF CLOSINGS | F4: % OF DOLLAR VOL.
A5: 21ST MORTGAGE CORPORATION | C5: 2 | D5: 301358.33 | E5: 0.0001570845115 | F5: 5.754865955e-05
B6: First Centennial Title | C6: 1 | D6: 199127.82 | E6: 7.854225573e-05 | F6: 3.802628957e-05
B7: Western Title | C7: 1 | D7: 102230.51 | E7: 7.854225573e-05 | F7: 1.952236998e-05
A9: ACADEMY MORTGAGE CORPORATION | C9: 7 | D9: 2165750 | E9: 0.0005497957901 | F9: 0.0004135807675
B10: First Centennial Title | C10: 1 | D10: 441750 | E10: 7.854225573e-05 | F10: 8.435844583e-05
B11: Ticor Title | C11: 1 | D11: 292800 | E11: 7.854225573e-05 | F11: 5.591432471e-05
B12: Western Title | C12: 5 | D12: 1431200 | E12: 0.0003927112787 | F12: 0.000273307997
A14: ACCESS BANK | C14: 1 | D14: 247200 | E14: 7.854225573e-05 | F14: 4.720635611e-05
B15: Western Title | C15: 1 | D15: 247200 | E15: 7.854225573e-05 | F15: 4.720635611e-05
A17: ADVANCIAL FEDERAL CREDIT UNION | C17: 1 | D17: 292000 | E17: 7.854225573e-05 | F17: 5.576155333e-05
B18: First Centennial Title | C18: 1 | D18: 292000 | E18: 7.854225573e-05 | F18: 5.576155333e-05
A20: AFFILIATED BANK NA | C20: 1 | D20: 405000 | E20: 7.854225573e-05 | F20: 7.734051061e-05
B21: First American Title | C21: 1 | D21: 405000 | E21: 7.854225573e-05 | F21: 7.734051061e-05
A23: ALAMEDA MORTGAGE CORPORATION | C23: 43 | D23: 9288287 | E23: 0.003377316997 | F23: 0.001773730517
B24: First American Title | C24: 1 | D24: 191800 | E24: 7.854225573e-05 | F24: 3.662693811e-05
B25: Ticor Title | C25: 2 | D25: 572800 | E25: 0.0001570845115 | F25: 0.0001093843074
B26: Western Title | C26: 1 | D26: 310766 | E26: 7.854225573e-05 | F26: 5.934518795e-05
B27: Stewart Title | C27: 34 | D27: 7228721 | E27: 0.002670436695 | F27: 0.001380427094
B28: True Title and Escrow | C28: 5 | D28: 984200 | E28: 0.0003927112787 | F28: 0.000187946989
A30: ALASKA USA FEDERAL CREDIT UNION | C30: 1 | D30: 250000 | E30: 7.854225573e-05 | F30: 4.774105593e-05
B31: First Centennial Title | C31: 1 | D31: 250000 | E31: 7.854225573e-05 | F31: 4.774105593e-05
A33: ALBRIGHT DEANE A TR; ALBRIGHT & ASSOCIATES LTD PROFIT SHARING PLAN & TRUST | C33: 1 | D33: 75000 | E33: 7.854225573e-05 | F33: 1.432231678e-05
B34: First Centennial Title | C34: 1 | D34: 75000 | E34: 7.854225573e-05 | F34: 1.432231678e-05
A36: ALINEA BUILDING & DEVELOPMENT LLC | C36: 1 | D36: 20000 | E36: 7.854225573e-05 | F36: 3.819284475e-06
B37: Western Title | C37: 1 | D37: 20000 | E37: 7.854225573e-05 | F37: 3.819284475e-06
A39: ALL WESTERN MORTGAGE INC | C39: 328 | D39: 100027708 | E39: 0.02576185988 | F39: 0.01910171361
B40: Acme Title and Escrow | C40: 4 | D40: 1575940 | E40: 0.0003141690229 | F40: 0.0003009481587
B41: First American Title | C41: 192 | D41: 51664676 | E41: 0.0150801131 | F41: 0.009866104747
B42: First Centennial Title | C42: 69 | D42: 27033770 | E42: 0.005419415646 | F42: 0.005162482903
B43: North American Title | C43: 11 | D43: 2907430 | E43: 0.0008639648131 | F43: 0.000555215113
B44: Ticor Title | C44: 8 | D44: 2608240 | E44: 0.0006283380459 | F44: 0.0004980805269
B45: Western Title | C45: 19 | D45: 6469604 | E45: 0.001492302859 | F45: 0.001235462906
B46: Stewart Title | C46: 24 | D46: 7487048 | E46: 0.001885014138 | F46: 0.001429758309
B47: Archer Title and Escrow | C47: 1 | D47: 281000 | E47: 7.854225573e-05 | F47: 5.366094687e-05
A49: ALLO FINANCIAL LLC | C49: 1 | D49: 325000 | E49: 7.854225573e-05 | F49: 6.206337271e-05
B50: Western Title | C50: 1 | D50: 325000 | E50: 7.854225573e-05 | F50: 6.206337271e-05
A52: ALTMANN D FREDERICK TR; ALTMANN JILL C TR; ALTMANN FAMILY 1991 TRUST | C52: 1 | D52: 300000 | E52: 7.854225573e-05 | F52: 5.728926712e-05
B53: First American Title | C53: 1 | D53: 300000 | E53: 7.854225573e-05 | F53: 5.728926712e-05
A55: AMERICA FIRST FEDERAL CREDIT UNION | C55: 10 | D55: 678900 | E55: 0.0007854225573 | F55: 0.0001296456115
B56: First American Title | C56: 9 | D56: 548900 | E56: 0.0007068803016 | F56: 0.0001048202624
B57: First Centennial Title | C57: 1 | D57: 130000 | E57: 7.854225573e-05 | F57: 2.482534909e-05
A59: AMERICAN ADVISORS GROUP | C59: 11 | D59: 7912537.5 | E59: 0.0008639648131 | F59: 0.001511011581
B60: First American Title | C60: 5 | D60: 3537000 | E60: 0.0003927112787 | F60: 0.0006754404593
B61: First Centennial Title | C61: 2 | D61: 1588537.5 | E61: 0.0001570845115 | F61: 0.0003033538306
B62: North American Title | C62: 1 | D62: 802500 | E62: 7.854225573e-05 | F62: 0.0001532487895
B63: Western Title | C63: 2 | D63: 1264500 | E63: 0.0001570845115 | F63: 0.0002414742609
B64: Stewart Title | C64: 1 | D64: 720000 | E64: 7.854225573e-05 | F64: 0.0001374942411
A66: AMERICAN AGCREDIT FLCA | C66: 1 | D66: 1300000 | E66: 7.854225573e-05 | F66: 0.0002482534909
B67: First American Title | C67: 1 | D67: 1300000 | E67: 7.854225573e-05 | F67: 0.0002482534909
A69: AMERICAN AIRLINES FEDERAL CREDIT UNION | C69: 1 | D69: 148000 | E69: 7.854225573e-05 | F69: 2.826270511e-05
B70: First American Title | C70: 1 | D70: 148000 | E70: 7.854225573e-05 | F70: 2.826270511e-05
A72: AMERICAN FINANCIAL NETWORK INC | C72: 7 | D72: 2099100 | E72: 0.0005497957901 | F72: 0.000400853002
B73: First American Title | C73: 2 | D73: 601000 | E73: 0.0001570845115 | F73: 0.0001147694985
B74: First Centennial Title | C74: 2 | D74: 477500 | E74: 0.0001570845115 | F74: 9.118541683e-05
B75: Ticor Title | C75: 1 | D75: 412500 | E75: 7.854225573e-05 | F75: 7.877274229e-05
B76: Western Title | C76: 1 | D76: 266100 | E76: 7.854225573e-05 | F76: 5.081557993e-05
B77: Stewart Title | C77: 1 | D77: 342000 | E77: 7.854225573e-05 | F77: 6.530976452e-05
A79: AMERICAN FINANCIAL RESOURCES INC | C79: 7 | D79: 1785885 | E79: 0.0005497957901 | F79: 0.0003410401427
B80: First American Title | C80: 1 | D80: 256000 | E80: 7.854225573e-05 | F80: 4.888684128e-05
B81: Toiyabe Title | C81: 2 | D81: 684416 | E81: 0.0001570845115 | F81: 0.0001306989701
B82: Western Title | C82: 4 | D82: 845469 | E82: 0.0003141690229 | F82: 0.0001614543313
A84: AMERICAN INTERNET MORTGAGE INC | C84: 3 | D84: 743000 | E84: 0.0002356267672 | F84: 0.0001418864182
B85: First Centennial Title | C85: 1 | D85: 207000 | E85: 7.854225573e-05 | F85: 3.952959431e-05
B86: Western Title | C86: 2 | D86: 536000 | E86: 0.0001570845115 | F86: 0.0001023568239
A88: AMERICAN PACIFIC MORTAGE CORPORATION | C88: 1 | D88: 244000 | E88: 7.854225573e-05 | F88: 4.659527059e-05
B89: First American Title | C89: 1 | D89: 244000 | E89: 7.854225573e-05 | F89: 4.659527059e-05
A91: AMERICAN PACIFIC MORTGAGE CORPORATION | C91: 92 | D91: 27792977 | E91: 0.007225887527 | F91: 0.005307464278
B92: Acme Title and Escrow | C92: 4 | D92: 959010 | E92: 0.0003141690229 | F92: 0.0001831366002
B93: First American Title | C93: 36 | D93: 10646695 | E93: 0.002827521206 | F93: 0.002033137846
B94: First Centennial Title | C94: 18 | D94: 5020684 | E94: 0.001413760603 | F94: 0.0009587710227
B95: North American Title | C95: 1 | D95: 373492 | E95: 7.854225573e-05 | F95: 7.132360985e-05
B96: Ticor Title | C96: 21 | D96: 7546079 | E96: 0.00164938737 | F96: 0.001441031118
B97: Western Title | C97: 11 | D97: 2832917 | E97: 0.0008639648131 | F97: 0.0005409857958
B98: Archer Title and Escrow | C98: 1 | D98: 414100 | E98: 7.854225573e-05 | F98: 7.907828505e-05
A100: AMERICAN RIVER BANK | C100: 3 | D100: 5268000 | E100: 0.0002356267672 | F100: 0.001005999531
B101: First American Title | C101: 1 | D101: 693000 | E101: 7.854225573e-05 | F101: 0.000132338207
B102: First Centennial Title | C102: 2 | D102: 4575000 | E102: 0.0001570845115 | F102: 0.0008736613236
A104: AMERIS BANK | C104: 1 | D104: 333542 | E104: 7.854225573e-05 | F104: 6.369458911e-05
B105: First American Title | C105: 1 | D105: 333542 | E105: 7.854225573e-05 | F105: 6.369458911e-05
A107: AMERISAVE MORTGAGE CORPORATION | C107: 3 | D107: 708946 | E107: 0.0002356267672 | F107: 0.0001353833226
B108: First Centennial Title | C108: 1 | D108: 86035 | E108: 7.854225573e-05 | F108: 1.642960699e-05
B109: Western Title | C109: 2 | D109: 622911 | E109: 0.0001570845115 | F109: 0.0001189537156
A111: AMERISAVE MORTGAGE CORPROATION | C111: 1 | D111: 440000 | E111: 7.854225573e-05 | F111: 8.402425844e-05
B112: Western Title | C112: 1 | D112: 440000 | E112: 7.854225573e-05 | F112: 8.402425844e-05
A114: AMRES CORPORATION | C114: 1 | D114: 395000 | E114: 7.854225573e-05 | F114: 7.543086837e-05
B115: Ticor Title | C115: 1 | D115: 395000 | E115: 7.854225573e-05 | F115: 7.543086837e-05
A117: AMWEST FUNDING CORP | C117: 4 | D117: 1161250 | E117: 0.0003141690229 | F117: 0.0002217572048
B118: First Centennial Title | C118: 1 | D118: 207200 | E118: 7.854225573e-05 | F118: 3.956778716e-05
B119: Western Title | C119: 3 | D119: 954050 | E119: 0.0002356267672 | F119: 0.0001821894177
A121: ARAMINI CHRISTOPHER ANGELO; ARAMINI KIM ELIZABETH | C121: 1 | D121: 75000 | E121: 7.854225573e-05 | F121: 1.432231678e-05
B122: Ticor Title | C122: 1 | D122: 75000 | E122: 7.854225573e-05 | F122: 1.432231678e-05
A124: ARBOR FINANCIAL GROUP | C124: 43 | D124: 13179467 | E124: 0.003377316997 | F124: 0.002516806685
B125: First American Title | C125: 8 | D125: 2220000 | E125: 0.0006283380459 | F125: 0.0004239405767
B126: First Centennial Title | C126: 5 | D126: 1575635 | E126: 0.0003927112787 | F126: 0.0003008899147
B127: North American Title | C127: 2 | D127: 776000 | E127: 0.0001570845115 | F127: 0.0001481882376
B128: Ticor Title | C128: 2 | D128: 564500 | E128: 0.0001570845115 | F128: 0.0001077993043
B129: Western Title | C129: 23 | D129: 7201832 | E129: 0.001806471882 | F129: 0.001375292257
B130: Stewart Title | C130: 2 | D130: 527500 | E130: 0.0001570845115 | F130: 0.000100733628
B131: Archer Title and Escrow | C131: 1 | D131: 314000 | E131: 7.854225573e-05 | F131: 5.996276625e-05
A133: ARVEST BANK | C133: 2 | D133: 535000 | E133: 0.0001570845115 | F133: 0.0001021658597
B134: First Centennial Title | C134: 1 | D134: 200000 | E134: 7.854225573e-05 | F134: 3.819284475e-05
B135: Ticor Title | C135: 1 | D135: 335000 | E135: 7.854225573e-05 | F135: 6.397301495e-05
A137: ASSELIN ROBERT J TR; ASSELIN MARY E TR; ASSELIN R & M 1994 FAMILY TRUST | C137: 1 | D137: 50000 | E137: 7.854225573e-05 | F137: 9.548211187e-06
B138: Ticor Title | C138: 1 | D138: 50000 | E138: 7.854225573e-05 | F138: 9.548211187e-06
A140: ASSOCIATES PROVIDENT FUNDING LP | C140: 1 | D140: 293000 | E140: 7.854225573e-05 | F140: 5.595251755e-05
B141: Western Title | C141: 1 | D141: 293000 | E141: 7.854225573e-05 | F141: 5.595251755e-05
A143: ATHAS CAPITAL GROUP INC | C143: 1 | D143: 250000 | E143: 7.854225573e-05 | F143: 4.774105593e-05
B144: Stewart Title | C144: 1 | D144: 250000 | E144: 7.854225573e-05 | F144: 4.774105593e-05
A146: ATKINS ERIC M TR; ATKINS HEIDI M TR; ATKINS LIVING TRUST | C146: 1 | D146: 375000 | E146: 7.854225573e-05 | F146: 7.16115839e-05
B147: First Centennial Title | C147: 1 | D147: 375000 | E147: 7.854225573e-05 | F147: 7.16115839e-05
A149: AXIA FINANCIAL LLC | C149: 344 | D149: 94933111 | E149: 0.02701853597 | F149: 0.01812882785
B150: First American Title | C150: 33 | D150: 9770300 | E150: 0.002591894439 | F150: 0.001865777755
B151: First Centennial Title | C151: 37 | D151: 11034281 | E151: 0.002906063462 | F151: 0.002107152906
B152: Ticor Title | C152: 119 | D152: 32638610 | E152: 0.009346528432 | F152: 0.006232806822
B153: Toiyabe Title | C153: 1 | D153: 239000 | E153: 7.854225573e-05 | F153: 4.564044947e-05
B154: Western Title | C154: 38 | D154: 9729462 | E154: 0.002984605718 | F154: 0.001857979158
B155: Stewart Title | C155: 113 | D155: 30502958 | E155: 0.008875274898 | F155: 0.005824973696
B156: Archer Title and Escrow | C156: 1 | D156: 295500 | E156: 7.854225573e-05 | F156: 5.642992811e-05
B157: Signature Title Company | C157: 2 | D157: 723000 | E157: 0.0001570845115 | F157: 0.0001380671338
A159: AXOS BANK | C159: 1 | D159: 1400000 | E159: 7.854225573e-05 | F159: 0.0002673499132
B160: Stewart Title | C160: 1 | D160: 1400000 | E160: 7.854225573e-05 | F160: 0.0002673499132
A162: BAINES THOMAS W TR; BAINES SUSAN L TR; BAINES REVOCABLE LIVING TRUST | C162: 1 | D162: 240000 | E162: 7.854225573e-05 | F162: 4.58314137e-05
B163: First American Title | C163: 1 | D163: 240000 | E163: 7.854225573e-05 | F163: 4.58314137e-05
A165: BANK OF AMERICA NA | C165: 23 | D165: 53945828 | E165: 0.001806471882 | F165: 0.01030172317
B166: First American Title | C166: 1 | D166: 3000000 | E166: 7.854225573e-05 | F166: 0.0005728926712
B167: First Centennial Title | C167: 7 | D167: 2891351 | E167: 0.0005497957901 | F167: 0.0005521445992
B168: Ticor Title | C168: 10 | D168: 46215370 | E168: 0.0007854225573 | F168: 0.008825482256
B169: Western Title | C169: 5 | D169: 1839107 | E169: 0.0003927112787 | F169: 0.0003512036406
A171: BANK OF ENGLAND | C171: 3 | D171: 1221200 | E171: 0.0002356267672 | F171: 0.00023320551
B172: First American Title | C172: 2 | D172: 710800 | E172: 0.0001570845115 | F172: 0.0001357373702
B173: Western Title | C173: 1 | D173: 510400 | E173: 7.854225573e-05 | F173: 9.746813979e-05
A175: BANK OF FEATHER RIVER | C175: 1 | D175: 500000 | E175: 7.854225573e-05 | F175: 9.548211187e-05
B176: First American Title | C176: 1 | D176: 500000 | E176: 7.854225573e-05 | F176: 9.548211187e-05
A178: BANK OF HOPE | C178: 1 | D178: 500000 | E178: 7.854225573e-05 | F178: 9.548211187e-05
B179: Ticor Title | C179: 1 | D179: 500000 | E179: 7.854225573e-05 | F179: 9.548211187e-05
A181: BANK OF THE WEST | C181: 32 | D181: 26810033.75 | E181: 0.002513352183 | F181: 0.005119757283
B182: First American Title | C182: 25 | D182: 5352175 | E182: 0.001963556393 | F182: 0.001022073944
B183: First Centennial Title | C183: 2 | D183: 2984577 | E183: 0.0001570845115 | F183: 0.00056994743
B184: Ticor Title | C184: 5 | D184: 18473281.75 | E184: 0.0003927112787 | F184: 0.003527735909
A186: BARINGS MULTIFAMILY CAPITAL LLC | C186: 1 | D186: 1700000 | E186: 7.854225573e-05 | F186: 0.0003246391803
B187: Ticor Title | C187: 1 | D187: 1700000 | E187: 7.854225573e-05 | F187: 0.0003246391803
A189: BARNETT & ASSOCIATES ACCOUNTANCY CORPORATION PROFIT SHARING PLAN; NEFF BRIAN W RETIREMENT PLAN; HOLLANDER PHYLLIS TR; HOLLANDER FAMILY TRUST; HOUSTON KELLY P TR | C189: 1 | D189: 350000 | E189: 7.854225573e-05 | F189: 6.683747831e-05
B190: First Centennial Title | C190: 1 | D190: 350000 | E190: 7.854225573e-05 | F190: 6.683747831e-05
A192: BARR DOUGLAS | C192: 1 | D192: 40000 | E192: 7.854225573e-05 | F192: 7.638568949e-06
B193: First Centennial Title | C193: 1 | D193: 40000 | E193: 7.854225573e-05 | F193: 7.638568949e-06
A195: BARRETT FINANCIAL GROUP LLC | C195: 2 | D195: 669740 | E195: 0.0001570845115 | F195: 0.0001278963792
B196: First American Title | C196: 2 | D196: 669740 | E196: 0.0001570845115 | F196: 0.0001278963792
A198: BATES BRETT; BATES GINA | C198: 1 | D198: 470000 | E198: 7.854225573e-05 | F198: 8.975318515e-05
B199: First Centennial Title | C199: 1 | D199: 470000 | E199: 7.854225573e-05 | F199: 8.975318515e-05
A201: BAY EQUITY LLC | C201: 173 | D201: 52341813 | E201: 0.01358781024 | F201: 0.009995413688
B202: Acme Title and Escrow | C202: 65 | D202: 20121616 | E202: 0.005105246623 | F202: 0.00384250878
B203: First American Title | C203: 4 | D203: 1250750 | E203: 0.0003141690229 | F203: 0.0002388485028
B204: First Centennial Title | C204: 12 | D204: 3566873 | E204: 0.0009425070688 | F204: 0.0006811451336
B205: Ticor Title | C205: 49 | D205: 15297630 | E205: 0.003848570531 | F205: 0.002921300038
B206: Western Title | C206: 17 | D206: 4423301 | E206: 0.001335218347 | F206: 0.0008446922418
B207: Stewart Title | C207: 26 | D207: 7681643 | E207: 0.002042098649 | F207: 0.001466918992
A209: BAY VALLEY MORTGAGE GROUP | C209: 7 | D209: 2032820 | E209: 0.0005497957901 | F209: 0.0003881958933
B210: Acme Title and Escrow | C210: 1 | D210: 352890 | E210: 7.854225573e-05 | F210: 6.738936491e-05
B211: Ticor Title | C211: 6 | D211: 1679930 | E211: 0.0004712535344 | F211: 0.0003208065284
A213: BBVA USA | C213: 1 | D213: 692000 | E213: 7.854225573e-05 | F213: 0.0001321472428
B214: Ticor Title | C214: 1 | D214: 692000 | E214: 7.854225573e-05 | F214: 0.0001321472428
A216: BERG DAVID D TR; BERG MCKENNA L TR; BERG TRUST | C216: 1 | D216: 320000 | E216: 7.854225573e-05 | F216: 6.110855159e-05
B217: Western Title | C217: 1 | D217: 320000 | E217: 7.854225573e-05 | F217: 6.110855159e-05
A219: BERKADIA COMMERCIAL MORTGAGE LLC | C219: 6 | D219: 165522000 | E219: 0.0004712535344 | F219: 0.03160878024
B220: First American Title | C220: 5 | D220: 158272000 | E220: 0.0003927112787 | F220: 0.03022428962
B221: First Centennial Title | C221: 1 | D221: 7250000 | E221: 7.854225573e-05 | F221: 0.001384490622
A223: BERKELEY POINT CAPITAL LLC | C223: 1 | D223: 93581000 | E223: 7.854225573e-05 | F223: 0.01787062302
B224: First Centennial Title | C224: 1 | D224: 93581000 | E224: 7.854225573e-05 | F224: 0.01787062302
A226: BEST CAPITAL FUNDING | C226: 2 | D226: 679000 | E226: 0.0001570845115 | F226: 0.0001296647079
B227: First Centennial Title | C227: 1 | D227: 294000 | E227: 7.854225573e-05 | F227: 5.614348178e-05
B228: Ticor Title | C228: 1 | D228: 385000 | E228: 7.854225573e-05 | F228: 7.352122614e-05
A230: BH PROPERTIES LLC | C230: 1 | D230: 25980 | E230: 7.854225573e-05 | F230: 4.961250533e-06
B231: First Centennial Title | C231: 1 | D231: 25980 | E231: 7.854225573e-05 | F231: 4.961250533e-06
A233: BIXLER WILLIAM RANDALL TR; BIXLER LINDA J TR; BIXLER FAMILY TRUST; JOHNSON ELIZABETH A; VALLIERE RICHARD E TR | C233: 1 | D233: 748000 | E233: 7.854225573e-05 | F233: 0.0001428412394
B234: First Centennial Title | C234: 1 | D234: 748000 | E234: 7.854225573e-05 | F234: 0.0001428412394
A236: BLUELEAF LENDING LLC | C236: 1 | D236: 358500 | E236: 7.854225573e-05 | F236: 6.846067421e-05
B237: First Centennial Title | C237: 1 | D237: 358500 | E237: 7.854225573e-05 | F237: 6.846067421e-05
A239: BNC NATIONAL BANK | C239: 1 | D239: 230000 | E239: 7.854225573e-05 | F239: 4.392177146e-05
B240: Ticor Title | C240: 1 | D240: 230000 | E240: 7.854225573e-05 | F240: 4.392177146e-05
A242: BNY MELLON NA | C242: 1 | D242: 750000 | E242: 7.854225573e-05 | F242: 0.0001432231678
B243: Ticor Title | C243: 1 | D243: 750000 | E243: 7.854225573e-05 | F243: 0.0001432231678
A245: BONARI & CO CPAS 401 K PLAN; BONARI GEORGE A | C245: 1 | D245: 150000 | E245: 7.854225573e-05 | F245: 2.864463356e-05
B246: First Centennial Title | C246: 1 | D246: 150000 | E246: 7.854225573e-05 | F246: 2.864463356e-05
A248: BONARI GEORGE A | C248: 1 | D248: 50506.3 | E248: 7.854225573e-05 | F248: 9.644896373e-06
B249: First Centennial Title | C249: 1 | D249: 50506.3 | E249: 7.854225573e-05 | F249: 9.644896373e-06
A251: BORST KATHLEEN JOAN TR; BORST K J LIVING TRUST | C251: 1 | D251: 50000 | E251: 7.854225573e-05 | F251: 9.548211187e-06
B252: Ticor Title | C252: 1 | D252: 50000 | E252: 7.854225573e-05 | F252: 9.548211187e-06
A254: BOURNS EFCU | C254: 2 | D254: 405000 | E254: 0.0001570845115 | F254: 7.734051061e-05
B255: First American Title | C255: 2 | D255: 405000 | E255: 0.0001570845115 | F255: 7.734051061e-05
A257: BOWDEN WILLIAM H TR; BOWDEN MARILYN M TR; BOWDEN FAMILY TRUST | C257: 1 | D257: 50000 | E257: 7.854225573e-05 | F257: 9.548211187e-06
B258: Stewart Title | C258: 1 | D258: 50000 | E258: 7.854225573e-05 | F258: 9.548211187e-06
A260: BROWN WALTER J; BROWN DONNA M | C260: 3 | D260: 420000 | E260: 0.0002356267672 | F260: 8.020497397e-05
B261: First Centennial Title | C261: 3 | D261: 420000 | E261: 0.0002356267672 | F261: 8.020497397e-05
A263: BUCHANAN MORTGAGE HOLDINGS LLC | C263: 1 | D263: 9500000 | E263: 7.854225573e-05 | F263: 0.001814160125
B264: First Centennial Title | C264: 1 | D264: 9500000 | E264: 7.854225573e-05 | F264: 0.001814160125
A266: C P BLUTH ENTERPRISES INC | C266: 1 | D266: 36000 | E266: 7.854225573e-05 | F266: 6.874712054e-06
B267: First Centennial Title | C267: 1 | D267: 36000 | E267: 7.854225573e-05 | F267: 6.874712054e-06
... 1482 more rows

Sheet BUILDER TRACKING
A1: BUILDER TRACKING
A2: ='OVERALL STATS'!A2 -> Reporting Period: JANUARY THROUGH DECEMBER, 2020
A4: BUILDER | B4: CLOSINGS | C4: DOLLARVOL | D4: AVERAGE | E4: % OF CLOSINGS | F4: % OF $$$ VOLUME
A5: LENNAR RENO LLC | B5: 434 | C5: 198635815 | D5: 457686.2097 | E5: =Table2[[#This Row],[CLOSINGS]]/$B$74 -> 0.1998158379 | F5: =Table2[[#This Row],[DOLLARVOL]]/$C$74 -> 0.1763249929
A6: TOLL NV LIMITED PARTNERSHIP | B6: 390 | C6: 262812949 | D6: 673879.3564 | E6: =Table2[[#This Row],[CLOSINGS]]/$B$74 -> 0.179558011 | F6: =Table2[[#This Row],[DOLLARVOL]]/$C$74 -> 0.233293736
A7: DR HORTON INC | B7: 381 | C7: 150676384 | D7: 395476.0735 | E7: =Table2[[#This Row],[CLOSINGS]]/$B$74 -> 0.1754143646 | F7: =Table2[[#This Row],[DOLLARVOL]]/$C$74 -> 0.1337523767
A8: SILVERADO EAGLE CANYON LLC | B8: 58 | C8: 27047218 | D8: 466331.3448 | E8: =Table2[[#This Row],[CLOSINGS]]/$B$74 -> 0.02670349908 | F8: =Table2[[#This Row],[DOLLARVOL]]/$C$74 -> 0.02400926803
A9: PARADISO COMMUNITIES LLC | B9: 54 | C9: 20094563 | D9: 372121.537 | E9: =Table2[[#This Row],[CLOSINGS]]/$B$74 -> 0.02486187845 | F9: =Table2[[#This Row],[DOLLARVOL]]/$C$74 -> 0.0178375369
A10: WVN PHASE 21 LLC | B10: 48 | C10: 17428743 | D10: 363098.8125 | E10: =Table2[[#This Row],[CLOSINGS]]/$B$74 -> 0.02209944751 | F10: =Table2[[#This Row],[DOLLARVOL]]/$C$74 -> 0.01547114243
A11: FALCON RIDGE BY DESERT WIND LP | B11: 45 | C11: 14918430 | D11: 331520.6667 | E11: =Table2[[#This Row],[CLOSINGS]]/$B$74 -> 0.02071823204 | F11: =Table2[[#This Row],[DOLLARVOL]]/$C$74 -> 0.01324278839
A12: RANCHO HILLS BY DESERT WIND LP | B12: 45 | C12: 13861887 | D12: 308041.9333 | E12: =Table2[[#This Row],[CLOSINGS]]/$B$74 -> 0.02071823204 | F12: =Table2[[#This Row],[DOLLARVOL]]/$C$74 -> 0.01230491655
A13: TOLL NORTH RENO LLC | B13: 43 | C13: 42654975 | D13: 991976.1628 | E13: =Table2[[#This Row],[CLOSINGS]]/$B$74 -> 0.01979742173 | F13: =Table2[[#This Row],[DOLLARVOL]]/$C$74 -> 0.03786395805
A14: JC NV FLATS LLC | B14: 42 | C14: 12585254.5 | D14: 299648.9167 | E14: =Table2[[#This Row],[CLOSINGS]]/$B$74 -> 0.01933701657 | F14: =Table2[[#This Row],[DOLLARVOL]]/$C$74 -> 0.01117167572
A15: TERRENO DEVELOPMENT LLC | B15: 40 | C15: 20562680.45 | D15: 514067.0112 | E15: =Table2[[#This Row],[CLOSINGS]]/$B$74 -> 0.01841620626 | F15: =Table2[[#This Row],[DOLLARVOL]]/$C$74 -> 0.01825307528
A16: NEVADA FINISH LLC | B16: 37 | C16: 14111607 | D16: 381394.7838 | E16: =Table2[[#This Row],[CLOSINGS]]/$B$74 -> 0.01703499079 | F16: =Table2[[#This Row],[DOLLARVOL]]/$C$74 -> 0.01252658794
A17: WEDGE MEADOWS HOMES LLC | B17: 35 | C17: 23886578 | D17: 682473.6571 | E17: =Table2[[#This Row],[CLOSINGS]]/$B$74 -> 0.01611418048 | F17: =Table2[[#This Row],[DOLLARVOL]]/$C$74 -> 0.02120363187
A18: RYDER SHADOW LLC | B18: 35 | C18: 21236046 | D18: 606744.1714 | E18: =Table2[[#This Row],[CLOSINGS]]/$B$74 -> 0.01611418048 | F18: =Table2[[#This Row],[DOLLARVOL]]/$C$74 -> 0.01885080826
A19: TOLL SOUTH RENO LLC | B19: 30 | C19: 32592558 | D19: 1086418.6 | E19: =Table2[[#This Row],[CLOSINGS]]/$B$74 -> 0.0138121547 | F19: =Table2[[#This Row],[DOLLARVOL]]/$C$74 -> 0.02893175412
A20: EAGLE CANYON SOUTH LLC | B20: 29 | C20: 12873768 | D20: 443923.0345 | E20: =Table2[[#This Row],[CLOSINGS]]/$B$74 -> 0.01335174954 | F20: =Table2[[#This Row],[DOLLARVOL]]/$C$74 -> 0.01142778331
A21: SBE 64 POINTE LLC | B21: 27 | C21: 19291139 | D21: 714486.6296 | E21: =Table2[[#This Row],[CLOSINGS]]/$B$74 -> 0.01243093923 | F21: =Table2[[#This Row],[DOLLARVOL]]/$C$74 -> 0.01712435367
A22: SILVERADO CYAN LLC | B22: 27 | C22: 10972648 | D22: 406394.3704 | E22: =Table2[[#This Row],[CLOSINGS]]/$B$74 -> 0.01243093923 | F22: =Table2[[#This Row],[DOLLARVOL]]/$C$74 -> 0.009740197563
A23: WEST COAST HOME BUILDERS INC | B23: 26 | C23: 15737096.36 | D23: 605272.9369 | E23: =Table2[[#This Row],[CLOSINGS]]/$B$74 -> 0.01197053407 | F23: =Table2[[#This Row],[DOLLARVOL]]/$C$74 -> 0.01396950195
A24: QUEST RENO LLC | B24: 25 | C24: 14621819 | D24: 584872.76 | E24: =Table2[[#This Row],[CLOSINGS]]/$B$74 -> 0.01151012891 | F24: =Table2[[#This Row],[DOLLARVOL]]/$C$74 -> 0.01297949281
A25: BATES STRINGER RENO LLC | B25: 24 | C25: 18008191 | D25: 750341.2917 | E25: =Table2[[#This Row],[CLOSINGS]]/$B$74 -> 0.01104972376 | F25: =Table2[[#This Row],[DOLLARVOL]]/$C$74 -> 0.0159855067
A26: JENUANE COMMUNITIES ESPLANADE LLC | B26: 24 | C26: 9077716 | D26: 378238.1667 | E26: =Table2[[#This Row],[CLOSINGS]]/$B$74 -> 0.01104972376 | F26: =Table2[[#This Row],[DOLLARVOL]]/$C$74 -> 0.008058104777
A27: REGENCY PARK HOMES INC | B27: 24 | C27: 8290604 | D27: 345441.8333 | E27: =Table2[[#This Row],[CLOSINGS]]/$B$74 -> 0.01104972376 | F27: =Table2[[#This Row],[DOLLARVOL]]/$C$74 -> 0.007359401384
A28: TL WHISPERING CANYON LP | B28: 21 | C28: 20565301 | D28: 979300.0476 | E28: =Table2[[#This Row],[CLOSINGS]]/$B$74 -> 0.009668508287 | F28: =Table2[[#This Row],[DOLLARVOL]]/$C$74 -> 0.01825540149
A29: NORTHERN NEVADA HOMES LLC | B29: 20 | C29: 7995387 | D29: 399769.35 | E29: =Table2[[#This Row],[CLOSINGS]]/$B$74 -> 0.009208103131 | F29: =Table2[[#This Row],[DOLLARVOL]]/$C$74 -> 0.007097343228
A30: JC BLACKSTONE LLC | B30: 19 | C30: 9105992.06 | D30: 479262.74 | E30: =Table2[[#This Row],[CLOSINGS]]/$B$74 -> 0.008747697974 | F30: =Table2[[#This Row],[DOLLARVOL]]/$C$74 -> 0.008083204863
A31: WOODLAND VILLAGE PHASE 22 LLC | B31: 18 | C31: 6697558 | D31: 372086.5556 | E31: =Table2[[#This Row],[CLOSINGS]]/$B$74 -> 0.008287292818 | F31: =Table2[[#This Row],[DOLLARVOL]]/$C$74 -> 0.00594528669
A32: RYDER SIERRA SHADOWS LLC | B32: 15 | C32: 7260715 | D32: 484047.6667 | E32: =Table2[[#This Row],[CLOSINGS]]/$B$74 -> 0.006906077348 | F32: =Table2[[#This Row],[DOLLARVOL]]/$C$74 -> 0.006445189762
A33: JENUANE COMMUNITIES NORTHRIDGE LLC | B33: 15 | C33: 6263138 | D33: 417542.5333 | E33: =Table2[[#This Row],[CLOSINGS]]/$B$74 -> 0.006906077348 | F33: =Table2[[#This Row],[DOLLARVOL]]/$C$74 -> 0.005559660848
A34: SILVER MEADOWS HOMES LLC | B34: 14 | C34: 6389460 | D34: 456390 | E34: =Table2[[#This Row],[CLOSINGS]]/$B$74 -> 0.006445672192 | F34: =Table2[[#This Row],[DOLLARVOL]]/$C$74 -> 0.005671794331
A35: TL BRIDLE GATE LP | B35: 13 | C35: 8651074 | D35: 665467.2308 | E35: =Table2[[#This Row],[CLOSINGS]]/$B$74 -> 0.005985267035 | F35: =Table2[[#This Row],[DOLLARVOL]]/$C$74 -> 0.007679383308
A36: SILVERADO SKY RIDGE LLC | B36: 13 | C36: 7371298 | D36: 567022.9231 | E36: =Table2[[#This Row],[CLOSINGS]]/$B$74 -> 0.005985267035 | F36: =Table2[[#This Row],[DOLLARVOL]]/$C$74 -> 0.006543352053
A37: PINE BLUFF PROPERTIES LLC | B37: 9 | C37: 10581343 | D37: 1175704.778 | E37: =Table2[[#This Row],[CLOSINGS]]/$B$74 -> 0.004143646409 | F37: =Table2[[#This Row],[DOLLARVOL]]/$C$74 -> 0.009392844034
A38: SUNSET JENUANE 2016 LLC | B38: 9 | C38: 6633494 | D38: 737054.8889 | E38: =Table2[[#This Row],[CLOSINGS]]/$B$74 -> 0.004143646409 | F38: =Table2[[#This Row],[DOLLARVOL]]/$C$74 -> 0.005888418374
A39: MALLARD CROSSING BY DESERT WIND LLC | B39: 8 | C39: 3553912 | D39: 444239 | E39: =Table2[[#This Row],[CLOSINGS]]/$B$74 -> 0.003683241252 | F39: =Table2[[#This Row],[DOLLARVOL]]/$C$74 -> 0.003154735758
A40: JC BLACKSTONE LLC; BLACKSTONE JC LLC | B40: 7 | C40: 3260400.5 | D40: 465771.5 | E40: =Table2[[#This Row],[CLOSINGS]]/$B$74 -> 0.003222836096 | F40: =Table2[[#This Row],[DOLLARVOL]]/$C$74 -> 0.002894191539
A41: ARTISAN MYSTIC MOUNTAIN LLC | B41: 6 | C41: 4926586 | D41: 821097.6667 | E41: =Table2[[#This Row],[CLOSINGS]]/$B$74 -> 0.002762430939 | F41: =Table2[[#This Row],[DOLLARVOL]]/$C$74 -> 0.004373230687
A42: JC ESTANCIA LLC | B42: 6 | C42: 2349826 | D42: 391637.6667 | E42: =Table2[[#This Row],[CLOSINGS]]/$B$74 -> 0.002762430939 | F42: =Table2[[#This Row],[DOLLARVOL]]/$C$74 -> 0.002085892984
A43: SHADOW RIDGE 7 LLC | B43: 5 | C43: 3193474 | D43: 638694.8 | E43: =Table2[[#This Row],[CLOSINGS]]/$B$74 -> 0.002302025783 | F43: =Table2[[#This Row],[DOLLARVOL]]/$C$74 -> 0.00283478224
A44: TOWN CENTER TH LLC | B44: 5 | C44: 2917340 | D44: 583468 | E44: =Table2[[#This Row],[CLOSINGS]]/$B$74 -> 0.002302025783 | F44: =Table2[[#This Row],[DOLLARVOL]]/$C$74 -> 0.002589663676
A45: D R HORTON INC; HORTON D R INC | B45: 4 | C45: 1420980 | D45: 355245 | E45: =Table2[[#This Row],[CLOSINGS]]/$B$74 -> 0.001841620626 | F45: =Table2[[#This Row],[DOLLARVOL]]/$C$74 -> 0.001261375188
A46: PARC FORET INC | B46: 3 | C46: 6043537.04 | D46: 2014512.347 | E46: =Table2[[#This Row],[CLOSINGS]]/$B$74 -> 0.00138121547 | F46: =Table2[[#This Row],[DOLLARVOL]]/$C$74 -> 0.00536472552
A47: PARADISCO COMMUNITIES LLC | B47: 3 | C47: 1151758 | D47: 383919.3333 | E47: =Table2[[#This Row],[CLOSINGS]]/$B$74 -> 0.00138121547 | F47: =Table2[[#This Row],[DOLLARVOL]]/$C$74 -> 0.001022392267
A48: RANCHO HILLLS BY DESERT WIND LP; RANCHO HILLS BY DESERT WIND LP | B48: 3 | C48: 881612 | D48: 293870.6667 | E48: =Table2[[#This Row],[CLOSINGS]]/$B$74 -> 0.00138121547 | F48: =Table2[[#This Row],[DOLLARVOL]]/$C$74 -> 0.0007825891302
A49: CATAMOUNT PROPERTIES 2018 LLC | B49: 3 | C49: 851000 | D49: 283666.6667 | E49: =Table2[[#This Row],[CLOSINGS]]/$B$74 -> 0.00138121547 | F49: =Table2[[#This Row],[DOLLARVOL]]/$C$74 -> 0.0007554154773
A50: TOLL NV PARTNERSHIP | B50: 2 | C50: 1710157 | D50: 855078.5 | E50: =Table2[[#This Row],[CLOSINGS]]/$B$74 -> 0.0009208103131 | F50: =Table2[[#This Row],[DOLLARVOL]]/$C$74 -> 0.001518071758
A51: TOLL NVLIMITED PARTNERSHIP | B51: 2 | C51: 1563402 | D51: 781701 | E51: =Table2[[#This Row],[CLOSINGS]]/$B$74 -> 0.0009208103131 | F51: =Table2[[#This Row],[DOLLARVOL]]/$C$74 -> 0.001387800315
A52: PRESTON HOMES LLC | B52: 2 | C52: 1418000 | D52: 709000 | E52: =Table2[[#This Row],[CLOSINGS]]/$B$74 -> 0.0009208103131 | F52: =Table2[[#This Row],[DOLLARVOL]]/$C$74 -> 0.001258729902
A53: VP RENO LLC | B53: 2 | C53: 859200 | D53: 429600 | E53: =Table2[[#This Row],[CLOSINGS]]/$B$74 -> 0.0009208103131 | F53: =Table2[[#This Row],[DOLLARVOL]]/$C$74 -> 0.0007626944514
A54: WEST COAST HOME BUILDERS INC; WEST COAST BUILDERS INC | B54: 2 | C54: 820000 | D54: 410000 | E54: =Table2[[#This Row],[CLOSINGS]]/$B$74 -> 0.0009208103131 | F54: =Table2[[#This Row],[DOLLARVOL]]/$C$74 -> 0.0007278974047
A55: D R HORTON INC | B55: 2 | C55: 780990 | D55: 390495 | E55: =Table2[[#This Row],[CLOSINGS]]/$B$74 -> 0.0009208103131 | F55: =Table2[[#This Row],[DOLLARVOL]]/$C$74 -> 0.0006932690172
A56: ALUM CREEK LLC | B56: 1 | C56: 1331250 | D56: 1331250 | E56: =Table2[[#This Row],[CLOSINGS]]/$B$74 -> 0.0004604051565 | F56: =Table2[[#This Row],[DOLLARVOL]]/$C$74 -> 0.001181723683
A57: BATES STINGER RENO LLC; BATES STRINGER RENO LLC | B57: 1 | C57: 750573 | D57: 750573 | E57: =Table2[[#This Row],[CLOSINGS]]/$B$74 -> 0.0004604051565 | F57: =Table2[[#This Row],[DOLLARVOL]]/$C$74 -> 0.0006662684619
A58: TOLL NV LIMITED PARTNERHSIP | B58: 1 | C58: 743277 | D58: 743277 | E58: =Table2[[#This Row],[CLOSINGS]]/$B$74 -> 0.0004604051565 | F58: =Table2[[#This Row],[DOLLARVOL]]/$C$74 -> 0.0006597919503
A59: HOLCOMB BY DESERT WIND LP | B59: 1 | C59: 696875 | D59: 696875 | E59: =Table2[[#This Row],[CLOSINGS]]/$B$74 -> 0.0004604051565 | F59: =Table2[[#This Row],[DOLLARVOL]]/$C$74 -> 0.000618601834
A60: FIVE STAR INC | B60: 1 | C60: 685500 | D60: 685500 | E60: =Table2[[#This Row],[CLOSINGS]]/$B$74 -> 0.0004604051565 | F60: =Table2[[#This Row],[DOLLARVOL]]/$C$74 -> 0.0006085044767
A61: TOLL NV LIMITIED PARTNERSHIP | B61: 1 | C61: 532611 | D61: 532611 | E61: =Table2[[#This Row],[CLOSINGS]]/$B$74 -> 0.0004604051565 | F61: =Table2[[#This Row],[DOLLARVOL]]/$C$74 -> 0.0004727880056
A62: TERRENO DEVELOPMENT LLX | B62: 1 | C62: 514456 | D62: 514456 | E62: =Table2[[#This Row],[CLOSINGS]]/$B$74 -> 0.0004604051565 | F62: =Table2[[#This Row],[DOLLARVOL]]/$C$74 -> 0.0004566721795
A63: TOLL NV LIMITED PARTNERHIP | B63: 1 | C63: 444451 | D63: 444451 | E63: =Table2[[#This Row],[CLOSINGS]]/$B$74 -> 0.0004604051565 | F63: =Table2[[#This Row],[DOLLARVOL]]/$C$74 -> 0.0003945301578
A64: WINGFIELD PROPERTIES LLC | B64: 1 | C64: 435000 | D64: 435000 | E64: =Table2[[#This Row],[CLOSINGS]]/$B$74 -> 0.0004604051565 | F64: =Table2[[#This Row],[DOLLARVOL]]/$C$74 -> 0.0003861406964
A65: DR HORTON ONC | B65: 1 | C65: 435000 | D65: 435000 | E65: =Table2[[#This Row],[CLOSINGS]]/$B$74 -> 0.0004604051565 | F65: =Table2[[#This Row],[DOLLARVOL]]/$C$74 -> 0.0003861406964
A66: HOLT ISAAC TIMOTHY | B66: 1 | C66: 430000 | D66: 430000 | E66: =Table2[[#This Row],[CLOSINGS]]/$B$74 -> 0.0004604051565 | F66: =Table2[[#This Row],[DOLLARVOL]]/$C$74 -> 0.0003817022976
A67: WOODLAND VILLAGE PHASE 22; WOODLAND VILLAGE PHASE 22 LLC | B67: 1 | C67: 416883 | D67: 416883 | E67: =Table2[[#This Row],[CLOSINGS]]/$B$74 -> 0.0004604051565 | F67: =Table2[[#This Row],[DOLLARVOL]]/$C$74 -> 0.0003700586021
A68: FAWP LLC | B68: 1 | C68: 405000 | D68: 405000 | E68: =Table2[[#This Row],[CLOSINGS]]/$B$74 -> 0.0004604051565 | F68: =Table2[[#This Row],[DOLLARVOL]]/$C$74 -> 0.0003595103035
A69: LENNARRENO LLC | B69: 1 | C69: 404950 | D69: 404950 | E69: =Table2[[#This Row],[CLOSINGS]]/$B$74 -> 0.0004604051565 | F69: =Table2[[#This Row],[DOLLARVOL]]/$C$74 -> 0.0003594659195
A70: DR HORTON INC; HORTON DR INC | B70: 1 | C70: 337995 | D70: 337995 | E70: =Table2[[#This Row],[CLOSINGS]]/$B$74 -> 0.0004604051565 | F70: =Table2[[#This Row],[DOLLARVOL]]/$C$74 -> 0.0003000313211
A71: HIGH DESERT DEVELOPMENT LLC | B71: 1 | C71: 280000 | D71: 280000 | E71: =Table2[[#This Row],[CLOSINGS]]/$B$74 -> 0.0004604051565 | F71: =Table2[[#This Row],[DOLLARVOL]]/$C$74 -> 0.0002485503333
A72: RANCHO HILLS BY DESET WIND LP | B72: 1 | C72: 274961 | D72: 274961 | E72: =Table2[[#This Row],[CLOSINGS]]/$B$74 -> 0.0004604051565 | F72: =Table2[[#This Row],[DOLLARVOL]]/$C$74 -> 0.000244077315
A73: SEVEN FEATHERS LLC | B73: 1 | C73: 218000 | D73: 218000 | E73: =Table2[[#This Row],[CLOSINGS]]/$B$74 -> 0.0004604051565 | F73: =Table2[[#This Row],[DOLLARVOL]]/$C$74 -> 0.0001935141881
A74: GRAND TOTAL | B74: =SUM(B5:B73) -> 2172 | C74: =SUM(C5:C73) -> 1126532386 | E74: =SUM(E5:E73) -> 1 | F74: =SUM(F5:F73) -> 1

Sheet SALES_LIST (hidden)
A1: FULLNAME | B1: RECBY | C1: BRANCH | D1: EO | E1: PROPTYPE | F1: DOCNUM | G1: AMOUNT | H1: SUB | I1: INSURED | J1: RECDATE | K1: Last Row: | L1: 12137
A2: Acme Title and Escrow | B2: ACT | C2: LANDER | D2: LTE | E2: CONDO/TWNHSE | F2: 5123643 | G2: 160000 | H2: NO | I2: YES | J2: 44196
A3: Acme Title and Escrow | B3: ACT | C3: LANDER | D3: LTE | E3: VACANT LAND | F3: 5070708 | G3: 53250 | H3: NO | I3: YES | J3: 44071
A4: Acme Title and Escrow | B4: ACT | C4: LANDER | D4: RA | E4: SINGLE FAM RES. | F4: 5039377 | G4: 530000 | H4: NO | I4: YES | J4: 43993
A5: Acme Title and Escrow | B5: ACT | C5: LANDER | D5: RA | E5: SINGLE FAM RES. | F5: 5039319 | G5: 459900 | H5: NO | I5: YES | J5: 43993
A6: Acme Title and Escrow | B6: ACT | C6: LANDER | D6: YC | E6: CONDO/TWNHSE | F6: 5118971 | G6: 161000 | H6: NO | I6: YES | J6: 44183
A7: Acme Title and Escrow | B7: ACT | C7: LANDER | D7: LTE | E7: SINGLE FAM RES. | F7: 4999810 | G7: 320000 | H7: NO | I7: YES | J7: 43872
A8: Acme Title and Escrow | B8: ACT | C8: LANDER | D8: LTE | E8: SINGLE FAM RES. | F8: 5123361 | G8: 460000 | H8: NO | I8: YES | J8: 44196
A9: Acme Title and Escrow | B9: ACT | C9: LANDER | D9: LTE | E9: SINGLE FAM RES. | F9: 5055803 | G9: 293000 | H9: NO | I9: YES | J9: 44033
A10: Acme Title and Escrow | B10: ACT | C10: LANDER | D10: LTE | E10: SINGLE FAM RES. | F10: 5089913 | G10: 202000 | H10: NO | I10: YES | J10: 44117
A11: Acme Title and Escrow | B11: ACT | C11: LANDER | D11: YC | E11: SINGLE FAM RES. | F11: 4992711 | G11: 78000 | H11: NO | I11: YES | J11: 43847
A12: Acme Title and Escrow | B12: ACT | C12: LANDER | D12: YC | E12: SINGLE FAM RES. | F12: 5070571 | G12: 324000 | H12: NO | I12: YES | J12: 44071
A13: Acme Title and Escrow | B13: ACT | C13: LANDER | D13: LTE | E13: SINGLE FAM RES. | F13: 5107716 | G13: 359000 | H13: NO | I13: YES | J13: 44158
A14: Acme Title and Escrow | B14: ACT | C14: LANDER | D14: LTE | E14: SINGLE FAM RES. | F14: 5081058 | G14: 375000 | H14: NO | I14: YES | J14: 44098
A15: Acme Title and Escrow | B15: ACT | C15: LANDER | D15: RA | E15: SINGLE FAM RES. | F15: 5059573 | G15: 399000 | H15: NO | I15: YES | J15: 44042
A16: Acme Title and Escrow | B16: ACT | C16: LANDER | D16: LTE | E16: SINGLE FAM RES. | F16: 5024093 | G16: 306500 | H16: NO | I16: YES | J16: 43950
A17: Acme Title and Escrow | B17: ACT | C17: LANDER | D17: LTE | E17: SINGLE FAM RES. | F17: 5025427 | G17: 1520000 | H17: NO | I17: YES | J17: 43955
A18: Acme Title and Escrow | B18: ACT | C18: LANDER | D18: YC | E18: SINGLE FAM RES. | F18: 4991289 | G18: 350000 | H18: NO | I18: YES | J18: 43844
A19: Acme Title and Escrow | B19: ACT | C19: LANDER | D19: LTE | E19: SINGLE FAM RES. | F19: 5025104 | G19: 405000 | H19: NO | I19: YES | J19: 43952
A20: Acme Title and Escrow | B20: ACT | C20: LANDER | D20: LTE | E20: SINGLE FAM RES. | F20: 5017489 | G20: 413000 | H20: NO | I20: YES | J20: 43928
A21: Acme Title and Escrow | B21: ACT | C21: LANDER | D21: LTE | E21: SINGLE FAM RES. | F21: 5106046 | G21: 440000 | H21: NO | I21: YES | J21: 44154
A22: Acme Title and Escrow | B22: ACT | C22: LANDER | D22: LTE | E22: SINGLE FAM RES. | F22: 5069896 | G22: 312000 | H22: NO | I22: YES | J22: 44069
A23: Acme Title and Escrow | B23: ACT | C23: LANDER | D23: LTE | E23: VACANT LAND | F23: 5070642 | G23: 61750 | H23: NO | I23: YES | J23: 44071
A24: Acme Title and Escrow | B24: ACT | C24: LANDER | D24: YC | E24: CONDO/TWNHSE | F24: 5123554 | G24: 110000 | H24: NO | I24: YES | J24: 44196
A25: Acme Title and Escrow | B25: ACT | C25: LANDER | D25: YC | E25: MOBILE HOME | F25: 5082421 | G25: 242000 | H25: NO | I25: YES | J25: 44099
A26: Acme Title and Escrow | B26: ACT | C26: LANDER | D26: LTE | E26: SINGLE FAM RES. | F26: 5012665 | G26: 390000 | H26: NO | I26: YES | J26: 43910
A27: Acme Title and Escrow | B27: ACT | C27: LANDER | D27: YC | E27: SINGLE FAM RES. | F27: 5040245 | G27: 346900 | H27: NO | I27: YES | J27: 43997
A28: Acme Title and Escrow | B28: ACT | C28: LANDER | D28: RA | E28: SINGLE FAM RES. | F28: 5014573 | G28: 649900 | H28: NO | I28: YES | J28: 43917
A29: Acme Title and Escrow | B29: ACT | C29: LANDER | D29: LTE | E29: SINGLE FAM RES. | F29: 5060135 | G29: 650000 | H29: NO | I29: YES | J29: 44043
A30: Acme Title and Escrow | B30: ACT | C30: LANDER | D30: LTE | E30: CONDO/TWNHSE | F30: 5044544 | G30: 295000 | H30: NO | I30: YES | J30: 44007
A31: Acme Title and Escrow | B31: ACT | C31: LANDER | D31: LTE | E31: SINGLE FAM RES. | F31: 4989734 | G31: 468500 | H31: NO | I31: YES | J31: 43838
A32: Acme Title and Escrow | B32: ACT | C32: LANDER | D32: RA | E32: SINGLE FAM RES. | F32: 5067178 | G32: 350000 | H32: NO | I32: YES | J32: 44062
A33: Acme Title and Escrow | B33: ACT | C33: LANDER | D33: YC | E33: SINGLE FAM RES. | F33: 5068367 | G33: 445000 | H33: NO | I33: YES | J33: 44067
A34: Acme Title and Escrow | B34: ACT | C34: LANDER | D34: LTE | E34: MOBILE HOME | F34: 5091703 | G34: 220000 | H34: NO | I34: YES | J34: 44120
A35: Acme Title and Escrow | B35: ACT | C35: LANDER | D35: LTE | E35: SINGLE FAM RES. | F35: 5074213 | G35: 272500 | H35: NO | I35: YES | J35: 44082
A36: Acme Title and Escrow | B36: ACT | C36: LANDER | D36: RA | E36: SINGLE FAM RES. | F36: 5073146 | G36: 335000 | H36: NO | I36: YES | J36: 44077
A37: Acme Title and Escrow | B37: ACT | C37: LANDER | D37: YC | E37: SINGLE FAM RES. | F37: 4990468 | G37: 345000 | H37: NO | I37: YES | J37: 43840
A38: Acme Title and Escrow | B38: ACT | C38: LANDER | D38: YC | E38: SINGLE FAM RES. | F38: 5001298 | G38: 364750 | H38: NO | I38: YES | J38: 43875
A39: Acme Title and Escrow | B39: ACT | C39: LANDER | D39: LTE | E39: SINGLE FAM RES. | F39: 5046918 | G39: 561000 | H39: NO | I39: YES | J39: 44013
A40: Acme Title and Escrow | B40: ACT | C40: LANDER | D40: YC | E40: SINGLE FAM RES. | F40: 5049537 | G40: 255000 | H40: NO | I40: YES | J40: 44019
A41: Acme Title and Escrow | B41: ACT | C41: LANDER | D41: LTE | E41: CONDO/TWNHSE | F41: 5089096 | G41: 589000 | H41: NO | I41: YES | J41: 44113
A42: Acme Title and Escrow | B42: ACT | C42: LANDER | D42: LTE | E42: SINGLE FAM RES. | F42: 5094314 | G42: 300000 | H42: NO | I42: YES | J42: 44126
A43: Acme Title and Escrow | B43: ACT | C43: LANDER | D43: LTE | E43: SINGLE FAM RES. | F43: 5104545 | G43: 637900 | H43: NO | I43: YES | J43: 44151
A44: Acme Title and Escrow | B44: ACT | C44: LANDER | D44: LTE | E44: SINGLE FAM RES. | F44: 5094341 | G44: 310000 | H44: NO | I44: YES | J44: 44126
A45: Acme Title and Escrow | B45: ACT | C45: LANDER | D45: YC | E45: SINGLE FAM RES. | F45: 5074380 | G45: 334900 | H45: NO | I45: YES | J45: 44082
A46: Acme Title and Escrow | B46: ACT | C46: LANDER | D46: LTE | E46: SINGLE FAM RES. | F46: 5084220 | G46: 550000 | H46: NO | I46: YES | J46: 44103
A47: Acme Title and Escrow | B47: ACT | C47: LANDER | D47: YC | E47: SINGLE FAM RES. | F47: 5073069 | G47: 342000 | H47: NO | I47: YES | J47: 44077
A48: Acme Title and Escrow | B48: ACT | C48: LANDER | D48: RA | E48: SINGLE FAM RES. | F48: 5067996 | G48: 445000 | H48: NO | I48: YES | J48: 44064
A49: Acme Title and Escrow | B49: ACT | C49: LANDER | D49: LTE | E49: SINGLE FAM RES. | F49: 5025089 | G49: 438000 | H49: NO | I49: YES | J49: 43952
A50: Acme Title and Escrow | B50: ACT | C50: LANDER | D50: LTE | E50: SINGLE FAM RES. | F50: 5005003 | G50: 315500 | H50: NO | I50: YES | J50: 43888
A51: Acme Title and Escrow | B51: ACT | C51: LANDER | D51: LTE | E51: SINGLE FAM RES. | F51: 5039900 | G51: 180000 | H51: NO | I51: YES | J51: 43994
A52: Acme Title and Escrow | B52: ACT | C52: LANDER | D52: LTE | E52: SINGLE FAM RES. | F52: 5070868 | G52: 290000 | H52: NO | I52: YES | J52: 44071
A53: Acme Title and Escrow | B53: ACT | C53: LANDER | D53: RA | E53: CONDO/TWNHSE | F53: 5060809 | G53: 349000 | H53: NO | I53: YES | J53: 44046
A54: Acme Title and Escrow | B54: ACT | C54: LANDER | D54: YC | E54: SINGLE FAM RES. | F54: 5001775 | G54: 640000 | H54: NO | I54: YES | J54: 43879
A55: Acme Title and Escrow | B55: ACT | C55: LANDER | D55: YC | E55: SINGLE FAM RES. | F55: 5056766 | G55: 495000 | H55: NO | I55: YES | J55: 44035
A56: Acme Title and Escrow | B56: ACT | C56: LANDER | D56: RA | E56: SINGLE FAM RES. | F56: 5010386 | G56: 345000 | H56: NO | I56: YES | J56: 43903
A57: Acme Title and Escrow | B57: ACT | C57: LANDER | D57: LTE | E57: CONDO/TWNHSE | F57: 5087814 | G57: 200000 | H57: NO | I57: YES | J57: 44111
A58: Acme Title and Escrow | B58: ACT | C58: LANDER | D58: RA | E58: SINGLE FAM RES. | F58: 5067654 | G58: 530000 | H58: NO | I58: YES | J58: 44063
A59: Acme Title and Escrow | B59: ACT | C59: LANDER | D59: YC | E59: VACANT LAND | F59: 5057202 | G59: 20000 | H59: NO | I59: YES | J59: 44036
A60: Acme Title and Escrow | B60: ACT | C60: LANDER | D60: LTE | E60: SINGLE FAM RES. | F60: 5123055 | G60: 355000 | H60: NO | I60: YES | J60: 44195
A61: Acme Title and Escrow | B61: ACT | C61: LANDER | D61: LTE | E61: SINGLE FAM RES. | F61: 5031239 | G61: 305000 | H61: NO | I61: YES | J61: 43970
A62: Acme Title and Escrow | B62: ACT | C62: LANDER | D62: LTE | E62: SINGLE FAM RES. | F62: 5075630 | G62: 250000 | H62: NO | I62: YES | J62: 44084
A63: Acme Title and Escrow | B63: ACT | C63: LANDER | D63: LTE | E63: SINGLE FAM RES. | F63: 5015726 | G63: 355000 | H63: NO | I63: YES | J63: 43921
A64: Acme Title and Escrow | B64: ACT | C64: LANDER | D64: YC | E64: SINGLE FAM RES. | F64: 4988116 | G64: 420000 | H64: NO | I64: YES | J64: 43832
A65: Acme Title and Escrow | B65: ACT | C65: LANDER | D65: RA | E65: SINGLE FAM RES. | F65: 4997537 | G65: 270000 | H65: NO | I65: YES | J65: 43864
A66: Acme Title and Escrow | B66: ACT | C66: LANDER | D66: LTE | E66: SINGLE FAM RES. | F66: 5083662 | G66: 375000 | H66: NO | I66: YES | J66: 44102
A67: Acme Title and Escrow | B67: ACT | C67: LANDER | D67: YC | E67: VACANT LAND | F67: 5067771 | G67: 100000 | H67: NO | I67: YES | J67: 44064
A68: Acme Title and Escrow | B68: ACT | C68: LANDER | D68: LTE | E68: SINGLE FAM RES. | F68: 5110112 | G68: 470000 | H68: NO | I68: YES | J68: 44165
A69: Acme Title and Escrow | B69: ACT | C69: LANDER | D69: LTE | E69: SINGLE FAM RES. | F69: 5052797 | G69: 329000 | H69: NO | I69: YES | J69: 44026
A70: Acme Title and Escrow | B70: ACT | C70: LANDER | D70: LTE | E70: SINGLE FAM RES. | F70: 5106123 | G70: 501000 | H70: NO | I70: YES | J70: 44154
A71: Acme Title and Escrow | B71: ACT | C71: LANDER | D71: RA | E71: SINGLE FAM RES. | F71: 5059507 | G71: 345000 | H71: NO | I71: YES | J71: 44042
A72: Acme Title and Escrow | B72: ACT | C72: LANDER | D72: LTE | E72: SINGLE FAM RES. | F72: 5111799 | G72: 340000 | H72: NO | I72: YES | J72: 44168
A73: Acme Title and Escrow | B73: ACT | C73: LANDER | D73: LTE | E73: SINGLE FAM RES. | F73: 5070182 | G73: 500000 | H73: NO | I73: YES | J73: 44070
A74: Acme Title and Escrow | B74: ACT | C74: LANDER | D74: YC | E74: SINGLE FAM RES. | F74: 5009903 | G74: 300000 | H74: NO | I74: YES | J74: 43902
A75: Acme Title and Escrow | B75: ACT | C75: LANDER | D75: YC | E75: SINGLE FAM RES. | F75: 4992809 | G75: 200000 | H75: NO | I75: YES | J75: 43847
A76: Acme Title and Escrow | B76: ACT | C76: LANDER | D76: LTE | E76: CONDO/TWNHSE | F76: 5103467 | G76: 120000 | H76: NO | I76: YES | J76: 44148
A77: Acme Title and Escrow | B77: ACT | C77: LANDER | D77: LTE | E77: SINGLE FAM RES. | F77: 5009910 | G77: 276000 | H77: NO | I77: YES | J77: 43902
A78: Acme Title and Escrow | B78: ACT | C78: LANDER | D78: LTE | E78: SINGLE FAM RES. | F78: 5021479 | G78: 298000 | H78: NO | I78: YES | J78: 43942
A79: Acme Title and Escrow | B79: ACT | C79: LANDER | D79: RA | E79: SINGLE FAM RES. | F79: 5065377 | G79: 417000 | H79: NO | I79: YES | J79: 44057
A80: Acme Title and Escrow | B80: ACT | C80: LANDER | D80: LTE | E80: SINGLE FAM RES. | F80: 5123605 | G80: 405000 | H80: NO | I80: YES | J80: 44196
A81: Acme Title and Escrow | B81: ACT | C81: LANDER | D81: YC | E81: SINGLE FAM RES. | F81: 5098547 | G81: 307000 | H81: NO | I81: YES | J81: 44137
A82: Acme Title and Escrow | B82: ACT | C82: LANDER | D82: LTE | E82: SINGLE FAM RES. | F82: 5077159 | G82: 575000 | H82: NO | I82: YES | J82: 44089
A83: Acme Title and Escrow | B83: ACT | C83: LANDER | D83: YC | E83: VACANT LAND | F83: 5111069 | G83: 112000 | H83: NO | I83: YES | J83: 44167
A84: Acme Title and Escrow | B84: ACT | C84: LANDER | D84: YC | E84: SINGLE FAM RES. | F84: 4992210 | G84: 327500 | H84: NO | I84: YES | J84: 43846
A85: Acme Title and Escrow | B85: ACT | C85: LANDER | D85: LTE | E85: SINGLE FAM RES. | F85: 5103712 | G85: 151000 | H85: NO | I85: YES | J85: 44148
A86: Acme Title and Escrow | B86: ACT | C86: LANDER | D86: LTE | E86: MOBILE HOME | F86: 5046602 | G86: 255000 | H86: NO | I86: YES | J86: 44012
A87: Acme Title and Escrow | B87: ACT | C87: LANDER | D87: LTE | E87: SINGLE FAM RES. | F87: 5039848 | G87: 378000 | H87: NO | I87: YES | J87: 43994
A88: Acme Title and Escrow | B88: ACT | C88: LANDER | D88: YC | E88: SINGLE FAM RES. | F88: 5070786 | G88: 340000 | H88: NO | I88: YES | J88: 44071
A89: Acme Title and Escrow | B89: ACT | C89: LANDER | D89: LTE | E89: SINGLE FAM RES. | F89: 5056837 | G89: 555000 | H89: NO | I89: YES | J89: 44035
A90: Acme Title and Escrow | B90: ACT | C90: LANDER | D90: LTE | E90: VACANT LAND | F90: 5098655 | G90: 250000 | H90: NO | I90: YES | J90: 44137
A91: Acme Title and Escrow | B91: ACT | C91: LANDER | D91: LTE | E91: CONDO/TWNHSE | F91: 5102959 | G91: 285000 | H91: NO | I91: YES | J91: 44147
A92: Acme Title and Escrow | B92: ACT | C92: LANDER | D92: LTE | E92: CONDO/TWNHSE | F92: 5089051 | G92: 213000 | H92: NO | I92: YES | J92: 44113
A93: Acme Title and Escrow | B93: ACT | C93: LANDER | D93: LTE | E93: SINGLE FAM RES. | F93: 5076194 | G93: 250000 | H93: NO | I93: YES | J93: 44085
A94: Acme Title and Escrow | B94: ACT | C94: LANDER | D94: RA | E94: SINGLE FAM RES. | F94: 5039895 | G94: 350000 | H94: NO | I94: YES | J94: 43994
A95: Acme Title and Escrow | B95: ACT | C95: LANDER | D95: LTE | E95: SINGLE FAM RES. | F95: 5056843 | G95: 395000 | H95: NO | I95: YES | J95: 44035
A96: Acme Title and Escrow | B96: ACT | C96: LANDER | D96: LTE | E96: CONDO/TWNHSE | F96: 5052635 | G96: 278000 | H96: NO | I96: YES | J96: 44026
A97: Acme Title and Escrow | B97: ACT | C97: LANDER | D97: YC | E97: MOBILE HOME | F97: 5025307 | G97: 285000 | H97: NO | I97: YES | J97: 43952
A98: Acme Title and Escrow | B98: ACT | C98: LANDER | D98: LTE | E98: SINGLE FAM RES. | F98: 5076753 | G98: 390000 | H98: NO | I98: YES | J98: 44088
A99: Acme Title and Escrow | B99: ACT | C99: LANDER | D99: LTE | E99: SINGLE FAM RES. | F99: 5009980 | G99: 355000 | H99: NO | I99: YES | J99: 43902
A100: Acme Title and Escrow | B100: ACT | C100: LANDER | D100: LTE | E100: SINGLE FAM RES. | F100: 5097425 | G100: 425000 | H100: NO | I100: YES | J100: 44133
A101: Acme Title and Escrow | B101: ACT | C101: LANDER | D101: LTE | E101: SINGLE FAM RES. | F101: 5056334 | G101: 390000 | H101: NO | I101: YES | J101: 44034
A102: Acme Title and Escrow | B102: ACT | C102: LANDER | D102: YC | E102: SINGLE FAM RES. | F102: 5081981 | G102: 336000 | H102: NO | I102: YES | J102: 44099
A103: Acme Title and Escrow | B103: ACT | C103: LANDER | D103: LTE | E103: CONDO/TWNHSE | F103: 5007579 | G103: 312500 | H103: NO | I103: YES | J103: 43895
A104: Acme Title and Escrow | B104: ACT | C104: LANDER | D104: LTE | E104: SINGLE FAM RES. | F104: 4997623 | G104: 380000 | H104: NO | I104: YES | J104: 43864
A105: Acme Title and Escrow | B105: ACT | C105: LANDER | D105: YC | E105: SINGLE FAM RES. | F105: 5007887 | G105: 359900 | H105: NO | I105: YES | J105: 43896
A106: Acme Title and Escrow | B106: ACT | C106: LANDER | D106: LTE | E106: CONDO/TWNHSE | F106: 5112486 | G106: 425000 | H106: NO | I106: YES | J106: 44169
A107: Acme Title and Escrow | B107: ACT | C107: LANDER | D107: LTE | E107: SINGLE FAM RES. | F107: 5011365 | G107: 300000 | H107: NO | I107: YES | J107: 43907
A108: Acme Title and Escrow | B108: ACT | C108: LANDER | D108: LTE | E108: SINGLE FAM RES. | F108: 5090947 | G108: 742000 | H108: NO | I108: YES | J108: 44119
A109: Acme Title and Escrow | B109: ACT | C109: LANDER | D109: YC | E109: SINGLE FAM RES. | F109: 5080207 | G109: 225000 | H109: NO | I109: YES | J109: 44097
A110: Acme Title and Escrow | B110: ACT | C110: LANDER | D110: YC | E110: CONDO/TWNHSE | F110: 5066031 | G110: 229900 | H110: NO | I110: YES | J110: 44060
A111: Acme Title and Escrow | B111: ACT | C111: LANDER | D111: YC | E111: SINGLE FAM RES. | F111: 5010921 | G111: 339900 | H111: NO | I111: YES | J111: 43906
A112: Acme Title and Escrow | B112: ACT | C112: LANDER | D112: LTE | E112: VACANT LAND | F112: 5084026 | G112: 140000 | H112: NO | I112: YES | J112: 44103
A113: Acme Title and Escrow | B113: ACT | C113: LANDER | D113: LTE | E113: COMM'L/IND'L | F113: 5112334 | G113: 412500 | H113: NO | I113: YES | J113: 44169
A114: Acme Title and Escrow | B114: ACT | C114: LANDER | D114: YC | E114: SINGLE FAM RES. | F114: 5109152 | G114: 440000 | H114: NO | I114: YES | J114: 44160
A115: Acme Title and Escrow | B115: ACT | C115: LANDER | D115: YC | E115: SINGLE FAM RES. | F115: 5062311 | G115: 307000 | H115: NO | I115: YES | J115: 44049
A116: Acme Title and Escrow | B116: ACT | C116: LANDER | D116: YC | E116: CONDO/TWNHSE | F116: 5109146 | G116: 275000 | H116: NO | I116: YES | J116: 44160
A117: Acme Title and Escrow | B117: ACT | C117: LANDER | D117: YC | E117: SINGLE FAM RES. | F117: 5075075 | G117: 360000 | H117: NO | I117: YES | J117: 44083
A118: Acme Title and Escrow | B118: ACT | C118: LANDER | D118: LTE | E118: SINGLE FAM RES. | F118: 4997209 | G118: 242000 | H118: NO | I118: YES | J118: 43861
A119: Acme Title and Escrow | B119: ACT | C119: LANDER | D119: LTE | E119: SINGLE FAM RES. | F119: 5045068 | G119: 280000 | H119: NO | I119: YES | J119: 44008
A120: Acme Title and Escrow | B120: ACT | C120: LANDER | D120: YC | E120: SINGLE FAM RES. | F120: 5117823 | G120: 370100 | H120: NO | I120: YES | J120: 44182
A121: Acme Title and Escrow | B121: ACT | C121: LANDER | D121: LTE | E121: VACANT LAND | F121: 5096543 | G121: 235000 | H121: NO | I121: YES | J121: 44132
A122: Acme Title and Escrow | B122: ACT | C122: LANDER | D122: LTE | E122: SINGLE FAM RES. | F122: 4988500 | G122: 423000 | H122: NO | I122: YES | J122: 43833
A123: Acme Title and Escrow | B123: ACT | C123: LANDER | D123: LTE | E123: VACANT LAND | F123: 5010899 | G123: 180000 | H123: NO | I123: YES | J123: 43906
A124: Acme Title and Escrow | B124: ACT | C124: LANDER | D124: LTE | E124: SINGLE FAM RES. | F124: 5026108 | G124: 225000 | H124: NO | I124: YES | J124: 43956
A125: Acme Title and Escrow | B125: ACT | C125: LANDER | D125: LTE | E125: SINGLE FAM RES. | F125: 4997075 | G125: 300000 | H125: NO | I125: YES | J125: 43861
A126: Acme Title and Escrow | B126: ACT | C126: LANDER | D126: RA | E126: CONDO/TWNHSE | F126: 5058986 | G126: 210000 | H126: NO | I126: YES | J126: 44041
A127: Acme Title and Escrow | B127: ACT | C127: LANDER | D127: YC | E127: SINGLE FAM RES. | F127: 5095899 | G127: 282000 | H127: NO | I127: YES | J127: 44131
A128: Acme Title and Escrow | B128: ACT | C128: LANDER | D128: LTE | E128: SINGLE FAM RES. | F128: 4997082 | G128: 640000 | H128: NO | I128: YES | J128: 43861
A129: Acme Title and Escrow | B129: ACT | C129: LANDER | D129: LTE | E129: CONDO/TWNHSE | F129: 5061816 | G129: 410000 | H129: NO | I129: YES | J129: 44048
A130: Acme Title and Escrow | B130: ACT | C130: LANDER | D130: LTE | E130: CONDO/TWNHSE | F130: 5090674 | G130: 174000 | H130: NO | I130: YES | J130: 44118
A131: Acme Title and Escrow | B131: ACT | C131: LANDER | D131: YC | E131: SINGLE FAM RES. | F131: 4997239 | G131: 507500 | H131: NO | I131: YES | J131: 43861
A132: Acme Title and Escrow | B132: ACT | C132: LANDER | D132: LTE | E132: MOBILE HOME | F132: 5019060 | G132: 274500 | H132: NO | I132: YES | J132: 43934
A133: Acme Title and Escrow | B133: ACT | C133: LANDER | D133: LTE | E133: SINGLE FAM RES. | F133: 5103611 | G133: 729000 | H133: NO | I133: YES | J133: 44148
A134: Acme Title and Escrow | B134: ACT | C134: LANDER | D134: LTE | E134: SINGLE FAM RES. | F134: 4989309 | G134: 355000 | H134: NO | I134: YES | J134: 43837
A135: Acme Title and Escrow | B135: ACT | C135: LANDER | D135: LTE | E135: SINGLE FAM RES. | F135: 5036618 | G135: 285000 | H135: NO | I135: YES | J135: 43986
A136: Acme Title and Escrow | B136: ACT | C136: LANDER | D136: LTE | E136: SINGLE FAM RES. | F136: 5090783 | G136: 340000 | H136: NO | I136: YES | J136: 44119
A137: Acme Title and Escrow | B137: ACT | C137: LANDER | D137: LTE | E137: SINGLE FAM RES. | F137: 5037311 | G137: 399000 | H137: NO | I137: YES | J137: 43987
A138: Acme Title and Escrow | B138: ACT | C138: LANDER | D138: YC | E138: 2-4 PLEX | F138: 5084488 | G138: 415000 | H138: NO | I138: YES | J138: 44104
A139: Acme Title and Escrow | B139: ACT | C139: LANDER | D139: YC | E139: MOBILE HOME | F139: 5011613 | G139: 260000 | H139: NO | I139: YES | J139: 43908
A140: Acme Title and Escrow | B140: ACT | C140: LANDER | D140: LTE | E140: CONDO/TWNHSE | F140: 5119721 | G140: 705000 | H140: NO | I140: YES | J140: 44186
A141: Acme Title and Escrow | B141: ACT | C141: LANDER | D141: LTE | E141: SINGLE FAM RES. | F141: 5037264 | G141: 815000 | H141: NO | I141: YES | J141: 43987
A142: Acme Title and Escrow | B142: ACT | C142: LANDER | D142: LTE | E142: MOBILE HOME | F142: 5100878 | G142: 290000 | H142: NO | I142: YES | J142: 44141
A143: Acme Title and Escrow | B143: ACT | C143: LANDER | D143: RA | E143: SINGLE FAM RES. | F143: 5011910 | G143: 309000 | H143: NO | I143: YES | J143: 43908
A144: Acme Title and Escrow | B144: ACT | C144: LANDER | D144: LTE | E144: SINGLE FAM RES. | F144: 5102247 | G144: 240000 | H144: NO | I144: YES | J144: 44145
A145: Acme Title and Escrow | B145: ACT | C145: LANDER | D145: LTE | E145: CONDO/TWNHSE | F145: 5037203 | G145: 127000 | H145: NO | I145: YES | J145: 43987
A146: Acme Title and Escrow | B146: ACT | C146: LANDER | D146: LTE | E146: SINGLE FAM RES. | F146: 5090903 | G146: 500000 | H146: NO | I146: YES | J146: 44119
A147: Acme Title and Escrow | B147: ACT | C147: LANDER | D147: YC | E147: SINGLE FAM RES. | F147: 5015069 | G147: 270000 | H147: NO | I147: YES | J147: 43920
A148: Acme Title and Escrow | B148: ACT | C148: LANDER | D148: YC | E148: MOBILE HOME | F148: 5018979 | G148: 232000 | H148: NO | I148: YES | J148: 43934
A149: Acme Title and Escrow | B149: ACT | C149: LANDER | D149: YC | E149: SINGLE FAM RES. | F149: 5034071 | G149: 332000 | H149: NO | I149: YES | J149: 43979
A150: Acme Title and Escrow | B150: ACT | C150: LANDER | D150: YC | E150: MOBILE HOME | F150: 5064051 | G150: 245000 | H150: NO | I150: YES | J150: 44054
A151: Acme Title and Escrow | B151: ACT | C151: LANDER | D151: RA | E151: SINGLE FAM RES. | F151: 5053635 | G151: 585000 | H151: NO | I151: YES | J151: 44028
A152: Acme Title and Escrow | B152: ACT | C152: LANDER | D152: YC | E152: MOBILE HOME | F152: 5036854 | G152: 294000 | H152: NO | I152: YES | J152: 43986
A153: Acme Title and Escrow | B153: ACT | C153: LANDER | D153: YC | E153: SINGLE FAM RES. | F153: 5003305 | G153: 406000 | H153: NO | I153: YES | J153: 43882
A154: Acme Title and Escrow | B154: ACT | C154: LANDER | D154: YC | E154: SINGLE FAM RES. | F154: 5079777 | G154: 295000 | H154: NO | I154: YES | J154: 44096
A155: Acme Title and Escrow | B155: ACT | C155: LANDER | D155: YC | E155: SINGLE FAM RES. | F155: 4990655 | G155: 263000 | H155: NO | I155: YES | J155: 43840
A156: Acme Title and Escrow | B156: ACT | C156: LANDER | D156: RA | E156: SINGLE FAM RES. | F156: 5075009 | G156: 495000 | H156: NO | I156: YES | J156: 44083
A157: Acme Title and Escrow | B157: ACT | C157: LANDER | D157: YC | E157: SINGLE FAM RES. | F157: 4993754 | G157: 345000 | H157: NO | I157: YES | J157: 43852
A158: Acme Title and Escrow | B158: ACT | C158: LANDER | D158: YC | E158: VACANT LAND | F158: 5067497 | G158: 65000 | H158: NO | I158: YES | J158: 44063
A159: Acme Title and Escrow | B159: ACT | C159: LANDER | D159: LTE | E159: SINGLE FAM RES. | F159: 5092516 | G159: 330500 | H159: NO | I159: YES | J159: 44123
A160: Acme Title and Escrow | B160: ACT | C160: LANDER | D160: LTE | E160: SINGLE FAM RES. | F160: 5013692 | G160: 290000 | H160: NO | I160: YES | J160: 43915
A161: Acme Title and Escrow | B161: ACT | C161: LANDER | D161: RA | E161: SINGLE FAM RES. | F161: 4995145 | G161: 705000 | H161: NO | I161: YES | J161: 43857
A162: Acme Title and Escrow | B162: ACT | C162: LANDER | D162: YC | E162: MOBILE HOME | F162: 5104308 | G162: 285000 | H162: NO | I162: YES | J162: 44151
A163: Acme Title and Escrow | B163: ACT | C163: LANDER | D163: YC | E163: SINGLE FAM RES. | F163: 5054084 | G163: 349900 | H163: NO | I163: YES | J163: 44029
A164: Acme Title and Escrow | B164: ACT | C164: LANDER | D164: UNK | E164: SINGLE FAM RES. | F164: 5029492 | G164: 60000 | H164: NO | I164: YES | J164: 43964
A165: Acme Title and Escrow | B165: ACT | C165: LANDER | D165: LTE | E165: SINGLE FAM RES. | F165: 5092373 | G165: 280000 | H165: NO | I165: YES | J165: 44123
A166: Acme Title and Escrow | B166: ACT | C166: LANDER | D166: LTE | E166: SINGLE FAM RES. | F166: 4995515 | G166: 305000 | H166: NO | I166: YES | J166: 43858
A167: Acme Title and Escrow | B167: ACT | C167: LANDER | D167: LTE | E167: SINGLE FAM RES. | F167: 5042752 | G167: 252000 | H167: NO | I167: YES | J167: 44004
A168: Acme Title and Escrow | B168: ACT | C168: LANDER | D168: LTE | E168: SINGLE FAM RES. | F168: 5042786 | G168: 410000 | H168: NO | I168: YES | J168: 44004
A169: Acme Title and Escrow | B169: ACT | C169: LANDER | D169: YC | E169: SINGLE FAM RES. | F169: 5004301 | G169: 335000 | H169: NO | I169: YES | J169: 43887
A170: Acme Title and Escrow | B170: ACT | C170: LANDER | D170: LTE | E170: SINGLE FAM RES. | F170: 5104362 | G170: 640000 | H170: NO | I170: YES | J170: 44151
A171: Acme Title and Escrow | B171: ACT | C171: LANDER | D171: LTE | E171: SINGLE FAM RES. | F171: 5085903 | G171: 355000 | H171: NO | I171: YES | J171: 44106
A172: Acme Title and Escrow | B172: ACT | C172: LANDER | D172: LTE | E172: SINGLE FAM RES. | F172: 5079548 | G172: 900000 | H172: NO | I172: YES | J172: 44095
A173: Acme Title and Escrow | B173: ACT | C173: LANDER | D173: LTE | E173: SINGLE FAM RES. | F173: 5029425 | G173: 325000 | H173: NO | I173: YES | J173: 43964
A174: Acme Title and Escrow | B174: ACT | C174: LANDER | D174: YC | E174: SINGLE FAM RES. | F174: 5121534 | G174: 340000 | H174: NO | I174: YES | J174: 44193
A175: Acme Title and Escrow | B175: ACT | C175: LANDER | D175: LTE | E175: SINGLE FAM RES. | F175: 5014813 | G175: 287500 | H175: NO | I175: YES | J175: 43917
A176: Acme Title and Escrow | B176: ACT | C176: LANDER | D176: LTE | E176: CONDO/TWNHSE | F176: 5100994 | G176: 694900 | H176: NO | I176: YES | J176: 44141
A177: Acme Title and Escrow | B177: ACT | C177: LANDER | D177: YC | E177: SINGLE FAM RES. | F177: 5108789 | G177: 300000 | H177: NO | I177: YES | J177: 44160
A178: Acme Title and Escrow | B178: ACT | C178: LANDER | D178: LTE | E178: SINGLE FAM RES. | F178: 5012610 | G178: 1403500 | H178: NO | I178: YES | J178: 43910
A179: Acme Title and Escrow | B179: ACT | C179: LANDER | D179: LTE | E179: SINGLE FAM RES. | F179: 5012624 | G179: 440000 | H179: NO | I179: YES | J179: 43910
A180: Acme Title and Escrow | B180: ACT | C180: LANDER | D180: RA | E180: SINGLE FAM RES. | F180: 5045549 | G180: 375000 | H180: NO | I180: YES | J180: 44011
A181: Acme Title and Escrow | B181: ACT | C181: LANDER | D181: RA | E181: CONDO/TWNHSE | F181: 5015563 | G181: 210000 | H181: NO | I181: YES | J181: 43921
A182: Acme Title and Escrow | B182: ACT | C182: LANDER | D182: LTE | E182: SINGLE FAM RES. | F182: 5003693 | G182: 331000 | H182: NO | I182: YES | J182: 43885
A183: Acme Title and Escrow | B183: ACT | C183: LANDER | D183: LTE | E183: SINGLE FAM RES. | F183: 5100887 | G183: 625000 | H183: NO | I183: YES | J183: 44141
A184: Acme Title and Escrow | B184: ACT | C184: LANDER | D184: LTE | E184: SINGLE FAM RES. | F184: 5060904 | G184: 353000 | H184: NO | I184: YES | J184: 44046
A185: Acme Title and Escrow | B185: ACT | C185: LANDER | D185: LTE | E185: CONDO/TWNHSE | F185: 4990137 | G185: 199000 | H185: NO | I185: YES | J185: 43839
A186: Acme Title and Escrow | B186: ACT | C186: LANDER | D186: LTE | E186: CONDO/TWNHSE | F186: 5043921 | G186: 280000 | H186: NO | I186: YES | J186: 44006
A187: Acme Title and Escrow | B187: ACT | C187: LANDER | D187: RA | E187: SINGLE FAM RES. | F187: 5005270 | G187: 385000 | H187: NO | I187: YES | J187: 43889
A188: Acme Title and Escrow | B188: ACT | C188: LANDER | D188: LTE | E188: SINGLE FAM RES. | F188: 5117595 | G188: 495000 | H188: NO | I188: YES | J188: 44181
A189: Acme Title and Escrow | B189: ACT | C189: LANDER | D189: LTE | E189: CONDO/TWNHSE | F189: 4995167 | G189: 333000 | H189: NO | I189: YES | J189: 43857
A190: Acme Title and Escrow | B190: ACT | C190: LANDER | D190: RA | E190: SINGLE FAM RES. | F190: 5066705 | G190: 375000 | H190: NO | I190: YES | J190: 44061
A191: Acme Title and Escrow | B191: ACT | C191: LANDER | D191: LTE | E191: CONDO/TWNHSE | F191: 5073000 | G191: 268500 | H191: NO | I191: YES | J191: 44077
A192: Acme Title and Escrow | B192: ACT | C192: LANDER | D192: RA | E192: CONDO/TWNHSE | F192: 4993328 | G192: 282500 | H192: NO | I192: YES | J192: 43851
A193: Acme Title and Escrow | B193: ACT | C193: LANDER | D193: LTE | E193: CONDO/TWNHSE | F193: 5005808 | G193: 153000 | H193: NO | I193: YES | J193: 43889
A194: Acme Title and Escrow | B194: ACT | C194: LANDER | D194: RA | E194: CONDO/TWNHSE | F194: 5061895 | G194: 495000 | H194: NO | I194: YES | J194: 44048
A195: Acme Title and Escrow | B195: ACT | C195: LANDER | D195: LTE | E195: SINGLE FAM RES. | F195: 5064602 | G195: 329000 | H195: NO | I195: YES | J195: 44055
A196: Acme Title and Escrow | B196: ACT | C196: LANDER | D196: RA | E196: SINGLE FAM RES. | F196: 5067535 | G196: 426000 | H196: NO | I196: YES | J196: 44063
A197: Acme Title and Escrow | B197: ACT | C197: LANDER | D197: LTE | E197: SINGLE FAM RES. | F197: 5054209 | G197: 690000 | H197: NO | I197: YES | J197: 44029
A198: Acme Title and Escrow | B198: ACT | C198: LANDER | D198: YC | E198: SINGLE FAM RES. | F198: 5064780 | G198: 370000 | H198: NO | I198: YES | J198: 44056
A199: Acme Title and Escrow | B199: ACT | C199: LANDER | D199: LTE | E199: SINGLE FAM RES. | F199: 4995771 | G199: 271400 | H199: NO | I199: YES | J199: 43858
A200: Acme Title and Escrow | B200: ACT | C200: LANDER | D200: YC | E200: SINGLE FAM RES. | F200: 5073376 | G200: 400000 | H200: NO | I200: YES | J200: 44078
... 4300 more rows

Sheet LOANS_LIST (hidden)
A1: FULLNAME | B1: RECBY | C1: TYPELOAN | D1: APN | E1: DOCNUM | F1: AMOUNT | G1: RECDATE | H1: LENDER | L1: 12733
A2: Acme Title and Escrow | B2: ACT | C2: CONVENTIONAL | D2: 010-142-06 | E2: 5093288 | F2: 448000 | G2: 44124 | H2: ALL WESTERN MORTGAGE INC
A3: Acme Title and Escrow | B3: ACT | C3: CONVENTIONAL | D3: 006-382-02 | E3: 5008421 | F3: 304700 | G3: 43899 | H3: ALL WESTERN MORTGAGE INC
A4: Acme Title and Escrow | B4: ACT | C4: CONVENTIONAL | D4: 009-261-21 | E4: 5023009 | F4: 409990 | G4: 43948 | H4: ALL WESTERN MORTGAGE INC
A5: Acme Title and Escrow | B5: ACT | C5: CONVENTIONAL | D5: 039-573-17 | E5: 5008304 | F5: 413250 | G5: 43899 | H5: ALL WESTERN MORTGAGE INC
A6: Acme Title and Escrow | B6: ACT | C6: CONVENTIONAL | D6: 528-171-05 | E6: 5104555 | F6: 166000 | G6: 44151 | H6: AMERICAN PACIFIC MORTGAGE CORPORATION
A7: Acme Title and Escrow | B7: ACT | C7: CONVENTIONAL | D7: 002-542-18 | E7: 5039879 | F7: 240000 | G7: 43994 | H7: AMERICAN PACIFIC MORTGAGE CORPORATION
A8: Acme Title and Escrow | B8: ACT | C8: CONVENTIONAL | D8: 036-373-19 | E8: 5026824 | F8: 144000 | G8: 43957 | H8: AMERICAN PACIFIC MORTGAGE CORPORATION
A9: Acme Title and Escrow | B9: ACT | C9: CONVENTIONAL | D9: 009-780-23 | E9: 5065938 | F9: 409010 | G9: 44060 | H9: AMERICAN PACIFIC MORTGAGE CORPORATION
A10: Acme Title and Escrow | B10: ACT | C10: FHA | D10: 208-312-10 | E10: 4993681 | F10: 278091 | G10: 43852 | H10: BAY EQUITY LLC
A11: Acme Title and Escrow | B11: ACT | C11: CONVENTIONAL | D11: 200-502-04 | E11: 5115678 | F11: 291500 | G11: 44176 | H11: BAY EQUITY LLC
A12: Acme Title and Escrow | B12: ACT | C12: CONVENTIONAL | D12: 049-725-05 | E12: 5006516 | F12: 305250 | G12: 43893 | H12: BAY EQUITY LLC
A13: Acme Title and Escrow | B13: ACT | C13: CONVENTIONAL | D13: 140-091-10 | E13: 5094638 | F13: 453000 | G13: 44127 | H13: BAY EQUITY LLC
A14: Acme Title and Escrow | B14: ACT | C14: CONVENTIONAL | D14: 042-314-12 | E14: 5033462 | F14: 285000 | G14: 43978 | H14: BAY EQUITY LLC
A15: Acme Title and Escrow | B15: ACT | C15: CONVENTIONAL | D15: 160-452-01 | E15: 5073995 | F15: 315000 | G15: 44082 | H15: BAY EQUITY LLC
A16: Acme Title and Escrow | B16: ACT | C16: CONVENTIONAL | D16: 162-063-02 | E16: 5053016 | F16: 431000 | G16: 44027 | H16: BAY EQUITY LLC
A17: Acme Title and Escrow | B17: ACT | C17: CONVENTIONAL | D17: 043-214-22 | E17: 5026931 | F17: 210000 | G17: 43958 | H17: BAY EQUITY LLC
A18: Acme Title and Escrow | B18: ACT | C18: CONVENTIONAL | D18: 021-701-08 | E18: 5037845 | F18: 305000 | G18: 43990 | H18: BAY EQUITY LLC
A19: Acme Title and Escrow | B19: ACT | C19: CONVENTIONAL | D19: 018-102-18 | E19: 5077614 | F19: 405000 | G19: 44090 | H19: BAY EQUITY LLC
A20: Acme Title and Escrow | B20: ACT | C20: CONVENTIONAL | D20: 014-084-03 | E20: 5096575 | F20: 325000 | G20: 44132 | H20: BAY EQUITY LLC
A21: Acme Title and Escrow | B21: ACT | C21: CONVENTIONAL | D21: 041-321-23 | E21: 5100643 | F21: 455000 | G21: 44141 | H21: BAY EQUITY LLC
A22: Acme Title and Escrow | B22: ACT | C22: CONVENTIONAL | D22: 010-193-08 | E22: 5023892 | F22: 319000 | G22: 43950 | H22: BAY EQUITY LLC
A23: Acme Title and Escrow | B23: ACT | C23: CONVENTIONAL | D23: 010-251-14 | E23: 5021537 | F23: 290000 | G23: 43943 | H23: BAY EQUITY LLC
A24: Acme Title and Escrow | B24: ACT | C24: CONVENTIONAL | D24: 001-361-09 | E24: 5026456 | F24: 262000 | G24: 43957 | H24: BAY EQUITY LLC
A25: Acme Title and Escrow | B25: ACT | C25: CONVENTIONAL | D25: 202-111-42 | E25: 5017078 | F25: 105000 | G25: 43927 | H25: BAY EQUITY LLC
A26: Acme Title and Escrow | B26: ACT | C26: CONVENTIONAL | D26: 006-021-21 | E26: 5045417 | F26: 288000 | G26: 44011 | H26: BAY EQUITY LLC
A27: Acme Title and Escrow | B27: ACT | C27: CONVENTIONAL | D27: 150-141-05 | E27: 5078001 | F27: 458000 | G27: 44091 | H27: BAY EQUITY LLC
A28: Acme Title and Escrow | B28: ACT | C28: CONVENTIONAL | D28: 027-034-55 | E28: 5077572 | F28: 150000 | G28: 44090 | H28: BAY EQUITY LLC
A29: Acme Title and Escrow | B29: ACT | C29: CONVENTIONAL | D29: 023-373-21 | E29: 5038712 | F29: 316500 | G29: 43992 | H29: BAY EQUITY LLC
A30: Acme Title and Escrow | B30: ACT | C30: CONVENTIONAL | D30: 200-193-11 | E30: 5044760 | F30: 340000 | G30: 44008 | H30: BAY EQUITY LLC
A31: Acme Title and Escrow | B31: ACT | C31: CONVENTIONAL | D31: 001-242-01 | E31: 5039312 | F31: 237670 | G31: 43993 | H31: BAY EQUITY LLC
A32: Acme Title and Escrow | B32: ACT | C32: CONVENTIONAL | D32: 528-151-17 | E32: 5086233 | F32: 416000 | G32: 44106 | H32: BAY EQUITY LLC
A33: Acme Title and Escrow | B33: ACT | C33: CONVENTIONAL | D33: 017-081-07 | E33: 5056264 | F33: 275000 | G33: 44034 | H33: BAY EQUITY LLC
A34: Acme Title and Escrow | B34: ACT | C34: CONVENTIONAL | D34: 131-031-15 | E34: 5022969 | F34: 320000 | G34: 43948 | H34: BAY EQUITY LLC
A35: Acme Title and Escrow | B35: ACT | C35: CONVENTIONAL | D35: 043-133-26 | E35: 5015464 | F35: 505600 | G35: 43921 | H35: BAY EQUITY LLC
A36: Acme Title and Escrow | B36: ACT | C36: FHA | D36: 079-481-73 | E36: 4996110 | F36: 333740 | G36: 43859 | H36: BAY EQUITY LLC
A37: Acme Title and Escrow | B37: ACT | C37: FHA | D37: 204-072-02 | E37: 5036312 | F37: 329301 | G37: 43985 | H37: BAY EQUITY LLC
A38: Acme Title and Escrow | B38: ACT | C38: FHA | D38: 004-370-70 | E38: 5074953 | F38: 166591 | G38: 44083 | H38: BAY EQUITY LLC
A39: Acme Title and Escrow | B39: ACT | C39: CONVENTIONAL | D39: 001-103-05 | E39: 4998256 | F39: 225000 | G39: 43866 | H39: BAY EQUITY LLC
A40: Acme Title and Escrow | B40: ACT | C40: CONVENTIONAL | D40: 526-362-03 | E40: 5022848 | F40: 238000 | G40: 43948 | H40: BAY EQUITY LLC
A41: Acme Title and Escrow | B41: ACT | C41: CONVENTIONAL | D41: 049-782-14 | E41: 5107586 | F41: 339132 | G41: 44158 | H41: BAY EQUITY LLC
A42: Acme Title and Escrow | B42: ACT | C42: CONVENTIONAL | D42: 011-266-09 | E42: 5071380 | F42: 332500 | G42: 44074 | H42: BAY EQUITY LLC
A43: Acme Title and Escrow | B43: ACT | C43: CONVENTIONAL | D43: 050-251-09 | E43: 5051194 | F43: 350000 | G43: 44022 | H43: BAY EQUITY LLC
A44: Acme Title and Escrow | B44: ACT | C44: CONVENTIONAL | D44: 140-662-19 | E44: 5050547 | F44: 408000 | G44: 44022 | H44: BAY EQUITY LLC
A45: Acme Title and Escrow | B45: ACT | C45: CONVENTIONAL | D45: 024-072-06 | E45: 5044773 | F45: 363000 | G45: 44008 | H45: BAY EQUITY LLC
A46: Acme Title and Escrow | B46: ACT | C46: CONVENTIONAL | D46: 005-082-11 | E46: 5062685 | F46: 304000 | G46: 44050 | H46: BAY EQUITY LLC
A47: Acme Title and Escrow | B47: ACT | C47: CONVENTIONAL | D47: 010-452-30 | E47: 5092315 | F47: 225000 | G47: 44123 | H47: BAY EQUITY LLC
A48: Acme Title and Escrow | B48: ACT | C48: CONVENTIONAL | D48: 556-621-15 | E48: 5075417 | F48: 323000 | G48: 44084 | H48: BAY EQUITY LLC
A49: Acme Title and Escrow | B49: ACT | C49: CONVENTIONAL | D49: 006-272-06 | E49: 5000302 | F49: 188000 | G49: 43873 | H49: BAY EQUITY LLC
A50: Acme Title and Escrow | B50: ACT | C50: CONVENTIONAL | D50: 530-674-06 | E50: 5018829 | F50: 200000 | G50: 43934 | H50: BAY EQUITY LLC
A51: Acme Title and Escrow | B51: ACT | C51: CONVENTIONAL | D51: 017-350-05 | E51: 4988812 | F51: 324000 | G51: 43836 | H51: BAY EQUITY LLC
A52: Acme Title and Escrow | B52: ACT | C52: VA | D52: 036-341-02 | E52: 5015092 | F52: 162000 | G52: 43920 | H52: BAY EQUITY LLC
A53: Acme Title and Escrow | B53: ACT | C53: CONVENTIONAL | D53: 141-582-04 | E53: 5059892 | F53: 332500 | G53: 44043 | H53: BAY EQUITY LLC
A54: Acme Title and Escrow | B54: ACT | C54: CONVENTIONAL | D54: 208-312-10 | E54: 5113368 | F54: 283500 | G54: 44173 | H54: BAY EQUITY LLC
A55: Acme Title and Escrow | B55: ACT | C55: CONVENTIONAL | D55: 204-732-08 | E55: 4988864 | F55: 300000 | G55: 43836 | H55: BAY EQUITY LLC
A56: Acme Title and Escrow | B56: ACT | C56: CONVENTIONAL | D56: 514-571-02 | E56: 5024355 | F56: 487000 | G56: 43951 | H56: BAY EQUITY LLC
A57: Acme Title and Escrow | B57: ACT | C57: CONVENTIONAL | D57: 200-112-07 | E57: 5071151 | F57: 256000 | G57: 44074 | H57: BAY EQUITY LLC
A58: Acme Title and Escrow | B58: ACT | C58: CONVENTIONAL | D58: 200-502-04 | E58: 5018843 | F58: 284000 | G58: 43934 | H58: BAY EQUITY LLC
A59: Acme Title and Escrow | B59: ACT | C59: CONVENTIONAL | D59: 141-472-07 | E59: 5028675 | F59: 450000 | G59: 43963 | H59: BAY EQUITY LLC
A60: Acme Title and Escrow | B60: ACT | C60: CONVENTIONAL | D60: 200-095-03 | E60: 5049179 | F60: 299000 | G60: 44019 | H60: BAY EQUITY LLC
A61: Acme Title and Escrow | B61: ACT | C61: CONVENTIONAL | D61: 039-381-15 | E61: 5068069 | F61: 264000 | G61: 44064 | H61: BAY EQUITY LLC
A62: Acme Title and Escrow | B62: ACT | C62: CONVENTIONAL | D62: 510-471-06 | E62: 5120702 | F62: 233942 | G62: 44188 | H62: BAY EQUITY LLC
A63: Acme Title and Escrow | B63: ACT | C63: CONVENTIONAL | D63: 141-133-03 | E63: 5100692 | F63: 336000 | G63: 44141 | H63: BAY EQUITY LLC
A64: Acme Title and Escrow | B64: ACT | C64: CONVENTIONAL | D64: 039-502-11 | E64: 5117421 | F64: 348800 | G64: 44181 | H64: BAY EQUITY LLC
A65: Acme Title and Escrow | B65: ACT | C65: CONVENTIONAL | D65: 089-191-10 | E65: 5043187 | F65: 212000 | G65: 44005 | H65: BAY EQUITY LLC
A66: Acme Title and Escrow | B66: ACT | C66: CONVENTIONAL | D66: 514-151-03 | E66: 5023396 | F66: 325000 | G66: 43949 | H66: BAY EQUITY LLC
A67: Acme Title and Escrow | B67: ACT | C67: CONVENTIONAL | D67: 200-333-05 | E67: 5009326 | F67: 360000 | G67: 43901 | H67: BAY EQUITY LLC
A68: Acme Title and Escrow | B68: ACT | C68: CONVENTIONAL | D68: 002-513-26 | E68: 5009327 | F68: 280088 | G68: 43901 | H68: BAY EQUITY LLC
A69: Acme Title and Escrow | B69: ACT | C69: CONVENTIONAL | D69: 043-213-07 | E69: 5023896 | F69: 162750 | G69: 43950 | H69: BAY EQUITY LLC
A70: Acme Title and Escrow | B70: ACT | C70: CONVENTIONAL | D70: 049-313-26 | E70: 5021663 | F70: 510400 | G70: 43943 | H70: BAY EQUITY LLC
A71: Acme Title and Escrow | B71: ACT | C71: FHA | D71: 508-231-07 | E71: 5042155 | F71: 277361 | G71: 44001 | H71: BAY EQUITY LLC
A72: Acme Title and Escrow | B72: ACT | C72: CONVENTIONAL | D72: 141-371-04 | E72: 5108683 | F72: 356500 | G72: 44160 | H72: BAY EQUITY LLC
A73: Acme Title and Escrow | B73: ACT | C73: CONVENTIONAL | D73: 002-381-10 | E73: 5058123 | F73: 313500 | G73: 44040 | H73: BAY EQUITY LLC
A74: Acme Title and Escrow | B74: ACT | C74: CONVENTIONAL | D74: 160-382-12 | E74: 5004302 | F74: 296400 | G74: 43887 | H74: BAY EQUITY LLC
A75: Acme Title and Escrow | B75: ACT | C75: VA | D75: 140-252-01 | E75: 5114234 | F75: 352890 | G75: 44174 | H75: BAY VALLEY MORTGAGE GROUP
A76: Acme Title and Escrow | B76: ACT | C76: CONVENTIONAL | D76: 036-161-06 | E76: 5055280 | F76: 172000 | G76: 44032 | H76: CALCON MUTUAL MORTGAGE LLC
A77: Acme Title and Escrow | B77: ACT | C77: CONVENTIONAL | D77: 204-322-05 | E77: 5076309 | F77: 175000 | G77: 44088 | H77: CALIBER HOME LOANS INC
A78: Acme Title and Escrow | B78: ACT | C78: CONVENTIONAL | D78: 140-332-01 | E78: 5026822 | F78: 409000 | G78: 43957 | H78: CALIBER HOME LOANS INC
A79: Acme Title and Escrow | B79: ACT | C79: CONVENTIONAL | D79: 516-124-01 | E79: 5030033 | F79: 199000 | G79: 43966 | H79: CALIBER HOME LOANS INC
A80: Acme Title and Escrow | B80: ACT | C80: CONVENTIONAL | D80: 015-312-04 | E80: 5083944 | F80: 144000 | G80: 44103 | H80: CALIBER HOME LOANS INC
A81: Acme Title and Escrow | B81: ACT | C81: CONVENTIONAL | D81: 504-660-02 | E81: 5042276 | F81: 150000 | G81: 44001 | H81: CALIBER HOME LOANS INC
A82: Acme Title and Escrow | B82: ACT | C82: FHA | D82: 554-311-21 | E82: 5092859 | F82: 262287 | G82: 44124 | H82: CALIBER HOME LOANS INC
A83: Acme Title and Escrow | B83: ACT | C83: CONVENTIONAL | D83: 036-161-10 | E83: 5092910 | F83: 257000 | G83: 44124 | H83: CALIBER HOME LOANS INC
A84: Acme Title and Escrow | B84: ACT | C84: CONVENTIONAL | D84: 554-243-26 | E84: 5033474 | F84: 260000 | G84: 43978 | H84: CALIBER HOME LOANS INC
A85: Acme Title and Escrow | B85: ACT | C85: CONVENTIONAL | D85: 002-092-19 | E85: 5002221 | F85: 257000 | G85: 43880 | H85: CALIBER HOME LOANS INC
A86: Acme Title and Escrow | B86: ACT | C86: CONVENTIONAL | D86: 082-354-03 | E86: 5025170 | F86: 201000 | G86: 43952 | H86: CALIBER HOME LOANS INC
A87: Acme Title and Escrow | B87: ACT | C87: CONVENTIONAL | D87: 031-371-23 | E87: 5030055 | F87: 280000 | G87: 43966 | H87: CALIBER HOME LOANS INC
A88: Acme Title and Escrow | B88: ACT | C88: CONVENTIONAL | D88: 550-502-08 | E88: 5030626 | F88: 277500 | G88: 43969 | H88: CALIBER HOME LOANS INC
A89: Acme Title and Escrow | B89: ACT | C89: CONVENTIONAL | D89: 516-194-01 | E89: 5059910 | F89: 396000 | G89: 44043 | H89: CALIBER HOME LOANS INC
A90: Acme Title and Escrow | B90: ACT | C90: CONVENTIONAL | D90: 036-092-31 | E90: 5057126 | F90: 222500 | G90: 44036 | H90: CALIBER HOME LOANS INC
A91: Acme Title and Escrow | B91: ACT | C91: CONVENTIONAL | D91: 086-783-03 | E91: 5030710 | F91: 168500 | G91: 43969 | H91: CALIBER HOME LOANS INC
A92: Acme Title and Escrow | B92: ACT | C92: CONVENTIONAL | D92: 019-443-07 | E92: 5032453 | F92: 130000 | G92: 43973 | H92: CALIBER HOME LOANS INC
A93: Acme Title and Escrow | B93: ACT | C93: CONVENTIONAL | D93: 090-341-13 | E93: 5084483 | F93: 268850 | G93: 44104 | H93: CALIBER HOME LOANS INC
A94: Acme Title and Escrow | B94: ACT | C94: CONVENTIONAL | D94: 165-094-16 | E94: 5033190 | F94: 387000 | G94: 43977 | H94: CALIBER HOME LOANS INC
A95: Acme Title and Escrow | B95: ACT | C95: CONVENTIONAL | D95: 518-282-10 | E95: 5040175 | F95: 260000 | G95: 43997 | H95: CALIBER HOME LOANS INC
A96: Acme Title and Escrow | B96: ACT | C96: CONVENTIONAL | D96: 038-633-04 | E96: 5002753 | F96: 266000 | G96: 43881 | H96: CLOSINGMARK HOME LOANS INC
A97: Acme Title and Escrow | B97: ACT | C97: CONVENTIONAL | D97: 220-262-05 | E97: 4995113 | F97: 200000 | G97: 43857 | H97: CLOSINGMARK HOME LOANS INC
A98: Acme Title and Escrow | B98: ACT | C98: CONVENTIONAL | D98: 045-342-01 | E98: 5120716 | F98: 365000 | G98: 44188 | H98: ESSEX MORTGAGE
A99: Acme Title and Escrow | B99: ACT | C99: CONVENTIONAL | D99: 081-031-42 | E99: 5114225 | F99: 425000 | G99: 44174 | H99: EVERGREEN MONEYSOURCE MORTGAGE COMPANY
A100: Acme Title and Escrow | B100: ACT | C100: CONVENTIONAL | D100: 550-584-09 | E100: 5018079 | F100: 324000 | G100: 43930 | H100: EVERGREEN MONEYSOURCE MORTGAGE COMPANY
A101: Acme Title and Escrow | B101: ACT | C101: CONVENTIONAL | D101: 028-444-14 | E101: 5001656 | F101: 245250 | G101: 43879 | H101: EVERGREEN MONEYSOURCE MORTGAGE COMPANY
A102: Acme Title and Escrow | B102: ACT | C102: CONVENTIONAL | D102: 030-621-02 | E102: 5101521 | F102: 291200 | G102: 44144 | H102: EVERGREEN MONEYSOURCE MORTGAGE COMPANY
A103: Acme Title and Escrow | B103: ACT | C103: CONVENTIONAL | D103: 036-124-06 | E103: 5023404 | F103: 204300 | G103: 43949 | H103: EVERGREEN MONEYSOURCE MORTGAGE COMPANY
A104: Acme Title and Escrow | B104: ACT | C104: FHA | D104: 556-501-18 | E104: 5011385 | F104: 235047 | G104: 43907 | H104: FAIRWAY INDEPENDENT MORTGAGE CORPORATION
A105: Acme Title and Escrow | B105: ACT | C105: CONVENTIONAL | D105: 140-812-21 | E105: 5119198 | F105: 279500 | G105: 44186 | H105: FAIRWAY INDEPENDENT MORTGAGE CORPORATION
A106: Acme Title and Escrow | B106: ACT | C106: CONVENTIONAL | D106: 522-472-09 | E106: 5012769 | F106: 275000 | G106: 43913 | H106: FINANCE OF AMERICA MORTGAGE LLC
A107: Acme Title and Escrow | B107: ACT | C107: CONVENTIONAL | D107: 080-342-14 | E107: 5002737 | F107: 145000 | G107: 43881 | H107: FINANCE OF AMERICA MORTGAGE LLC
A108: Acme Title and Escrow | B108: ACT | C108: CONVENTIONAL | D108: 528-301-17 | E108: 5121580 | F108: 286000 | G108: 44193 | H108: FINANCE OF AMERICA MORTGAGE LLC
A109: Acme Title and Escrow | B109: ACT | C109: CONVENTIONAL | D109: 003-740-41 | E109: 5023939 | F109: 104000 | G109: 43950 | H109: FINANCE OF AMERICA MORTGAGE LLC
A110: Acme Title and Escrow | B110: ACT | C110: VA | D110: 510-576-05 | E110: 4992673 | F110: 262781 | G110: 43847 | H110: GATEWAY MORTGAGE GROUP
A111: Acme Title and Escrow | B111: ACT | C111: CONVENTIONAL | D111: 141-194-15 | E111: 5055103 | F111: 335000 | G111: 44032 | H111: GREATER NEVADA MORTGAGE
A112: Acme Title and Escrow | B112: ACT | C112: VA | D112: 161-361-07 | E112: 5115866 | F112: 336700 | G112: 44176 | H112: GREATER NEVADA MORTGAGE
A113: Acme Title and Escrow | B113: ACT | C113: CONVENTIONAL | D113: 009-084-27 | E113: 5094642 | F113: 496000 | G113: 44127 | H113: GREATER NEVADA MORTGAGE
A114: Acme Title and Escrow | B114: ACT | C114: CONVENTIONAL | D114: 140-853-03 | E114: 5058405 | F114: 446500 | G114: 44040 | H114: GREATER NEVADA MORTGAGE
A115: Acme Title and Escrow | B115: ACT | C115: CONVENTIONAL | D115: 001-122-09 | E115: 5028131 | F115: 326000 | G115: 43962 | H115: GREATER NEVADA MORTGAGE
A116: Acme Title and Escrow | B116: ACT | C116: CONVENTIONAL | D116: 144-222-11 | E116: 5015983 | F116: 340000 | G116: 43922 | H116: GREATER NEVADA MORTGAGE
A117: Acme Title and Escrow | B117: ACT | C117: CONVENTIONAL | D117: 038-481-15 | E117: 5071653 | F117: 277000 | G117: 44074 | H117: GREATER NEVADA MORTGAGE
A118: Acme Title and Escrow | B118: ACT | C118: CONVENTIONAL | D118: 143-142-24 | E118: 5123112 | F118: 209500 | G118: 44195 | H118: GREATER NEVADA MORTGAGE
A119: Acme Title and Escrow | B119: ACT | C119: CONVENTIONAL | D119: 018-061-02 | E119: 5096868 | F119: 287000 | G119: 44132 | H119: GREATER NEVADA MORTGAGE
A120: Acme Title and Escrow | B120: ACT | C120: CONVENTIONAL | D120: 164-181-05 | E120: 4997067 | F120: 202650 | G120: 43861 | H120: GREATER NEVADA MORTGAGE
A121: Acme Title and Escrow | B121: ACT | C121: CONVENTIONAL | D121: 526-102-07 | E121: 4996899 | F121: 396669 | G121: 43861 | H121: GREATER NEVADA MORTGAGE
A122: Acme Title and Escrow | B122: ACT | C122: CONVENTIONAL | D122: 530-842-13 | E122: 5109793 | F122: 237000 | G122: 44165 | H122: GREATER NEVADA MORTGAGE
A123: Acme Title and Escrow | B123: ACT | C123: CONVENTIONAL | D123: 043-242-09 | E123: 5057099 | F123: 151500 | G123: 44036 | H123: GREATER NEVADA MORTGAGE
A124: Acme Title and Escrow | B124: ACT | C124: CONVENTIONAL | D124: 528-186-07 | E124: 5121500 | F124: 319650 | G124: 44193 | H124: GREATER NEVADA MORTGAGE
A125: Acme Title and Escrow | B125: ACT | C125: CONVENTIONAL | D125: 021-311-20 | E125: 5060022 | F125: 201000 | G125: 44043 | H125: GREATER NEVADA MORTGAGE
A126: Acme Title and Escrow | B126: ACT | C126: CONVENTIONAL | D126: 007-093-13 | E126: 5013016 | F126: 302500 | G126: 43913 | H126: GREATER NEVADA MORTGAGE
A127: Acme Title and Escrow | B127: ACT | C127: CONVENTIONAL | D127: 232-261-09 | E127: 5098504 | F127: 284500 | G127: 44137 | H127: GREATER NEVADA MORTGAGE
A128: Acme Title and Escrow | B128: ACT | C128: CONVENTIONAL | D128: 086-350-43 | E128: 5068131 | F128: 120700 | G128: 44064 | H128: GREATER NEVADA MORTGAGE
A129: Acme Title and Escrow | B129: ACT | C129: CONVENTIONAL | D129: 518-703-06 | E129: 5023943 | F129: 290250 | G129: 43950 | H129: GREATER NEVADA MORTGAGE
A130: Acme Title and Escrow | B130: ACT | C130: CONVENTIONAL | D130: 554-243-11 | E130: 5021401 | F130: 227250 | G130: 43942 | H130: GREATER NEVADA MORTGAGE
A131: Acme Title and Escrow | B131: ACT | C131: CONVENTIONAL | D131: 010-211-12 | E131: 5064422 | F131: 468000 | G131: 44055 | H131: GREATER NEVADA MORTGAGE
A132: Acme Title and Escrow | B132: ACT | C132: CONVENTIONAL | D132: 042-160-34 | E132: 5116859 | F132: 435500 | G132: 44180 | H132: GREATER NEVADA MORTGAGE
A133: Acme Title and Escrow | B133: ACT | C133: VA | D133: 234-672-11 | E133: 5084467 | F133: 442113 | G133: 44104 | H133: GREATER NEVADA MORTGAGE
A134: Acme Title and Escrow | B134: ACT | C134: CONVENTIONAL | D134: 050-425-06 | E134: 5096684 | F134: 264000 | G134: 44132 | H134: GREATER NEVADA MORTGAGE
A135: Acme Title and Escrow | B135: ACT | C135: CONVENTIONAL | D135: 016-484-15 | E135: 5000276 | F135: 312000 | G135: 43873 | H135: GREATER NEVADA MORTGAGE
A136: Acme Title and Escrow | B136: ACT | C136: CONVENTIONAL | D136: 002-523-04 | E136: 5066039 | F136: 362000 | G136: 44060 | H136: GREATER NEVADA MORTGAGE
A137: Acme Title and Escrow | B137: ACT | C137: CONVENTIONAL | D137: 083-721-07 | E137: 5119869 | F137: 169000 | G137: 44187 | H137: GUARANTEED RATE INC
A138: Acme Title and Escrow | B138: ACT | C138: CONVENTIONAL | D138: 508-477-11 | E138: 5097396 | F138: 234500 | G138: 44133 | H138: GUILD MORTGAGE COMPANY
A139: Acme Title and Escrow | B139: ACT | C139: CONVENTIONAL | D139: 006-073-03 | E139: 5094585 | F139: 150000 | G139: 44127 | H139: GUILD MORTGAGE COMPANY
A140: Acme Title and Escrow | B140: ACT | C140: CONVENTIONAL | D140: 202-241-07 | E140: 5055133 | F140: 325000 | G140: 44032 | H140: GUILD MORTGAGE COMPANY
A141: Acme Title and Escrow | B141: ACT | C141: CONVENTIONAL | D141: 208-561-22 | E141: 5022397 | F141: 325000 | G141: 43945 | H141: GUILD MORTGAGE COMPANY
A142: Acme Title and Escrow | B142: ACT | C142: CONVENTIONAL | D142: 200-121-15 | E142: 5017445 | F142: 241250 | G142: 43928 | H142: GUILD MORTGAGE COMPANY
A143: Acme Title and Escrow | B143: ACT | C143: CONVENTIONAL | D143: 400-081-01 | E143: 5045557 | F143: 389484 | G143: 44011 | H143: GUILD MORTGAGE COMPANY
A144: Acme Title and Escrow | B144: ACT | C144: CONVENTIONAL | D144: 082-392-25 | E144: 5035721 | F144: 191380 | G144: 43984 | H144: GUILD MORTGAGE COMPANY
A145: Acme Title and Escrow | B145: ACT | C145: CONVENTIONAL | D145: 550-251-14 | E145: 5052020 | F145: 258000 | G145: 44025 | H145: GUILD MORTGAGE COMPANY
A146: Acme Title and Escrow | B146: ACT | C146: CONVENTIONAL | D146: 078-262-27 | E146: 5078668 | F146: 186000 | G146: 44092 | H146: GUILD MORTGAGE COMPANY
A147: Acme Title and Escrow | B147: ACT | C147: CONVENTIONAL | D147: 208-025-07 | E147: 5110097 | F147: 362500 | G147: 44165 | H147: GUILD MORTGAGE COMPANY
A148: Acme Title and Escrow | B148: ACT | C148: CONVENTIONAL | D148: 080-385-03 | E148: 5087276 | F148: 223200 | G148: 44110 | H148: GUILD MORTGAGE COMPANY
A149: Acme Title and Escrow | B149: ACT | C149: CONVENTIONAL | D149: 076-391-35 | E149: 5007122 | F149: 397500 | G149: 43894 | H149: GUILD MORTGAGE COMPANY
A150: Acme Title and Escrow | B150: ACT | C150: CONVENTIONAL | D150: 502-341-10 | E150: 5076120 | F150: 327200 | G150: 44085 | H150: GUILD MORTGAGE COMPANY
A151: Acme Title and Escrow | B151: ACT | C151: CONVENTIONAL | D151: 082-384-03 | E151: 5093788 | F151: 147800 | G151: 44125 | H151: GUILD MORTGAGE COMPANY
A152: Acme Title and Escrow | B152: ACT | C152: CONVENTIONAL | D152: 080-385-03 | E152: 5087252 | F152: 223200 | G152: 44110 | H152: GUILD MORTGAGE COMPANY
A153: Acme Title and Escrow | B153: ACT | C153: FHA | D153: 550-511-07 | E153: 5083964 | F153: 317387 | G153: 44103 | H153: GUILD MORTGAGE COMPANY
A154: Acme Title and Escrow | B154: ACT | C154: VA | D154: 028-411-05 | E154: 5083957 | F154: 270400 | G154: 44103 | H154: GUILD MORTGAGE COMPANY
A155: Acme Title and Escrow | B155: ACT | C155: VA | D155: 566-172-05 | E155: 5083945 | F155: 357316 | G155: 44103 | H155: GUILD MORTGAGE COMPANY
A156: Acme Title and Escrow | B156: ACT | C156: CONVENTIONAL | D156: 001-353-03 | E156: 4989251 | F156: 270500 | G156: 43837 | H156: GUILD MORTGAGE COMPANY
A157: Acme Title and Escrow | B157: ACT | C157: FHA | D157: 086-746-02 | E157: 5030123 | F157: 232937 | G157: 43966 | H157: GUILD MORTGAGE COMPANY
A158: Acme Title and Escrow | B158: ACT | C158: CONVENTIONAL | D158: 002-092-09 | E158: 5017100 | F158: 292040 | G158: 43927 | H158: GUILD MORTGAGE COMPANY
A159: Acme Title and Escrow | B159: ACT | C159: CONVENTIONAL | D159: 086-232-33 | E159: 5037108 | F159: 298500 | G159: 43987 | H159: GUILD MORTGAGE COMPANY
A160: Acme Title and Escrow | B160: ACT | C160: CONVENTIONAL | D160: 554-253-14 | E160: 5028010 | F160: 160000 | G160: 43962 | H160: GUILD MORTGAGE COMPANY
A161: Acme Title and Escrow | B161: ACT | C161: CONVENTIONAL | D161: 550-303-07 | E161: 4997288 | F161: 202400 | G161: 43861 | H161: GUILD MORTGAGE COMPANY
A162: Acme Title and Escrow | B162: ACT | C162: CONVENTIONAL | D162: 027-232-25 | E162: 5079797 | F162: 212510 | G162: 44096 | H162: GUILD MORTGAGE COMPANY
A163: Acme Title and Escrow | B163: ACT | C163: CONVENTIONAL | D163: 083-502-15 | E163: 5051376 | F163: 185000 | G163: 44022 | H163: GUILD MORTGAGE COMPANY
A164: Acme Title and Escrow | B164: ACT | C164: CONVENTIONAL | D164: 021-295-04 | E164: 5050279 | F164: 217700 | G164: 44021 | H164: GUILD MORTGAGE COMPANY
A165: Acme Title and Escrow | B165: ACT | C165: CONVENTIONAL | D165: 520-312-01 | E165: 5095295 | F165: 200000 | G165: 44130 | H165: GUILD MORTGAGE COMPANY
A166: Acme Title and Escrow | B166: ACT | C166: CONVENTIONAL | D166: 528-144-01 | E166: 5034625 | F166: 362800 | G166: 43980 | H166: GUILD MORTGAGE COMPANY
A167: Acme Title and Escrow | B167: ACT | C167: CONVENTIONAL | D167: 516-152-12 | E167: 5001052 | F167: 242000 | G167: 43875 | H167: GUILD MORTGAGE COMPANY
A168: Acme Title and Escrow | B168: ACT | C168: CONVENTIONAL | D168: 005-022-09 | E168: 5075057 | F168: 282292 | G168: 44083 | H168: GUILD MORTGAGE COMPANY
A169: Acme Title and Escrow | B169: ACT | C169: CONVENTIONAL | D169: 010-452-22 | E169: 5013311 | F169: 210000 | G169: 43914 | H169: GUILD MORTGAGE COMPANY
A170: Acme Title and Escrow | B170: ACT | C170: CONVENTIONAL | D170: 502-461-07 | E170: 4996903 | F170: 279000 | G170: 43861 | H170: GUILD MORTGAGE COMPANY
A171: Acme Title and Escrow | B171: ACT | C171: CONVENTIONAL | D171: 508-420-05 | E171: 5079339 | F171: 183000 | G171: 44095 | H171: GUILD MORTGAGE COMPANY
A172: Acme Title and Escrow | B172: ACT | C172: CONVENTIONAL | D172: 080-873-02 | E172: 4991401 | F172: 279000 | G172: 43844 | H172: GUILD MORTGAGE COMPANY
A173: Acme Title and Escrow | B173: ACT | C173: CONVENTIONAL | D173: 502-401-02 | E173: 5055714 | F173: 164000 | G173: 44033 | H173: GUILD MORTGAGE COMPANY
A174: Acme Title and Escrow | B174: ACT | C174: CONVENTIONAL | D174: 030-464-01 | E174: 5018161 | F174: 278100 | G174: 43930 | H174: GUILD MORTGAGE COMPANY
A175: Acme Title and Escrow | B175: ACT | C175: CONVENTIONAL | D175: 026-782-01 | E175: 5095346 | F175: 284869 | G175: 44130 | H175: GUILD MORTGAGE COMPANY
A176: Acme Title and Escrow | B176: ACT | C176: CONVENTIONAL | D176: 532-061-09 | E176: 5024490 | F176: 287700 | G176: 43951 | H176: GUILD MORTGAGE COMPANY
A177: Acme Title and Escrow | B177: ACT | C177: CONVENTIONAL | D177: 033-022-27 | E177: 5056388 | F177: 194200 | G177: 44034 | H177: GUILD MORTGAGE COMPANY
A178: Acme Title and Escrow | B178: ACT | C178: CONVENTIONAL | D178: 004-392-46 | E178: 4990947 | F178: 77000 | G178: 43843 | H178: GUILD MORTGAGE COMPANY
A179: Acme Title and Escrow | B179: ACT | C179: CONVENTIONAL | D179: 005-113-03 | E179: 5058956 | F179: 204000 | G179: 44041 | H179: GUILD MORTGAGE COMPANY
A180: Acme Title and Escrow | B180: ACT | C180: CONVENTIONAL | D180: 530-311-02 | E180: 5044026 | F180: 295200 | G180: 44006 | H180: GUILD MORTGAGE COMPANY
A181: Acme Title and Escrow | B181: ACT | C181: CONVENTIONAL | D181: 050-385-07 | E181: 4990675 | F181: 235650 | G181: 43840 | H181: GUILD MORTGAGE COMPANY
A182: Acme Title and Escrow | B182: ACT | C182: FHA | D182: 008-065-05 | E182: 5012106 | F182: 243754 | G182: 43909 | H182: GUILD MORTGAGE COMPANY
A183: Acme Title and Escrow | B183: ACT | C183: CONVENTIONAL | D183: 530-702-01 | E183: 5070173 | F183: 147415 | G183: 44070 | H183: GUILD MORTGAGE COMPANY
A184: Acme Title and Escrow | B184: ACT | C184: CONVENTIONAL | D184: 560-052-19 | E184: 5070201 | F184: 176500 | G184: 44070 | H184: GUILD MORTGAGE COMPANY
A185: Acme Title and Escrow | B185: ACT | C185: CONVENTIONAL | D185: 001-071-11 | E185: 5002674 | F185: 207200 | G185: 43881 | H185: GUILD MORTGAGE COMPANY
A186: Acme Title and Escrow | B186: ACT | C186: CONVENTIONAL | D186: 156-062-03 | E186: 4988941 | F186: 910000 | G186: 43836 | H186: GUILD MORTGAGE COMPANY
A187: Acme Title and Escrow | B187: ACT | C187: CONVENTIONAL | D187: 087-044-64 | E187: 4991925 | F187: 169250 | G187: 43845 | H187: GUILD MORTGAGE COMPANY
A188: Acme Title and Escrow | B188: ACT | C188: CONVENTIONAL | D188: 508-211-23 | E188: 5003696 | F188: 224000 | G188: 43885 | H188: GUILD MORTGAGE COMPANY
A189: Acme Title and Escrow | B189: ACT | C189: CONVENTIONAL | D189: 004-194-01 | E189: 5108665 | F189: 165000 | G189: 44160 | H189: GUILD MORTGAGE COMPANY
A190: Acme Title and Escrow | B190: ACT | C190: CONVENTIONAL | D190: 556-433-01 | E190: 5019781 | F190: 300600 | G190: 43936 | H190: GUILD MORTGAGE COMPANY
A191: Acme Title and Escrow | B191: ACT | C191: CONVENTIONAL | D191: 028-025-09 | E191: 5063584 | F191: 261500 | G191: 44053 | H191: GUILD MORTGAGE COMPANY
A192: Acme Title and Escrow | B192: ACT | C192: CONVENTIONAL | D192: 027-321-27 | E192: 5003683 | F192: 234400 | G192: 43885 | H192: GUILD MORTGAGE COMPANY
A193: Acme Title and Escrow | B193: ACT | C193: CONVENTIONAL | D193: 003-553-11 | E193: 5083346 | F193: 202300 | G193: 44102 | H193: GUILD MORTGAGE COMPANY
A194: Acme Title and Escrow | B194: ACT | C194: CONVENTIONAL | D194: 550-351-02 | E194: 5005589 | F194: 176255 | G194: 43889 | H194: GUILD MORTGAGE COMPANY
A195: Acme Title and Escrow | B195: ACT | C195: CONVENTIONAL | D195: 143-063-07 | E195: 5084678 | F195: 432000 | G195: 44104 | H195: GUILD MORTGAGE COMPANY
A196: Acme Title and Escrow | B196: ACT | C196: CONVENTIONAL | D196: 024-183-22 | E196: 5067170 | F196: 384100 | G196: 44062 | H196: GUILD MORTGAGE COMPANY
A197: Acme Title and Escrow | B197: ACT | C197: CONVENTIONAL | D197: 005-163-24 | E197: 5108851 | F197: 252800 | G197: 44160 | H197: GUILD MORTGAGE COMPANY
A198: Acme Title and Escrow | B198: ACT | C198: CONVENTIONAL | D198: 530-084-23 | E198: 5108857 | F198: 254600 | G198: 44160 | H198: GUILD MORTGAGE COMPANY
A199: Acme Title and Escrow | B199: ACT | C199: CONVENTIONAL | D199: 520-211-24 | E199: 5058903 | F199: 144450 | G199: 44041 | H199: GUILD MORTGAGE COMPANY
A200: Acme Title and Escrow | B200: ACT | C200: CONVENTIONAL | D200: 516-081-01 | E200: 5089900 | F200: 263000 | G200: 44117 | H200: GUILD MORTGAGE COMPANY
... 4300 more rows

Sheet SALESLOANSLIST (hidden)
A1: FULLNAME | B1: RECBY | C1: AMOUNT | D1: RECDATE | E1: DOCTYPE | L1: 24869
A2: Acme Title and Escrow | B2: ACT | C2: 495000 | D2: 44035 | E2: DEED
A3: Acme Title and Escrow | B3: ACT | C3: 280000 | D3: 44008 | E3: DEED
A4: Acme Title and Escrow | B4: ACT | C4: 649900 | D4: 43917 | E4: DEED
A5: Acme Title and Escrow | B5: ACT | C5: 455000 | D5: 44039 | E5: DEED
A6: Acme Title and Escrow | B6: ACT | C6: 293000 | D6: 44033 | E6: DEED
A7: Acme Title and Escrow | B7: ACT | C7: 355000 | D7: 43837 | E7: DEED
A8: Acme Title and Escrow | B8: ACT | C8: 690000 | D8: 44029 | E8: DEED
A9: Acme Title and Escrow | B9: ACT | C9: 263000 | D9: 43840 | E9: DEED
A10: Acme Title and Escrow | B10: ACT | C10: 390000 | D10: 43910 | E10: DEED
A11: Acme Title and Escrow | B11: ACT | C11: 225000 | D11: 43956 | E11: DEED
A12: Acme Title and Escrow | B12: ACT | C12: 385000 | D12: 43889 | E12: DEED
A13: Acme Title and Escrow | B13: ACT | C13: 406000 | D13: 43882 | E13: DEED
A14: Acme Title and Escrow | B14: ACT | C14: 380000 | D14: 43864 | E14: DEED
A15: Acme Title and Escrow | B15: ACT | C15: 282500 | D15: 43851 | E15: DEED
A16: Acme Title and Escrow | B16: ACT | C16: 285000 | D16: 43952 | E16: DEED
A17: Acme Title and Escrow | B17: ACT | C17: 270000 | D17: 43864 | E17: DEED
A18: Acme Title and Escrow | B18: ACT | C18: 1520000 | D18: 43955 | E18: DEED
A19: Acme Title and Escrow | B19: ACT | C19: 127000 | D19: 43987 | E19: DEED
A20: Acme Title and Escrow | B20: ACT | C20: 555000 | D20: 44035 | E20: DEED
A21: Acme Title and Escrow | B21: ACT | C21: 290000 | D21: 43915 | E21: DEED
A22: Acme Title and Escrow | B22: ACT | C22: 305000 | D22: 43970 | E22: DEED
A23: Acme Title and Escrow | B23: ACT | C23: 305000 | D23: 43858 | E23: DEED
A24: Acme Title and Escrow | B24: ACT | C24: 327500 | D24: 43846 | E24: DEED
A25: Acme Title and Escrow | B25: ACT | C25: 650000 | D25: 44043 | E25: DEED
A26: Acme Title and Escrow | B26: ACT | C26: 815000 | D26: 43987 | E26: DEED
A27: Acme Title and Escrow | B27: ACT | C27: 459900 | D27: 43993 | E27: DEED
A28: Acme Title and Escrow | B28: ACT | C28: 255000 | D28: 44019 | E28: DEED
A29: Acme Title and Escrow | B29: ACT | C29: 312500 | D29: 43895 | E29: DEED
A30: Acme Title and Escrow | B30: ACT | C30: 399000 | D30: 43987 | E30: DEED
A31: Acme Title and Escrow | B31: ACT | C31: 309000 | D31: 43908 | E31: DEED
A32: Acme Title and Escrow | B32: ACT | C32: 316000 | D32: 44020 | E32: DEED
A33: Acme Title and Escrow | B33: ACT | C33: 378000 | D33: 43994 | E33: DEED
A34: Acme Title and Escrow | B34: ACT | C34: 300000 | D34: 43902 | E34: DEED
A35: Acme Title and Escrow | B35: ACT | C35: 78000 | D35: 43847 | E35: DEED
A36: Acme Title and Escrow | B36: ACT | C36: 180000 | D36: 43994 | E36: DEED
A37: Acme Title and Escrow | B37: ACT | C37: 300000 | D37: 43907 | E37: DEED
A38: Acme Title and Escrow | B38: ACT | C38: 350000 | D38: 43994 | E38: DEED
A39: Acme Title and Escrow | B39: ACT | C39: 420000 | D39: 43832 | E39: DEED
A40: Acme Title and Escrow | B40: ACT | C40: 345000 | D40: 43840 | E40: DEED
A41: Acme Title and Escrow | B41: ACT | C41: 530000 | D41: 43993 | E41: DEED
A42: Acme Title and Escrow | B42: ACT | C42: 271400 | D42: 43858 | E42: DEED
A43: Acme Title and Escrow | B43: ACT | C43: 359900 | D43: 43896 | E43: DEED
A44: Acme Title and Escrow | B44: ACT | C44: 232000 | D44: 43934 | E44: DEED
A45: Acme Title and Escrow | B45: ACT | C45: 274500 | D45: 43934 | E45: DEED
A46: Acme Title and Escrow | B46: ACT | C46: 153000 | D46: 43889 | E46: DEED
A47: Acme Title and Escrow | B47: ACT | C47: 349900 | D47: 44029 | E47: DEED
A48: Acme Title and Escrow | B48: ACT | C48: 375000 | D48: 44011 | E48: DEED
A49: Acme Title and Escrow | B49: ACT | C49: 255000 | D49: 44012 | E49: DEED
A50: Acme Title and Escrow | B50: ACT | C50: 345000 | D50: 44042 | E50: DEED
A51: Acme Title and Escrow | B51: ACT | C51: 640000 | D51: 43879 | E51: DEED
A52: Acme Title and Escrow | B52: ACT | C52: 585000 | D52: 44028 | E52: DEED
A53: Acme Title and Escrow | B53: ACT | C53: 413000 | D53: 43928 | E53: DEED
A54: Acme Title and Escrow | B54: ACT | C54: 561000 | D54: 44013 | E54: DEED
A55: Acme Title and Escrow | B55: ACT | C55: 346900 | D55: 43997 | E55: DEED
A56: Acme Title and Escrow | B56: ACT | C56: 200000 | D56: 43847 | E56: DEED
A57: Acme Title and Escrow | B57: ACT | C57: 276000 | D57: 43902 | E57: DEED
A58: Acme Title and Escrow | B58: ACT | C58: 335000 | D58: 43887 | E58: DEED
A59: Acme Title and Escrow | B59: ACT | C59: 440000 | D59: 43910 | E59: DEED
A60: Acme Title and Escrow | B60: ACT | C60: 399000 | D60: 44042 | E60: DEED
A61: Acme Title and Escrow | B61: ACT | C61: 60000 | D61: 43964 | E61: DEED
A62: Acme Title and Escrow | B62: ACT | C62: 325000 | D62: 43964 | E62: DEED
A63: Acme Title and Escrow | B63: ACT | C63: 390000 | D63: 44034 | E63: DEED
A64: Acme Title and Escrow | B64: ACT | C64: 331000 | D64: 43885 | E64: DEED
A65: Acme Title and Escrow | B65: ACT | C65: 306500 | D65: 43950 | E65: DEED
A66: Acme Title and Escrow | B66: ACT | C66: 210000 | D66: 44041 | E66: DEED
A67: Acme Title and Escrow | B67: ACT | C67: 270000 | D67: 43920 | E67: DEED
A68: Acme Title and Escrow | B68: ACT | C68: 507500 | D68: 43861 | E68: DEED
A69: Acme Title and Escrow | B69: ACT | C69: 242000 | D69: 43861 | E69: DEED
A70: Acme Title and Escrow | B70: ACT | C70: 395000 | D70: 44035 | E70: DEED
A71: Acme Title and Escrow | B71: ACT | C71: 320000 | D71: 43872 | E71: DEED
A72: Acme Title and Escrow | B72: ACT | C72: 199000 | D72: 43839 | E72: DEED
A73: Acme Title and Escrow | B73: ACT | C73: 332000 | D73: 43979 | E73: DEED
A74: Acme Title and Escrow | B74: ACT | C74: 280000 | D74: 44006 | E74: DEED
A75: Acme Title and Escrow | B75: ACT | C75: 350000 | D75: 43844 | E75: DEED
A76: Acme Title and Escrow | B76: ACT | C76: 315500 | D76: 43888 | E76: DEED
A77: Acme Title and Escrow | B77: ACT | C77: 300000 | D77: 43861 | E77: DEED
A78: Acme Title and Escrow | B78: ACT | C78: 287500 | D78: 43917 | E78: DEED
A79: Acme Title and Escrow | B79: ACT | C79: 329000 | D79: 44026 | E79: DEED
A80: Acme Title and Escrow | B80: ACT | C80: 260000 | D80: 43908 | E80: DEED
A81: Acme Title and Escrow | B81: ACT | C81: 339900 | D81: 43906 | E81: DEED
A82: Acme Title and Escrow | B82: ACT | C82: 180000 | D82: 43906 | E82: DEED
A83: Acme Title and Escrow | B83: ACT | C83: 640000 | D83: 43861 | E83: DEED
A84: Acme Title and Escrow | B84: ACT | C84: 20000 | D84: 44036 | E84: DEED
A85: Acme Title and Escrow | B85: ACT | C85: 252000 | D85: 44004 | E85: DEED
A86: Acme Title and Escrow | B86: ACT | C86: 278000 | D86: 44026 | E86: DEED
A87: Acme Title and Escrow | B87: ACT | C87: 410000 | D87: 44004 | E87: DEED
A88: Acme Title and Escrow | B88: ACT | C88: 1403500 | D88: 43910 | E88: DEED
A89: Acme Title and Escrow | B89: ACT | C89: 423000 | D89: 43833 | E89: DEED
A90: Acme Title and Escrow | B90: ACT | C90: 345000 | D90: 43903 | E90: DEED
A91: Acme Title and Escrow | B91: ACT | C91: 364750 | D91: 43875 | E91: DEED
A92: Acme Title and Escrow | B92: ACT | C92: 355000 | D92: 43921 | E92: DEED
A93: Acme Title and Escrow | B93: ACT | C93: 294000 | D93: 43986 | E93: DEED
A94: Acme Title and Escrow | B94: ACT | C94: 333000 | D94: 43857 | E94: DEED
A95: Acme Title and Escrow | B95: ACT | C95: 468500 | D95: 43838 | E95: DEED
A96: Acme Title and Escrow | B96: ACT | C96: 705000 | D96: 43857 | E96: DEED
A97: Acme Title and Escrow | B97: ACT | C97: 210000 | D97: 43921 | E97: DEED
A98: Acme Title and Escrow | B98: ACT | C98: 355000 | D98: 43902 | E98: DEED
A99: Acme Title and Escrow | B99: ACT | C99: 285000 | D99: 43986 | E99: DEED
A100: Acme Title and Escrow | B100: ACT | C100: 298000 | D100: 43942 | E100: DEED
A101: Acme Title and Escrow | B101: ACT | C101: 405000 | D101: 43952 | E101: DEED
A102: Acme Title and Escrow | B102: ACT | C102: 345000 | D102: 43852 | E102: DEED
A103: Acme Title and Escrow | B103: ACT | C103: 438000 | D103: 43952 | E103: DEED
A104: Acme Title and Escrow | B104: ACT | C104: 264000 | D104: 43889 | E104: DEED
A105: Acme Title and Escrow | B105: ACT | C105: 295000 | D105: 44007 | E105: DEED
A106: Acme Title and Escrow | B106: ACT | C106: 342000 | D106: 44077 | E106: DEED
A107: Acme Title and Escrow | B107: ACT | C107: 405000 | D107: 44196 | E107: DEED
A108: Acme Title and Escrow | B108: ACT | C108: 272500 | D108: 44082 | E108: DEED
A109: Acme Title and Escrow | B109: ACT | C109: 370100 | D109: 44182 | E109: DEED
A110: Acme Title and Escrow | B110: ACT | C110: 110000 | D110: 44196 | E110: DEED
A111: Acme Title and Escrow | B111: ACT | C111: 268500 | D111: 44077 | E111: DEED
A112: Acme Title and Escrow | B112: ACT | C112: 375000 | D112: 44098 | E112: DEED
A113: Acme Title and Escrow | B113: ACT | C113: 445000 | D113: 44064 | E113: DEED
A114: Acme Title and Escrow | B114: ACT | C114: 360000 | D114: 44083 | E114: DEED
A115: Acme Title and Escrow | B115: ACT | C115: 245000 | D115: 44054 | E115: DEED
A116: Acme Title and Escrow | B116: ACT | C116: 445000 | D116: 44067 | E116: DEED
A117: Acme Title and Escrow | B117: ACT | C117: 310000 | D117: 44126 | E117: DEED
A118: Acme Title and Escrow | B118: ACT | C118: 460000 | D118: 44196 | E118: DEED
A119: Acme Title and Escrow | B119: ACT | C119: 235000 | D119: 44132 | E119: DEED
A120: Acme Title and Escrow | B120: ACT | C120: 470000 | D120: 44165 | E120: DEED
A121: Acme Title and Escrow | B121: ACT | C121: 285000 | D121: 44151 | E121: DEED
A122: Acme Title and Escrow | B122: ACT | C122: 301000 | D122: 44179 | E122: DEED
A123: Acme Title and Escrow | B123: ACT | C123: 335000 | D123: 44077 | E123: DEED
A124: Acme Title and Escrow | B124: ACT | C124: 329000 | D124: 44055 | E124: DEED
A125: Acme Title and Escrow | B125: ACT | C125: 300000 | D125: 44126 | E125: DEED
A126: Acme Title and Escrow | B126: ACT | C126: 414000 | D126: 44144 | E126: DEED
A127: Acme Title and Escrow | B127: ACT | C127: 495000 | D127: 44083 | E127: DEED
A128: Acme Title and Escrow | B128: ACT | C128: 307000 | D128: 44049 | E128: DEED
A129: Acme Title and Escrow | B129: ACT | C129: 300000 | D129: 44160 | E129: DEED
A130: Acme Title and Escrow | B130: ACT | C130: 174000 | D130: 44118 | E130: DEED
A131: Acme Title and Escrow | B131: ACT | C131: 151000 | D131: 44148 | E131: DEED
A132: Acme Title and Escrow | B132: ACT | C132: 705000 | D132: 44186 | E132: DEED
A133: Acme Title and Escrow | B133: ACT | C133: 250000 | D133: 44085 | E133: DEED
A134: Acme Title and Escrow | B134: ACT | C134: 242000 | D134: 44099 | E134: DEED
A135: Acme Title and Escrow | B135: ACT | C135: 160000 | D135: 44196 | E135: DEED
A136: Acme Title and Escrow | B136: ACT | C136: 425000 | D136: 44133 | E136: DEED
A137: Acme Title and Escrow | B137: ACT | C137: 336000 | D137: 44099 | E137: DEED
A138: Acme Title and Escrow | B138: ACT | C138: 275000 | D138: 44160 | E138: DEED
A139: Acme Title and Escrow | B139: ACT | C139: 440000 | D139: 44160 | E139: DEED
A140: Acme Title and Escrow | B140: ACT | C140: 640000 | D140: 44151 | E140: DEED
A141: Acme Title and Escrow | B141: ACT | C141: 495000 | D141: 44181 | E141: DEED
A142: Acme Title and Escrow | B142: ACT | C142: 390000 | D142: 44088 | E142: DEED
A143: Acme Title and Escrow | B143: ACT | C143: 334900 | D143: 44082 | E143: DEED
A144: Acme Title and Escrow | B144: ACT | C144: 500000 | D144: 44070 | E144: DEED
A145: Acme Title and Escrow | B145: ACT | C145: 100000 | D145: 44064 | E145: DEED
A146: Acme Title and Escrow | B146: ACT | C146: 361000 | D146: 44067 | E146: DEED
A147: Acme Title and Escrow | B147: ACT | C147: 501000 | D147: 44154 | E147: DEED
A148: Acme Title and Escrow | B148: ACT | C148: 355000 | D148: 44106 | E148: DEED
A149: Acme Title and Escrow | B149: ACT | C149: 400000 | D149: 44078 | E149: DEED
A150: Acme Title and Escrow | B150: ACT | C150: 220000 | D150: 44120 | E150: DEED
A151: Acme Title and Escrow | B151: ACT | C151: 200000 | D151: 44111 | E151: DEED
A152: Acme Title and Escrow | B152: ACT | C152: 340000 | D152: 44071 | E152: DEED
A153: Acme Title and Escrow | B153: ACT | C153: 577000 | D153: 44078 | E153: DEED
A154: Acme Title and Escrow | B154: ACT | C154: 229900 | D154: 44060 | E154: DEED
A155: Acme Title and Escrow | B155: ACT | C155: 350000 | D155: 44062 | E155: DEED
A156: Acme Title and Escrow | B156: ACT | C156: 285000 | D156: 44147 | E156: DEED
A157: Acme Title and Escrow | B157: ACT | C157: 53250 | D157: 44071 | E157: DEED
A158: Acme Title and Escrow | B158: ACT | C158: 412500 | D158: 44169 | E158: DEED
A159: Acme Title and Escrow | B159: ACT | C159: 625000 | D159: 44141 | E159: DEED
A160: Acme Title and Escrow | B160: ACT | C160: 290000 | D160: 44141 | E160: DEED
A161: Acme Title and Escrow | B161: ACT | C161: 440000 | D161: 44154 | E161: DEED
A162: Acme Title and Escrow | B162: ACT | C162: 340000 | D162: 44168 | E162: DEED
A163: Acme Title and Escrow | B163: ACT | C163: 324000 | D163: 44071 | E163: DEED
A164: Acme Title and Escrow | B164: ACT | C164: 61750 | D164: 44071 | E164: DEED
A165: Acme Title and Escrow | B165: ACT | C165: 280000 | D165: 44123 | E165: DEED
A166: Acme Title and Escrow | B166: ACT | C166: 375000 | D166: 44061 | E166: DEED
A167: Acme Title and Escrow | B167: ACT | C167: 340000 | D167: 44193 | E167: DEED
A168: Acme Title and Escrow | B168: ACT | C168: 290000 | D168: 44071 | E168: DEED
A169: Acme Title and Escrow | B169: ACT | C169: 575000 | D169: 44089 | E169: DEED
A170: Acme Title and Escrow | B170: ACT | C170: 240000 | D170: 44145 | E170: DEED
A171: Acme Title and Escrow | B171: ACT | C171: 330500 | D171: 44123 | E171: DEED
A172: Acme Title and Escrow | B172: ACT | C172: 530000 | D172: 44063 | E172: DEED
A173: Acme Title and Escrow | B173: ACT | C173: 694900 | D173: 44141 | E173: DEED
A174: Acme Title and Escrow | B174: ACT | C174: 316000 | D174: 44176 | E174: DEED
A175: Acme Title and Escrow | B175: ACT | C175: 425000 | D175: 44169 | E175: DEED
A176: Acme Title and Escrow | B176: ACT | C176: 225000 | D176: 44097 | E176: DEED
A177: Acme Title and Escrow | B177: ACT | C177: 112000 | D177: 44167 | E177: DEED
A178: Acme Title and Escrow | B178: ACT | C178: 282000 | D178: 44131 | E178: DEED
A179: Acme Title and Escrow | B179: ACT | C179: 370000 | D179: 44056 | E179: DEED
A180: Acme Title and Escrow | B180: ACT | C180: 202000 | D180: 44117 | E180: DEED
A181: Acme Title and Escrow | B181: ACT | C181: 426000 | D181: 44063 | E181: DEED
A182: Acme Title and Escrow | B182: ACT | C182: 295000 | D182: 44096 | E182: DEED
A183: Acme Title and Escrow | B183: ACT | C183: 417000 | D183: 44057 | E183: DEED
A184: Acme Title and Escrow | B184: ACT | C184: 65000 | D184: 44063 | E184: DEED
A185: Acme Title and Escrow | B185: ACT | C185: 320000 | D185: 44063 | E185: DEED
A186: Acme Title and Escrow | B186: ACT | C186: 312000 | D186: 44069 | E186: DEED
A187: Acme Title and Escrow | B187: ACT | C187: 900000 | D187: 44095 | E187: DEED
A188: Acme Title and Escrow | B188: ACT | C188: 355000 | D188: 44195 | E188: DEED
A189: Acme Title and Escrow | B189: ACT | C189: 359000 | D189: 44158 | E189: DEED
A190: Acme Title and Escrow | B190: ACT | C190: 410000 | D190: 44048 | E190: DEED
A191: Acme Title and Escrow | B191: ACT | C191: 213000 | D191: 44113 | E191: DEED
A192: Acme Title and Escrow | B192: ACT | C192: 340000 | D192: 44119 | E192: DEED
A193: Acme Title and Escrow | B193: ACT | C193: 353000 | D193: 44046 | E193: DEED
A194: Acme Title and Escrow | B194: ACT | C194: 500000 | D194: 44119 | E194: DEED
A195: Acme Title and Escrow | B195: ACT | C195: 589000 | D195: 44113 | E195: DEED
A196: Acme Title and Escrow | B196: ACT | C196: 729000 | D196: 44148 | E196: DEED
A197: Acme Title and Escrow | B197: ACT | C197: 349000 | D197: 44046 | E197: DEED
A198: Acme Title and Escrow | B198: ACT | C198: 415000 | D198: 44104 | E198: DEED
A199: Acme Title and Escrow | B199: ACT | C199: 550000 | D199: 44103 | E199: DEED
A200: Acme Title and Escrow | B200: ACT | C200: 307000 | D200: 44137 | E200: DEED
... 4300 more rows
